{"text_format":"1","workbook":"xlsx","n_sheets":5,"sheets":["Рекомендации","Ипостасные","Здание","Этажи","справочники"],"not_rendered":{"charts":0,"images":3,"macros":1,"external_links":0,"defined_names":30,"comments":0,"pivot_tables":0},"unopened":[],"bounds":{"document_bytes":16777216,"sheet_cells":100000,"rows_first":2000,"rows_last":500,"rows_between":2000,"halvings":0,"cell_chars":16384,"cell_head_chars":4096},"cells_cut":0,"cells_raw":0,"read":"whole","date_system":"1900"}

{"sheet":"Рекомендации","index":0,"n_rows":50,"n_cols":1,"rows_kept":50,"cut":false,"hidden":false,"merged":[]}
["Методические рекомендации Главам МАИ и Главам подразделений ИВДИВО для применения Книги подразделения ИВДИВО"]
[]
["Утверждаю. КХ 21.12.2016"]
["Редакция Книги 21 декабря 2016 г."]
[]
["Данная Книга является инструментом подразделения ИВДИВО и обязательна для применения."]
[]
["Книга содержит программы, при ее открытии Excel может запросить разрешения. Разрешайте, чтобы включить весь функционал этого инструмента вашего Служения. Если что-то не работает, значит вы не включили в Excel содержание Книги при ее открытии или у вас настолько старый Excel, что он не понимает применённый язык программирования."]
[]
["Применение Книги начинается с указания ее базовых параметров на листе \"Ипостасные\":"]
["1. В ячейку D2 введите номер Изначальности вашего подразделения."]
["2. Выберите вид состава вашего подразделения."]
["Настройка Книги на этом завершена. Можно вводить данные всех Советов и Составов подразделения и филиалов."]
["Идея в том, что именно в этой Книге должны содержаться данные столпа и контакты Ипостасных вашего подразделения. В контактах обязательно указывайте адрес электронной почты и номер телефона в международном формате."]
["Последовательность действий:"]
["1. На листе \"Ипостасные\" выбираем один из 16 составов и вводим Основной состав подразделения."]
["2. Вводим филиалы с Домами Отца. Ипостасей и Служащих филиала с ДО необходимо ввести до ввода Синтезного состава, т.к. в столпе места этих Ипостасных филиалов чётко регламентированы и не могут быть заняты Синтезным составом. Для ввода филиалов с Домами Отца используйте кнопку «Добавить Дом Отца филиала». После каждого нажатия кнопки вводите ФИО Ипостасных филиала."]
["3. Вручную вводим Синтезный состав подразделения, последовательно заполняя вакансии Синтезного состава сверху вниз. Распределение Синтезного состава по Организациям и Домам Отца не регламентировано. Служащие сами набирают Синтезный состав в свои команды и руководят им."]
["4. Вводим Синтезный состав Домов Отца филиалов, последовательно заполняя вакансии Синтезного состава сверху вниз. Данная операция не автоматизирована, но проста в ручном исполнении: в окончании звания Ипостасного дописывайте: [филиал <название территории>]"]
["5. Вводим филиалы до трёх Ипостасных, последовательно заполняя вакансии Синтезного состава сверху вниз. Используйте кнопку «Добавить филиал до 3 Служащих». После каждого нажатия кнопки вводите ФИО Ипостасных филиала."]
["Данная последовательность действий реализует алгоритм, данный в Регламенте 13."]
[]
["Если вы ошиблись при вводе данных, исходный вид таблицы можно восстановить. Для этого выберите любой другой состав подразделения. А затем выберите свой состав. Эта операция сбрасывает изменения в столбце должностных званий, но не изменяет личные данные Ипостасных."]
["После ввода всех данных следует создать файл столпа Ипостасных подразделения."]
["Для этого на листе \"Ипостасные\" есть кнопка \"Столп\". Её нажатие запускает генерацию текстового файла в Word."]
[]
["Программа сканирует столбец D листа \"Ипостасные\" по всем введённым данным. В файл столпа входят только те позиции, в который заполнены ФИО Ипостасных."]
["Последовательность филиалов определяется исторически: в столпе выше тот филиал, который был стяжён ранее. Но сначала идут все филиалы с Домами Отца, за ними филиалы до трёх Ипостасных."]
[]
["После нажатия кнопок \"Столп\" или \"Контакты\" не вмешивайтесь в процесс генерации файла до его окончания. Не пользуйтесь клавиатурой и не нажимайте кнопки мыши."]
["Лист \"справочники\" редактированию не подлежит. Он нужен для технических целей."]
["Не имеет смысла редактировать файлы столпа и контактов. Все изменения вносите в Книгу, а требуемые файлы вы всегда сможете сгенерировать по мере необходимости."]
["На утверждение в ИВДИВО направляется именно файл столпа, который сгенерирован Книгой. Никакие корректировки в него не вносятся."]
[]
["В МАИ ИВДИВО направляйте:"]
["1. Файл утвержденного столпа подразделения ИВДИВО."]
["2. Файл контактов  подразделения ИВДИВО."]
["Саму Книгу высылать не надо. Контакты в открытом доступе не публикуются. МАИ ИВДИВО использует их только в служебных целях. Контакты необходимы прежде всего для организации горизонтальных взаимодействий между Ипостасными разных подразделений ИВДИВО."]
["Если вы, заполняя Книгу, совершили ошибочное действие, его можно отменить, нажав Ctrl+Z."]
["Изучение формул и программ Книги приветствуется. Но изменяйте их, лишь имея должную компетенцию и видя смысл своих действий. "]
["Книга обновляется согласно Распоряжениям и Регламентам ИВДИВО. Актуальная редакция всегда доступна на странице "]
["http://документы.ИВДИВО.орг/распоряжения/"]
[]
["Дата редакции Книги указана вверху этого листа."]
["Если вы скачали обновленную редакцию Книги, то:"]
["1. Сделайте в новой Книге базовые установки, как сказано выше."]
["2. Скопируйте в новую Книгу только данные Ипостасных из ячеек серого цвета. Формулы и программы копировать не надо. Процесс перехода на новую редакцию занимает 1-2-3-… минуты в зависимости от ваших умений и навыков работы в Excel."]
["При возникновении вопросов с филиалами высылайте в мой адрес вашу книгу, перечень ваших филиалов и список Ипостасных в каждом из них."]
["Глава МАИ ИВДИВО Сергей Кишиневский"]
["64z@mail.ru"]

{"sheet":"Ипостасные","index":1,"n_rows":274,"n_cols":18,"rows_kept":274,"cut":false,"hidden":false,"merged":[[8,0,8,2],[1,0,1,2]]}
[16,null,null,"Данные вводятся только в ячейки серого цвета!"]
[{"$f":"\"Книга подразделения ИВДИВО «\"&IFERROR(INDEX(справочники!L2:L17,A1),\"такого подразделения нет\")&\"».\"","v":"Книга подразделения ИВДИВО «16 Состав: 128 Служащих»."},null,null,512]
[null,null,"Наименование подразделения в родительном падеже:",{"$f":"IFERROR(INDEX(Название_подразделения_рп,MATCH(Изначальность,Номер_Изначальности,0)),\"такого подразделения нет\")","v":"Изначально Вышестоящий Дом ИВО"},{"$f":"IF(OR(Изначальность>512,Изначальность<0),\"такого подразделения нет\",\" Изначальности\")","v":" Изначальности"},{"$f":"IFERROR(INDEX(Название_Подразделения,MATCH(Изначальность,Номер_Изначальности,0)),\"такого подразделения нет\")","v":"Изначально Вышестоящий Дом ИВО"}]
[null,null,"Управление Синтеза",{"$f":"IFERROR(INDEX(_256рица_Синтеза_ИВО,MATCH(Изначальность,Номер_Изначальности,0)),\"такого подразделения нет\")","v":"Изначально Вышестоящий Дом ИВО"},{"$f":"IFERROR(INDEX(Отделения,MATCH(Изначальность,Номер_Изначальности,0)),\" нет\")","v":"Р"}]
[null,null,"Территория (именительный падеж):",{"$f":"IFERROR(IF(D9=1,INDEX(Территория_,MATCH(Изначальность,Номер_Изначальности,0)),INDEX(Территория_,MATCH(Изначальность,Номер_Изначальности,0))),\" нет\")","v":"Москва"},{"$f":"IF(E4=\"Р\",\"Региональный\",\"Местный\")","v":"Региональный"}]
[null,null,"Территория (родительный падеж):",{"$f":"IFERROR(IF(D9=1,INDEX(Территории_,MATCH(D2,Номер_Изначальности,0)),INDEX(Территории_,MATCH(D2,Номер_Изначальности,0))),\" нет\")","v":"Москвы"},{"$f":"IF(E4=\"Р\",\"Регионального\",\"Местного\")","v":"Регионального"}]
[null,null,"Владыка",{"$f":"IFERROR(INDEX(ИВладыки_родит_падеж,513-Изначальность),\"такого Владыки нет\")","v":"Кут Хуми"}]
[null,null,"Владычица",{"$f":"IFERROR(INDEX(ИВладыки_родит_падеж,513+128-Изначальность),\"такого Владыки нет\")","v":"Фаинь"}]
[{"$f":"\"Мыслеобраз, Цель, Задача, Устремление ИВДИВО \"&Изначальность&\" Изначальности, \"&Территория&\":\"","v":"Мыслеобраз, Цель, Задача, Устремление ИВДИВО 512 Изначальности, Москва:"},null,null,255]
["Отцовскость ИВО Синтезностью Созидающей Мощью Основ ИВДИВО ИВО",null,null,{"$f":"\"Мыслеобраз \"&Наименование_Подразделения&\" \"&Изначальность&\" Изначальности\"","v":"Мыслеобраз Изначально Вышестоящий Дом ИВО 512 Изначальности"}]
["Синтезность концентрацией примененного Синтеза Иерархии 256И состоятельностью полномочий служащих синтезипостасно",null,null,{"$f":"\"Цель \"&Наименование_Подразделения&\" \"&Изначальность&\" Изначальности\"","v":"Цель Изначально Вышестоящий Дом ИВО 512 Изначальности"}]
["Идивные технологии явления физичности Основ ИВО Синтезом ИС ИВДИВО",null,null,{"$f":"\"Задача \"&Наименование_Подразделения&\" \"&Изначальность&\" Изначальности\"","v":"Задача Изначально Вышестоящий Дом ИВО 512 Изначальности"}]
["Наработать 64ую процессуальность 256 Части ИВО",null,null,{"$f":"\"Устремление \"&Наименование_Подразделения&\" \"&Изначальность&\" Изначальности\"","v":"Устремление Изначально Вышестоящий Дом ИВО 512 Изначальности"}]
[]
["Совет Изначально Вышестоящего Отца:",null,null,"ФИО","E-mail","Тел.1","Тел.2","WhatsApp","Viber","Город","Служащий Синтеза","Поручения","Личные стяжания","Статус","Мыслеобраз","Цель","Задача","Устремление"]
[null,1,{"$f":"\"Аватар Синтез Синтеза ИВО, Глава ИВДИВО \"&Изначальность&\" Изначальности, Управления Синтеза Кут Хуми\"","v":"Аватар Синтез Синтеза ИВО, Глава ИВДИВО 512 Изначальности, Управления Синтеза Кут Хуми"}]
[null,2,{"$f":"\"Владыка Синтез Синтеза Изначально Вышестоящего \"&IFERROR(INDEX(_256_ИВО,513-Изначальность),\"ошибка\")&\", Глава Высшей Школы Синтеза \"&Изначальность&\" Изначальности, Управления Синтеза Иосифа\"","v":"Владыка Синтез Синтеза Изначально Вышестоящего Отца ИВО, Глава Высшей Школы Синтеза 512 Изначальности, Управления Синтеза Иосифа"}]
[null,3,{"$f":"\"Владыка Синтез Синтеза Изначального Владыки Кут Хуми, Глава Изначально Метагалактической Академии Наук \"&Территории&\", Управления Синтеза Мории\"","v":"Владыка Синтез Синтеза Изначального Владыки Кут Хуми, Глава Изначально Метагалактической Академии Наук Москвы, Управления Синтеза Мории"}]
[null,4,{"$f":"\"Владыка Синтез Синтеза Изначального Владыки \"&Владыка&\", Глава Изначального Центра Ипостаси Синтеза, Управления Синтеза Филиппа\"","v":"Владыка Синтез Синтеза Изначального Владыки Кут Хуми, Глава Изначального Центра Ипостаси Синтеза, Управления Синтеза Филиппа"}]
[null,5,{"$f":"\"Владыка Синтез Синтеза ИВО, Глава Метагалактической Гражданской Конфедерации \"&Территории&\", Управления Синтеза Византия\"","v":"Владыка Синтез Синтеза ИВО, Глава Метагалактической Гражданской Конфедерации Москвы, Управления Синтеза Византия"}]
[null,6,{"$f":"\"Учитель Синтез Синтеза ИВО, Глава Дома Изначально Вышестоящего Отца Психодинамики, Управления Синтеза Янова\"","v":"Учитель Синтез Синтеза ИВО, Глава Дома Изначально Вышестоящего Отца Психодинамики, Управления Синтеза Янова"}]
[null,7,{"$f":"\"Учитель Синтез Синтеза ИВО, Глава Дома Изначально Вышестоящего Отца Посвящений, Управления Синтеза Юлия\"","v":"Учитель Синтез Синтеза ИВО, Глава Дома Изначально Вышестоящего Отца Посвящений, Управления Синтеза Юлия"}]
[null,8,{"$f":"\"Учитель Синтез Синтеза ИВО, Глава Дома Изначально Вышестоящего Отца Синтеза Жизни, Управления Синтеза Юсефа\"","v":"Учитель Синтез Синтеза ИВО, Глава Дома Изначально Вышестоящего Отца Синтеза Жизни, Управления Синтеза Юсефа"}]
[null,9,{"$f":"\"Учитель Синтез Синтеза ИВО, Глава Метагалактического Агентства Информации \"&Территории&\", Управления Синтеза Владомира\"","v":"Учитель Синтез Синтеза ИВО, Глава Метагалактического Агентства Информации Москвы, Управления Синтеза Владомира"}]
["Совет Изначально Вышестоящего Дома Изначально Вышестоящего Отца:",null,null," "]
[null,10,"Ипостась Синтез Синтеза ИВО, Глава Дома Отца Пробуждения ИВО, Управления Синтеза Саввы"]
[null,11,"Ипостась Синтез Синтеза ИВО, Глава Дома Отца Генезиса ИВО, Управления Синтеза Савелия"]
[null,12,"Ипостась Синтез Синтеза ИВО, Глава Дома Отца Человечности ИВО, Управления Синтеза Вильгельма"]
[null,13,"Ипостась Синтез Синтеза ИВО, Глава Дома Отца Служения ИВО, Управления Синтеза Юстаса"]
[null,14,"Ипостась Синтез Синтеза ИВО, Глава Дома Отца Взрастания ИВО, Управления Синтеза Александра"]
[null,15,"Ипостась Синтез Синтеза ИВО, Глава Дома Отца Практики ИВО, Управления Синтеза Яромира"]
[null,16,"Ипостась Синтез Синтеза ИВО, Глава Дома Отца Могущества ИВО, Управления Синтеза Сераписа"]
[null,17,"Ипостась Синтез Синтеза ИВО, Глава Дома Отца Ипостасности ИВО, Управления Синтеза Эдуарда"]
[null,18,"Ипостась Синтез Синтеза ИВО, Глава Дома Отца Пассионарности ИВО, Управления Синтеза Фадея"]
[null,19,"Ипостась Синтез Синтеза ИВО, Глава Дома Отца Истинности ИВО, Управления Синтеза Серафима"]
[null,20,"Ипостась Синтез Синтеза ИВО, Глава Дома Отца Окскости ИВО, Управления Синтеза Святослава"]
[null,21,"Ипостась Синтез Синтеза ИВО, Глава Дома Отца Изначальности ИВО, Управления Синтеза Эоана"]
[null,22,"Ипостась Синтез Синтеза ИВО, Глава Дома Отца Присутствия ИВО, Управления Синтеза Сергея"]
[null,23,"Ипостась Синтез Синтеза ИВО, Глава Дома Отца Изначально Вышестоящей Метагалактики ИВО, Управления Синтеза Сулеймана"]
[null,24,"Ипостась Синтез Синтеза ИВО, Глава Дома Отца Изначальной Метагалактики ИВО, Управления Синтеза Себастьяна"]
[null,25,"Ипостась Синтез Синтеза ИВО, Глава Дома Отца Метагалактики ИВО, Управления Синтеза Теодора"]
[null,26,"Ипостась Синтез Синтеза ИВО, Глава Дома Отца Планеты ИВО, Управления Синтеза Антея"]
[null,27,"Ипостась Синтез Синтеза ИВО, Глава Дома Отца Буддичности Человека ИВО, Управления Синтеза Наума"]
[null,28,"Ипостась Синтез Синтеза ИВО, Глава Дома Отца Всеединой Супергалактики ИВО, Управления Синтеза Велемира"]
[null,29,"Ипостась Синтез Синтеза ИВО, Глава Дома Отца Единой Галактики ИВО, Управления Синтеза Георга"]
[null,30,"Ипостась Синтез Синтеза ИВО, Глава Дома Отца Универсума Солнца ИВО, Управления Синтеза Алексея"]
[null,31,"Ипостась Синтез Синтеза ИВО, Глава Дома Отца Звёздной Вселенной ИВО, Управления Синтеза Эмиля"]
["Основной Состав:",null,null," "]
[null,32,"Служащий Синтез Синтеза Физичности ИВО Управления Синтеза Дария, Ипостась Ипостасного Синтеза ВШС"]
[null,33,"Служащий Синтез Синтеза ИВ Дома Аватара ИВО Управления Синтеза Валентина, Ипостась Профессионального Синтеза ВШС"]
[null,34,"Служащий Синтез Синтеза ИВ Воли ИВО Управления Синтеза Савия, Ипостась Синтеза ИВО ВШС"]
[null,35,"Служащий Синтез Синтеза ИВ Мудрости ИВО Управления Синтеза Вячеслава, Философский Синтез-Секретарь ВШС"]
[null,36,"Служащий Синтез Синтеза ИВ Любви ИВО Управления Синтеза Андрея, Ипостась Сиаматического Совета ИМАН"]
[null,37,"Служащий Синтез Синтеза ИВ Живы ИВО Управления Синтеза Давида, Ипостась Философского Совета ИМАН"]
[null,38,"Служащий Синтез Синтеза ИВ Творения ИВО Управления Синтеза Евгения, Ипостась Учёного Совета ИМАН"]
[null,39,"Служащий Синтез Синтеза ИВ Созидания ИВО Управления Синтеза Дмитрия, Академический Секретарь ИМАН"]
[null,40,"Служащий Синтез Синтеза ИВ Жизни ИВО Управления Синтеза Есения, Ипостась Синтез-Окскости"]
[null,41,"Служащий Синтез Синтеза ИВ Дома Ипостаси ИВО Управления Синтеза Константина, Ипостась Синтез-Ипостасности"]
[null,42,"Служащий Синтез Синтеза ИВ Пробуждения ИВО Управления Синтеза Ростислава, Ипостась Синтез-Метагалактичности"]
[null,43,"Служащий Синтез Синтеза ИВ Генезиса ИВО Управления Синтеза Яна, Изначальный Офис-секретарь ИВ Дома ИВО"]
[null,44,{"$f":"\"Служащий Синтез Синтеза ИВ Человечности ИВО Управления Синтеза Василия, Ипостась \"&Р_М_Совета&\" Совета МГК\"","v":"Служащий Синтез Синтеза ИВ Человечности ИВО Управления Синтеза Василия, Ипостась Регионального Совета МГК"}]
[null,45,{"$f":"\"Служащий Синтез Синтеза ИВ Служения ИВО Управления Синтеза Арсения, Ипостась \"&Р_М_Совета&\" Совета МГК\"","v":"Служащий Синтез Синтеза ИВ Служения ИВО Управления Синтеза Арсения, Ипостась Регионального Совета МГК"}]
[null,46,{"$f":"\"Служащий Синтез Синтеза ИВ Вершения ИВО Управления Синтеза Огюста, \"&Р_М_Совет&\" Ревизор МГК\"","v":"Служащий Синтез Синтеза ИВ Вершения ИВО Управления Синтеза Огюста, Региональный Ревизор МГК"}]
[null,47,{"$f":"\"Служащий Синтез Синтеза ИВ Практики Изначальности ИВО Управления Синтеза Илия, \"&Р_М_Совет&\" Секретарь МГК\"","v":"Служащий Синтез Синтеза ИВ Практики Изначальности ИВО Управления Синтеза Илия, Региональный Секретарь МГК"}]
[null,48,"Служащий Синтез Синтеза ИВ Могущества ИВО Управления Синтеза Геральда, Ипостась Синтез-Генезиса"]
[null,49,"Служащий Синтез Синтеза ИВ Дома Служащего ИВО Управления Синтеза Платона, Ипостась Статус-Синтеза"]
[null,50,"Служащий Синтез Синтеза ИВ Пассионарности Идеи ИВО Управления Синтеза Николая, Ипостась Синтез-Стяжаний"]
[null,51,"Служащий Синтез Синтеза ИВ Истинности Сути ИВО Управления Синтеза Игоря, Праздничный Секретарь ИВ Дома ИВО"]
[null,52,"Служащий Синтез Синтеза ИВ Окскости Смысла ИВО Управления Синтеза Яра, Ипостась Синтез-Практик"]
[null,53,"Служащий Синтез Синтеза ИВ Изначальности Мысли ИВО Управления Синтеза Вадима, Ипостась Синтез-Посвящений"]
[null,54,"Служащий Синтез Синтеза ИВ Метагалактичности Чувств ИВО Управления Синтеза Огнеслава, Ипостась Синтез-Инструментов"]
[null,55,"Служащий Синтез Синтеза ИВ Образа Ощущений ИВО Управления Синтеза Марка, Энергопотенциальный Секретарь ИВ Дома ИВО"]
[null,56,"Служащий Синтез Синтеза ИВ Изначальной Метагалактики Движения ИВО Управления Синтеза Теона, Ипостась Культуры Синтеза"]
[null,57,"Служащий Синтез Синтеза ИВ Дома Посвящённого ИВО Управления Синтеза Трофима, Ипостась Синтеза Жизни"]
[null,58,"Служащий Синтез Синтеза ИВ Духа Частей ИВО Управления Синтеза Емельяна, Ипостась Пассионарного Синтеза"]
[null,59,"Служащий Синтез Синтеза ИВ Света Систем ИВО Управления Синтеза Ефрема, Частный Синтез-Секретарь ИВ Дома ИВО"]
[null,60,"Служащий Синтез Синтеза ИВ Энергии Аппаратов ИВО Управления Синтеза Натана, Ипостась Синтез-Сайта ИВ Дома ИВО"]
[null,61,"Служащий Синтез Синтеза ИВ Субъядерности Частностей ИВО Управления Синтеза Артёма, Ипостась Синтез-Мышления"]
[null,62,"Служащий Синтез Синтеза ИВ Формы Абсолютности ИВО Управления Синтеза Игнатия, Ипостась Пресс-секретарь ИВ Дома ИВО"]
[null,63,"Служащий Синтез Синтеза ИВ Содержания Воскрешения ИВО Управления Синтеза Юлиана, Ипостась Дома Отца Пробуждения ИВО"]
[null,64,"Служащий Синтез Синтеза ИВ Поле Пробуждения ИВО Управления Синтеза Аркадия, Ипостась Дома Отца Пробуждения ИВО"]
[null,65,"Служащий Синтез Синтеза ИВ Дома ИВ Человека ИВО Управления Синтеза Никиты, Ипостась Дома Отца Пробуждения ИВО"]
[null,66,"Служащий Синтез Синтеза Владычества Статусов ИВО Управления Синтеза Олега, Ипостась Дома Отца Генезиса ИВО"]
[null,67,"Служащий Синтез Синтеза Прав Посвящений ИВО Управления Синтеза Владимира, Ипостась Дома Отца Генезиса ИВО"]
[null,68,"Служащий Синтез Синтеза Стратагемии Знаний ИВО Управления Синтеза Стефана, Ипостась Дома Отца Генезиса ИВО"]
[null,69,"Служащий Синтез Синтеза Мочьности Наблюдателя ИВО Управления Синтеза Горислава, Ипостась Дома Отца Человечности ИВО"]
[null,70,"Служащий Синтез Синтеза Голоса Полномочий ИВО Управления Синтеза Никона, Ипостась Дома Отца Человечности ИВО"]
[null,71,"Служащий Синтез Синтеза Интуиции Генезиса Изначально Вышестоящего Отца Управления Синтеза Эрика, Ипостась Дома Отца Человечности ИВО"]
[null,72,"Служащий Синтез Синтеза Парадигмы Отца ИВО Управления Синтеза Олафа, Ипостась Дома Отца Служения ИВО"]
[null,73,"Служащий Синтез Синтеза ИВ Дома Человека ИВО Управления Синтеза Вацлава, Ипостась Дома Отца Служения ИВО"]
[null,74,"Служащий Синтез Синтеза Столпа ИВО Управления Синтеза Левия, Ипостась Дома Отца Служения ИВО"]
[null,75,"Служащий Синтез Синтеза Сутенности ИВО Управления Синтеза Руслана, Ипостась Дома Отца Взрастания ИВО"]
[null,76,"Служащий Синтез Синтеза ИВ Пассионарности ИВО Управления Синтеза Генриха, Ипостась Дома Отца Взрастания ИВО"]
[null,77,"Служащий Синтез Синтеза Чаши ОМ ИВО Управления Синтеза Владлена, Ипостась Дома Отца Взрастания ИВО"]
[null,78,"Служащий Синтез Синтеза Куба Созидания ИВО Управления Синтеза Борислава, Ипостась Дома Отца Практик ИВО"]
[null,79,"Служащий Синтез Синтеза Потенциала ИВО Управления Синтеза Нестора, Ипостась Дома Отца Практик ИВО"]
[null,80,"Служащий Синтез Синтеза Вечности Отца ИВО Управления Синтеза Аристарха, Ипостась Дома Отца Практик ИВО"]
[null,81,"Служащий Синтез Синтеза ИВ Дома Сына ИВО Управления Синтеза Альфреда, Ипостась Дома Отца Могущества ИВО"]
[null,82,"Служащий Синтез Синтеза Веры ИВО Управления Синтеза Егора, Ипостась Дома Отца Могущества ИВО"]
[null,83,"Служащий Синтез Синтеза Рацио ИВО Управления Синтеза Витольда, Ипостась Дома Отца Могущества ИВО"]
[null,84,"Служащий Синтез Синтеза Памяти ИВО Управления Синтеза Стократа, Ипостась Дома Отца Ипостасности ИВО"]
[null,85,"Служащий Синтез Синтеза Прозрения ИВО Управления Синтеза Глеба, Ипостась Дома Отца Ипостасности ИВО"]
[null,86,"Служащий Синтез Синтеза Униграммы ИВО Управления Синтеза Клавдия, Ипостась Дома Отца Ипостасности ИВО"]
[null,87,"Служащий Синтез Синтеза Мерности ИВО Управления Синтеза Теониса, Ипостась Дома Отца Пассионарности ИВО"]
[null,88,"Служащий Синтез Синтеза Заряженности ИВО Управления Синтеза Донана, Ипостась Дома Отца Пассионарности ИВО"]
[null,89,"Служащий Синтез Синтеза ИВ Дома Дочери ИВО Управления Синтеза Альберта, Ипостась Дома Отца Пассионарности ИВО"]
[null,90,"Служащий Синтез Синтеза Образ-типа ИВО Управления Синтеза Степана, Ипостась Дома Отца Истинности ИВО"]
[null,91,"Служащий Синтез Синтеза Сообразительности ИВО Управления Синтеза Арсана, Ипостась Дома Отца Истинности ИВО"]
[null,92,"Служащий Синтез Синтеза Осмысленности ИВО Управления Синтеза Остапа, Ипостась Дома Отца Истинности ИВО"]
[null,93,"Служащий Синтез Синтеза Логики ИВО Управления Синтеза Романа, Ипостась Дома Отца Окскости ИВО"]
[null,94,"Служащий Синтез Синтеза Чувствознания ИВО Управления Синтеза Клима, Ипостась Дома Отца Окскости ИВО"]
[null,95,"Служащий Синтез Синтеза Проницания ИВО Управления Синтеза Петра, Ипостась Дома Отца Окскости ИВО"]
[null,96,"Служащий Синтез Синтеза Активности ИВО Управления Синтеза Макея, Ипостась Дома Отца Изначальности ИВО"]
[null,97,"Служащий Синтез Синтеза ИВ Дома Человека ИМг ИВО Управления Синтеза Аниса, Ипостась Дома Отца Изначальности ИВО"]
[null,98,"Служащий Синтез Синтеза Ипостасного Тела ИВО Управления Синтеза Ара, Ипостась Дома Отца Изначальности ИВО"]
[null,99,"Служащий Синтез Синтеза Истины ИВО Управления Синтеза Дорадия, Ипостась Дома Отца Присутствия ИВО"]
[null,100,"Служащий Синтез Синтеза Око ИВО Управления Синтеза Дора, Ипостась Дома Отца Присутствия ИВО"]
[null,101,"Служащий Синтез Синтеза Хум ИВО Управления Синтеза Понтелея, Ипостась Дома Отца Присутствия ИВО"]
[null,102,"Служащий Синтез Синтеза Абсолют ИВО Управления Синтеза Явира, Ипостась Дома Отца ИВ Мг ИВО"]
[null,103,"Служащий Синтез Синтеза Омега ИВО Управления Синтеза Триса, Ипостась Дома Отца ИВ Мг ИВО"]
[null,104,"Служащий Синтез Синтеза Монада ИВО Управления Синтеза Виктора, Ипостась Дома Отца ИВ Мг ИВО"]
[null,105,"Служащий Синтез Синтеза ИВ Дома Человека Изначальности ИВО Управления Синтеза Визара, Ипостась Дома Отца ИМг ИВО"]
[null,106,"Служащий Синтез Синтеза Физического тела ИВО Управления Синтеза Ерёмы, Ипостась Дома Отца ИМг ИВО"]
[null,107,"Служащий Синтез Синтеза Разума ИВО Управления Синтеза Ираклия, Ипостась Дома Отца ИМг ИВО"]
[null,108,"Служащий Синтез Синтеза Сердца ИВО Управления Синтеза Елизара, Ипостась Дома Отца Метагалактики ИВО"]
[null,109,"Служащий Синтез Синтеза Мышления ИВО Управления Синтеза Градимира, Ипостась Дома Отца Метагалактики ИВО"]
[null,110,"Служащий Синтез Синтеза Головерсума ИВО Управления Синтеза Рустама, Ипостась Дома Отца Метагалактики ИВО"]
[null,111,"Служащий Синтез Синтеза Восприятия ИВО Управления Синтеза Октана, Ипостась Дома Отца Планеты ИВО"]
[null,112,"Служащий Синтез Синтеза Пламени Отца ИВО Управления Синтеза Силуана, Ипостась Дома Отца Планеты ИВО"]
[null,113,"Служащий Синтез Синтеза ИВ Дома Человека Мг ИВО Управления Синтеза Лукьяна, Ипостась Дома Отца Планеты ИВО"]
[null,114,"Служащий Синтез Синтеза Синтезтела ИВО Управления Синтеза Люсьена, Ипостась Дома Отца Буддичности Человека ИВО"]
[null,115,"Служащий Синтез Синтеза Сознания ИВО Управления Синтеза Андриана, Ипостась Дома Отца Буддичности Человека ИВО"]
[null,116,"Служащий Синтез Синтеза Грааля ИВО Управления Синтеза Прокофия, Ипостась Дома Отца Буддичности Человека ИВО"]
[null,117,"Служащий Синтез Синтеза Синтезобраза ИВО Управления Синтеза Зарка, Ипостась Дома Отца Всеединой Супергалактики ИВО"]
[null,118,"Служащий Синтез Синтеза Провидения ИВО Управления Синтеза Станиса, Ипостась Дома Отца Всеединой Супергалактики ИВО"]
[null,119,"Служащий Синтез Синтеза Нить Синтеза ИВО Управления Синтеза Панкрата, Ипостась Дома Отца Всеединой Супергалактики ИВО"]
[null,120,"Служащий Синтез Синтеза Мощи Отца ИВО Управления Синтеза Старка, Ипостась Дома Отца Единой Галактики ИВО"]
[null,121,"Служащий Синтез Синтеза ИВ Дома Человека Планеты ИВО Управления Синтеза Дорофея, Ипостась Дома Отца Единой Галактики ИВО"]
[null,122,"Служащий Синтез Синтеза Трансвизора ИВО Управления Синтеза Якова, Ипостась Дома Отца Единой Галактики ИВО"]
[null,123,"Служащий Синтез Синтеза Интеллекта ИВО Управления Синтеза Ульяна, Ипостась Дома Отца Универсума Солнца ИВО"]
[null,124,"Служащий Синтез Синтеза Престола ИВО Управления Синтеза Германа, Ипостась Дома Отца Универсума Солнца ИВО"]
[null,125,"Служащий Синтез Синтеза Ума ИВО Управления Синтеза Радомира, Ипостась Дома Отца Универсума Солнца ИВО"]
[null,126,"Служащий Синтез Синтеза Души ИВО Управления Синтеза Октавия, Ипостась Дома Отца Звёздной Вселенной ИВО"]
[null,127,"Служащий Синтез Синтеза Слова Отца ИВО Управления Синтеза Кима, Ипостась Дома Отца Звёздной Вселенной ИВО"]
[null,128,"Служащий Синтез Синтеза Образа Отца ИВО Управления Синтеза Бонифация, Ипостась Дома Отца Звёздной Вселенной ИВО"]
["Синтезный Состав:",null,null," "]
[null,129,"Посвящённый Синтез Синтеза 383-Мерностного Синтезтела Изначально Вышестоящего Отца ИВО, Управления Синтеза Фаинь"]
[null,130,"Посвящённый Синтез Синтеза 382-Мерностного Синтезтела Изначально Вышестоящего Аватара ИВО, Управления Синтеза Славии"]
[null,131,"Посвящённый Синтез Синтеза 381-Мерностного Синтезтела Изначально Вышестоящего Владыки ИВО, Управления Синтеза Свет"]
[null,132,"Посвящённый Синтез Синтеза 380-Мерностного Синтезтела Изначально Вышестоящего Учителя ИВО, Управления Синтеза Марины"]
[null,133,"Посвящённый Синтез Синтеза 379-Мерностного Синтезтела Изначально Вышестоящей Ипостаси ИВО, Управления Синтеза Альбины"]
[null,134,"Посвящённый Синтез Синтеза 378-Мерностного Синтезтела Изначально Вышестоящего Служащего ИВО, Управления Синтеза Вероники"]
[null,135,"Посвящённый Синтез Синтеза 377-Мерностного Синтезтела Изначально Вышестоящего Посвящённого ИВО, Управления Синтеза Сианы"]
[null,136,"Посвящённый Синтез Синтеза 376-Мерностного Синтезтела Изначально Вышестоящего Майтрейи ИВО, Управления Синтеза Оны"]
[null,137,"Посвящённый Синтез Синтеза 375-Мерностного Синтезтела Изначально Вышестоящего Христа ИВО, Управления Синтеза Стефании"]
[null,138,"Посвящённый Синтез Синтеза 374-Мерностного Синтезтела Изначально Вышестоящего Будды ИВО, Управления Синтеза Святы"]
[null,139,"Посвящённый Синтез Синтеза 373-Мерностного Синтезтела Изначально Вышестоящего Теурга ИВО, Управления Синтеза Баяны"]
[null,140,"Посвящённый Синтез Синтеза 372-Мерностного Синтезтела Изначально Вышестоящего Творца ИВО, Управления Синтеза Екатерины"]
[null,141,"Посвящённый Синтез Синтеза 371-Мерностного Синтезтела Изначально Вышестоящего Аспекта ИВО, Управления Синтеза Сивиллы"]
[null,142,"Посвящённый Синтез Синтеза 370-Мерностного Синтезтела Изначально Вышестоящего Логоса ИВО, Управления Синтеза Тамилы"]
[null,143,"Посвящённый Синтез Синтеза 369-Мерностного Синтезтела Изначально Вышестоящего Ману ИВО, Управления Синтеза Ники"]
[null,144,"Посвящённый Синтез Синтеза 368-Мерностного Синтезтела Изначально Вышестоящего Человека ИВО, Управления Синтеза Велетте"]
[null,145,"Посвящённый Синтез Синтеза 367-Мерностного Синтезтела Изначально Вышестоящего ИВ Человека ИВО, Управления Синтеза Эмилии"]
[null,146,"Посвящённый Синтез Синтеза 366-Мерностного Синтезтела Изначально Вышестоящего Человека Изначальности ИВО, Управления Синтеза Елены"]
[null,147,"Посвящённый Синтез Синтеза 365-Мерностного Синтезтела Изначально Вышестоящего Сына ИВО, Управления Синтеза Валерии"]
[null,148,"Посвящённый Синтез Синтеза 364-Мерностного Синтезтела Изначально Вышестоящей Дочери ИВО, Управления Синтеза Олеси"]
[null,149,"Посвящённый Синтез Синтеза 363-Мерностного Синтезтела ИВ Человека ИВ Метагалактики ИВО, Управления Синтеза Антуанетты"]
[null,150,"Посвящённый Синтез Синтеза 362-Мерностного Синтезтела ИВ Человека Изначальной Метагалактики ИВО, Управления Синтеза Юлианы"]
[null,151,"Посвящённый Синтез Синтеза 361-Мерностного Синтезтела Изначально Вышестоящего Человека Метагалактики ИВОтца, Управления Синтеза Синтии"]
[null,152,"Посвящённый Синтез Синтеза 360-Мерностного Синтезтела Изначально Вышестоящей Матери ИВО, Управления Синтеза Виктории"]
[null,153,"Посвящённый Синтез Синтеза 359-Мерностного Синтезтела Изначально Вышестоящего Праведника ИВО, Управления Синтеза Дариды"]
[null,154,"Посвящённый Синтез Синтеза 358-Мерностного Синтезтела Изначально Вышестоящего Неизречённого ИВО, Управления Синтеза Алины"]
[null,155,"Посвящённый Синтез Синтеза 357-Мерностного Синтезтела Изначально Вышестоящего Всемогущего ИВО, Управления Синтеза Софьи"]
[null,156,"Посвящённый Синтез Синтеза 356-Мерностного Синтезтела Изначально Вышестоящего Предвечного ИВО, Управления Синтеза Агафьи"]
[null,157,"Посвящённый Синтез Синтеза 355-Мерностного Синтезтела Изначально Вышестоящего Предначального ИВО, Управления Синтеза Дарьи"]
[null,158,"Посвящённый Синтез Синтеза 354-Мерностного Синтезтела Изначально Вышестоящего Вседержителя ИВО, Управления Синтеза Иланы"]
[null,159,"Посвящённый Синтез Синтеза 353-Мерностного Синтезтела Изначально Вышестоящего Всевышнего ИВО, Управления Синтеза Яны"]
[null,160,"Посвящённый Синтез Синтеза 352-Мерностного Синтезтела Изначально Вышестоящего Человека Планеты ИВО, Управления Синтеза Давлаты"]
[null,161,"Посвящённый Синтез Синтеза 351-Мерностного Синтезтела Отца Изначальной Метагалактики ИВО, Управления Синтеза Ирины"]
[null,162,"Посвящённый Синтез Синтеза 350-Мерностного Синтезтела Аватара Изначальной Метагалактики ИВО, Управления Синтеза Лины"]
[null,163,"Посвящённый Синтез Синтеза 349-Мерностного Синтезтела Владыки Изначальной Метагалактики ИВО, Управления Синтеза Анастасии"]
[null,164,"Посвящённый Синтез Синтеза 348-Мерностного Синтезтела Учителя Изначальной Метагалактики ИВО, Управления Синтеза Омы"]
[null,165,"Посвящённый Синтез Синтеза 347-Мерностного Синтезтела Ипостаси Изначальной Метагалактики ИВО, Управления Синтеза Сольвейг"]
[null,166,"Посвящённый Синтез Синтеза 346-Мерностного Синтезтела Служащего Изначальной Метагалактики ИВО, Управления Синтеза Октавии"]
[null,167,"Посвящённый Синтез Синтеза 345-Мерностного Синтезтела Посвящённого Изначальной Метагалактики ИВО, Управления Синтеза Кристины"]
[null,168,"Посвящённый Синтез Синтеза 344-Мерностного Синтезтела Майтрейи Изначальной Метагалактики ИВО, Управления Синтеза Версавии"]
[null,169,"Посвящённый Синтез Синтеза 343-Мерностного Синтезтела Христа Изначальной Метагалактики ИВО, Управления Синтеза Ксении"]
[null,170,"Посвящённый Синтез Синтеза 342-Мерностного Синтезтела Будду Изначальной Метагалактики ИВО, Управления Синтеза Эммы"]
[null,171,"Посвящённый Синтез Синтеза 341-Мерностного Синтезтела Теурга Изначальной Метагалактики ИВО, Управления Синтеза Стафии"]
[null,172,"Посвящённый Синтез Синтеза 340-Мерностного Синтезтела Творца Изначальной Метагалактики ИВО, Управления Синтеза Оксаны"]
[null,173,"Посвящённый Синтез Синтеза 339-Мерностного Синтезтела Аспекта Изначальной Метагалактики ИВО, Управления Синтеза Ульяны"]
[null,174,"Посвящённый Синтез Синтеза 338-Мерностного Синтезтела Логоса Изначальной Метагалактики ИВО, Управления Синтеза Беатрисс"]
[null,175,"Посвящённый Синтез Синтеза 337-Мерностного Синтезтела Ману Изначальной Метагалактики ИВО, Управления Синтеза Оливии"]
[null,176,"Посвящённый Синтез Синтеза 336-Мерностного Синтезтела Человека ИВО Изначальной Метагалактики, Управления Синтеза Аллы"]
[null,177,"Посвящённый Синтез Синтеза 335-Мерностного Синтезтела ИВ Человека ИВО Изначальной Метагалактики, Управления Синтеза Натали"]
[null,178,"Посвящённый Синтез Синтеза 334-Мерностного Синтезтела Человека Изначальности ИВО Изначальной Метагалактики, Управления Синтеза Эвы"]
[null,179,"Посвящённый Синтез Синтеза 333-Мерностного Синтезтела Сына Изначальной Метагалактики ИВО, Управления Синтеза Ланы"]
[null,180,"Посвящённый Синтез Синтеза 332-Мерностного Синтезтела Дочери Изначальной Метагалактики ИВО, Управления Синтеза Одель"]
[null,181,"Посвящённый Синтез Синтеза 331-Мерностного Синтезтела Человека ИВ Метагалактики Изначальной Метагалактики ИВО, Управления Синтеза Тамары"]
[null,182,"Посвящённый Синтез Синтеза 330-Мерностного Синтезтела Человека Изначальной Метагалактики ИВОтца, Управления Синтеза Нины"]
[null,183,"Посвящённый Синтез Синтеза 329-Мерностного Синтезтела Человека Метагалактики Изначальной Метагалактики ИВО, Управления Синтеза Орфеи"]
[null,184,"Посвящённый Синтез Синтеза 328-Мерностного Синтезтела Матери Изначальной Метагалактики ИВО, Управления Синтеза Вергилии"]
[null,185,"Посвящённый Синтез Синтеза 327-Мерностного Синтезтела Праведника Изначальной Метагалактики ИВО, Управления Синтеза Василисы"]
[null,186,"Посвящённый Синтез Синтеза 326-Мерностного Синтезтела Неизречённого Изначальной Метагалактики ИВО, Управления Синтеза Варвары"]
[null,187,"Посвящённый Синтез Синтеза 325-Мерностного Синтезтела Всемогущего Изначальной Метагалактики ИВО, Управления Синтеза Арины"]
[null,188,"Посвящённый Синтез Синтеза 324-Мерностного Синтезтела Предвечного Изначальной Метагалактики ИВО, Управления Синтеза Амалии"]
[null,189,"Посвящённый Синтез Синтеза 323-Мерностного Синтезтела Предначального Изначальной Метагалактики ИВО, Управления Синтеза Елизаветы"]
[null,190,"Посвящённый Синтез Синтеза 322-Мерностного Синтезтела Вседержителя Изначальной Метагалактики ИВО, Управления Синтеза Веры"]
[null,191,"Посвящённый Синтез Синтеза 321-Мерностного Синтезтела Всевышнего Изначальной Метагалактики ИВО, Управления Синтеза Мирославы"]
[null,192,"Посвящённый Синтез Синтеза 320-Мерностного Синтезтела Человека Планеты Изначальной Метагалактики ИВО, Управления Синтеза Даяны"]
[null,193,"Посвящённый Синтез Синтеза 319-Мерностного Синтезтела Отца Изначальности ИВО, Управления Синтеза Стеллы"]
[null,194,"Посвящённый Синтез Синтеза 318-Мерностного Синтезтела Аватара Изначальности ИВО, Управления Синтеза Доры"]
[null,195,"Посвящённый Синтез Синтеза 317-Мерностного Синтезтела Владыки Изначальности ИВО, Управления Синтеза Клавдии"]
[null,196,"Посвящённый Синтез Синтеза 316-Мерностного Синтезтела Учителя Изначальности ИВО, Управления Синтеза Лады"]
[null,197,"Посвящённый Синтез Синтеза 315-Мерностного Синтезтела Ипостаси Изначальности ИВО, Управления Синтеза Ветты"]
[null,198,"Посвящённый Синтез Синтеза 314-Мерностного Синтезтела Служащего Изначальности ИВО, Управления Синтеза Власты"]
[null,199,"Посвящённый Синтез Синтеза 313-Мерностного Синтезтела Посвящённого Изначальности ИВО, Управления Синтеза Офелии"]
[null,200,"Посвящённый Синтез Синтеза 312-Мерностного Синтезтела Майтрейи Изначальности ИВО, Управления Синтеза Данаи"]
[null,201,"Посвящённый Синтез Синтеза 311-Мерностного Синтезтела Христа Изначальности ИВО, Управления Синтеза Ханны"]
[null,202,"Посвящённый Синтез Синтеза 310-Мерностного Синтезтела Будды Изначальности ИВО, Управления Синтеза Хлои"]
[null,203,"Посвящённый Синтез Синтеза 309-Мерностного Синтезтела Теурга Изначальности ИВО, Управления Синтеза Надежды"]
[null,204,"Посвящённый Синтез Синтеза 308-Мерностного Синтезтела Творца Изначальности ИВО, Управления Синтеза Оллы"]
[null,205,"Посвящённый Синтез Синтеза 307-Мерностного Синтезтела Аспекта Изначальности ИВО, Управления Синтеза Илоны"]
[null,206,"Посвящённый Синтез Синтеза 306-Мерностного Синтезтела Логоса Изначальности ИВО, Управления Синтеза Генриетты"]
[null,207,"Посвящённый Синтез Синтеза 305-Мерностного Синтезтела Ману Изначальности ИВО, Управления Синтеза Марии"]
[null,208,"Посвящённый Синтез Синтеза 304-Мерностного Синтезтела Человек ИВО Изначальности, Управления Синтеза Глории"]
[null,209,"Посвящённый Синтез Синтеза 303-Мерностного Синтезтела ИВЧеловека ИВО Изначальности, Управления Синтеза Констанции"]
[null,210,"Посвящённый Синтез Синтеза 302-Мерностного Синтезтела Человека Изначальности ИВО, Управления Синтеза Стэвии"]
[null,211,"Посвящённый Синтез Синтеза 301-Мерностного Синтезтела Сына Изначальности ИВО, Управления Синтеза Полины"]
[null,212,"Посвящённый Синтез Синтеза 300-Мерностного Синтезтела Дочери Изначальности ИВО, Управления Синтеза Виры"]
[null,213,"Посвящённый Синтез Синтеза 299-Мерностного Синтезтела Человека ИВ Метагалактики Изначальности ИВО, Управления Синтеза Фанны"]
[null,214,"Посвящённый Синтез Синтеза 298-Мерностного Синтезтела Человека Изначальной Метагалактики Изначальности ИВО, Управления Синтеза Евгении"]
[null,215,"Посвящённый Синтез Синтеза 297-Мерностного Синтезтела Человека Метагалактики Изначальности ИВО, Управления Синтеза Элины"]
[null,216,"Посвящённый Синтез Синтеза 296-Мерностного Синтезтела Матери Изначальности ИВО, Управления Синтеза Сары"]
[null,217,"Посвящённый Синтез Синтеза 295-Мерностного Синтезтела Праведника Изначальности ИВО, Управления Синтеза Алевтины"]
[null,218,"Посвящённый Синтез Синтеза 294-Мерностного Синтезтела Неизречённого Изначальности ИВО, Управления Синтеза Раисы"]
[null,219,"Посвящённый Синтез Синтеза 293-Мерностного Синтезтела Всемогущего Изначальности ИВО, Управления Синтеза Авроры"]
[null,220,"Посвящённый Синтез Синтеза 292-Мерностного Синтезтела Предвечного Изначальности ИВО, Управления Синтеза Диланы"]
[null,221,"Посвящённый Синтез Синтеза 291-Мерностного Синтезтела Предначального Изначальности ИВО, Управления Синтеза Яси"]
[null,222,"Посвящённый Синтез Синтеза 290-Мерностного Синтезтела Вседержителя Изначальности ИВО, Управления Синтеза Фиры"]
[null,223,"Посвящённый Синтез Синтеза 289-Мерностного Синтезтела Всевышнего Изначальности ИВО, Управления Синтеза Омелии"]
[null,224,"Посвящённый Синтез Синтеза 288-Мерностного Синтезтела Человека Планеты Изначальности ИВО, Управления Синтеза Мадлен"]
[null,225,"Посвящённый Синтез Синтеза 287-Мерностного Синтезтела Отца Метагалактики ИВО, Управления Синтеза Риммы"]
[null,226,"Посвящённый Синтез Синтеза 286-Мерностного Синтезтела Аватара Метагалактики ИВО, Управления Синтеза Беллы"]
[null,227,"Посвящённый Синтез Синтеза 285-Мерностного Синтезтела Владыки Метагалактики ИВО, Управления Синтеза Агнии"]
[null,228,"Посвящённый Синтез Синтеза 284-Мерностного Синтезтела Учителя Метагалактики ИВО, Управления Синтеза Фелиции"]
[null,229,"Посвящённый Синтез Синтеза 283-Мерностного Синтезтела Ипостаси Метагалактики ИВО, Управления Синтеза Виталины"]
[null,230,"Посвящённый Синтез Синтеза 282-Мерностного Синтезтела Служащего Метагалактики ИВО, Управления Синтеза Ноны"]
[null,231,"Посвящённый Синтез Синтеза 281-Мерностного Синтезтела Посвящённого Метагалактики ИВО, Управления Синтеза Клементины"]
[null,232,"Посвящённый Синтез Синтеза 280-Мерностного Синтезтела Майтрейи Метагалактики ИВО, Управления Синтеза Лиры"]
[null,233,"Посвящённый Синтез Синтеза 279-Мерностного Синтезтела Христа Метагалактики ИВО, Управления Синтеза Ванессы"]
[null,234,"Посвящённый Синтез Синтеза 278-Мерностного Синтезтела Будды Метагалактики ИВО, Управления Синтеза Евдокии"]
[null,235,"Посвящённый Синтез Синтеза 277-Мерностного Синтезтела Теурга Метагалактики ИВО, Управления Синтеза Клары"]
[null,236,"Посвящённый Синтез Синтеза 276-Мерностного Синтезтела Творца Метагалактики ИВО, Управления Синтеза Лизы"]
[null,237,"Посвящённый Синтез Синтеза 275-Мерностного Синтезтела Аспекта Метагалактики ИВО, Управления Синтеза Сюзанны"]
[null,238,"Посвящённый Синтез Синтеза 274-Мерностного Синтезтела Логоса Метагалактики ИВО, Управления Синтеза Сейлы"]
[null,239,"Посвящённый Синтез Синтеза 273-Мерностного Синтезтела Ману Метагалактики ИВО, Управления Синтеза Русланы"]
[null,240,"Посвящённый Синтез Синтеза 272-Мерностного Синтезтела Человека ИВО Метагалактики, Управления Синтеза Устины"]
[null,241,"Посвящённый Синтез Синтеза 271-Мерностного Синтезтела ИВЧеловека ИВО Метагалактики, Управления Синтеза Марики"]
[null,242,"Посвящённый Синтез Синтеза 270-Мерностного Синтезтела Человека Изначальности ИВО Метагалактики, Управления Синтеза Франсуазы"]
[null,243,"Посвящённый Синтез Синтеза 269-Мерностного Синтезтела Сына Метагалактики ИВО, Управления Синтеза Христины"]
[null,244,"Посвящённый Синтез Синтеза 268-Мерностного Синтезтела Дочери Метагалактики ИВО, Управления Синтеза Иоланы"]
[null,245,"Посвящённый Синтез Синтеза 267-Мерностного Синтезтела Человека ИВ Метагалактики ИВО Метагалактики, Управления Синтеза Джесики"]
[null,246,"Посвящённый Синтез Синтеза 266-Мерностного Синтезтела Человека Изначальной Метагалактики ИВО Метагалактики, Управления Синтеза Сабины"]
[null,247,"Посвящённый Синтез Синтеза 265-Мерностного Синтезтела Человека Метагалактики ИВО, Управления Синтеза Нелли"]
[null,248,"Посвящённый Синтез Синтеза 264-Мерностного Синтезтела Матери Метагалактики ИВО, Управления Синтеза Санты"]
[null,249,"Посвящённый Синтез Синтеза 263-Мерностного Синтезтела Праведника Метагалактики ИВО, Управления Синтеза Доротеи"]
[null,250,"Посвящённый Синтез Синтеза 262-Мерностного Синтезтела Неизречённого Метагалактики ИВО, Управления Синтеза Янины"]
[null,251,"Посвящённый Синтез Синтеза 261-Мерностного Синтезтела Всемогущего Метагалактики ИВО, Управления Синтеза Люции"]
[null,252,"Посвящённый Синтез Синтеза 260-Мерностного Синтезтела Предвечного Метагалактики ИВО, Управления Синтеза Ирэн"]
[null,253,"Посвящённый Синтез Синтеза 259-Мерностного Синтезтела Предначального Метагалактики ИВО, Управления Синтеза Сесилии"]
[null,254,"Посвящённый Синтез Синтеза 258-Мерностного Синтезтела Вседержителя Метагалактики ИВО, Управления Синтеза Вериславы"]
[null,255,"Посвящённый Синтез Синтеза 257-Мерностного Синтезтела Всевышнего Метагалактики ИВО, Управления Синтеза Станиславы"]
[null,256,"Посвящённый Синтез Синтеза 256-Мерностного Синтезтела Человека Планеты Метагалактики ИВО, Управления Синтеза Милославы"]

{"sheet":"Здание","index":2,"n_rows":261,"n_cols":4,"rows_kept":261,"cut":false,"hidden":false,"merged":[[4,2,4,3],[0,2,0,3]]}
[null,null,{"$f":"\"Здание \"&Наименование_Подразделения&\" \"&Изначальность&\" Изначальности, \"&Территория &\"\nна 1 вышестоящем Присутствии \" &Изначальность & \" Изначальности\"","v":"Здание Изначально Вышестоящий Дом ИВО 512 Изначальности, Москва\nна 1 вышестоящем Присутствии 512 Изначальности"}]
[]
[null,null,"Залы Иерархов ИВДИВО","Залы и кабинеты Ипостасных в Здании"]
[]
[null,null,"Зал Изначально Вышестоящего Отца"]
[256,null,{"$f":"\"Зал и кабинет \"&справочники!R2&\"\nЗал и кабинет Изначального Владыки ИВО \"&справочники!K2","v":"Зал и кабинет  ИВ Отец ИВО \nЗал и кабинет Изначального Владыки ИВО Кут Хуми"},{"$f":"IF(Ипостасные!D16=\"\",\"\", \"Зал и кабинет \"&Ипостасные!C16&\" \"&Ипостасные!D16)&\"\nЗал Совета ИВО\nЗал Совета ИВДИВО\"","v":"\nЗал Совета ИВО\nЗал Совета ИВДИВО"}]
[255,null,{"$f":"\"Зал и кабинет \"&справочники!R3&\"\nЗал и кабинет Изначального Владыки ИВО \"&справочники!K3","v":"Зал и кабинет  ИВ Аватар ИВО \nЗал и кабинет Изначального Владыки ИВО Иосифа"},{"$f":"IF(Ипостасные!D17=\"\",\"\", \"Зал и кабинет \"&Ипостасные!C17&\" \"&Ипостасные!D17)","v":""}]
[254,null,{"$f":"\"Зал и кабинет \"&справочники!R4&\"\nЗал и кабинет Изначального Владыки ИВО \"&справочники!K4","v":"Зал и кабинет  ИВ Владыка ИВ \nЗал и кабинет Изначального Владыки ИВО Мории"},{"$f":"IF(Ипостасные!D18=\"\",\"\", \"Зал и кабинет \"&Ипостасные!C18&\" \"&Ипостасные!D18)","v":""}]
[253,null,{"$f":"\"Зал и кабинет \"&справочники!R5&\"\nЗал и кабинет Изначального Владыки ИВО \"&справочники!K5","v":"Зал и кабинет  ИВ Учитель ИВО \nЗал и кабинет Изначального Владыки ИВО Филиппа"},{"$f":"IF(Ипостасные!D19=\"\",\"\", \"Зал и кабинет \"&Ипостасные!C19&\" \"&Ипостасные!D19)","v":""}]
[252,null,{"$f":"\"Зал и кабинет \"&справочники!R6&\"\nЗал и кабинет Изначального Владыки ИВО \"&справочники!K6","v":"Зал и кабинет  ИВ Ипостась ИВО \nЗал и кабинет Изначального Владыки ИВО Византия"},{"$f":"IF(Ипостасные!D20=\"\",\"\", \"Зал и кабинет \"&Ипостасные!C20&\" \"&Ипостасные!D20)","v":""}]
[251,null,{"$f":"\"Зал и кабинет \"&справочники!R7&\"\nЗал и кабинет Изначального Владыки ИВО \"&справочники!K7","v":"Зал и кабинет  ИВ Ипостась ИВ Служащий ИВО \nЗал и кабинет Изначального Владыки ИВО Янова"},{"$f":"IF(Ипостасные!D21=\"\",\"\", \"Зал и кабинет \"&Ипостасные!C21&\" \"&Ипостасные!D21)","v":""}]
[250,null,{"$f":"\"Зал и кабинет \"&справочники!R8&\"\nЗал и кабинет Изначального Владыки ИВО \"&справочники!K8","v":"Зал и кабинет  ИВ Ипостась ИВ Посвящённый ИВО \nЗал и кабинет Изначального Владыки ИВО Юлия"},{"$f":"IF(Ипостасные!D22=\"\",\"\", \"Зал и кабинет \"&Ипостасные!C22&\" \"&Ипостасные!D22)","v":""}]
[249,null,{"$f":"\"Зал и кабинет \"&справочники!R9&\"\nЗал и кабинет Изначального Владыки ИВО \"&справочники!K9","v":"Зал и кабинет  ИВ Ипостась ИВ Майтрейя ИВО \nЗал и кабинет Изначального Владыки ИВО Юсефа"},{"$f":"IF(Ипостасные!D23=\"\",\"\", \"Зал и кабинет \"&Ипостасные!C23&\" \"&Ипостасные!D23)","v":""}]
[248,null,{"$f":"\"Зал и кабинет \"&справочники!R10&\"\nЗал и кабинет Изначального Владыки ИВО \"&справочники!K10","v":"Зал и кабинет  ИВ Ипостась ИВ Христос ИВО \nЗал и кабинет Изначального Владыки ИВО Владомира"},{"$f":"IF(Ипостасные!D24=\"\",\"\", \"Зал и кабинет \"&Ипостасные!C24&\" \"&Ипостасные!D24)","v":""}]
[247,null,{"$f":"\"Зал и кабинет \"&справочники!R11&\"\nЗал и кабинет Изначального Владыки ИВО \"&справочники!K11","v":"Зал и кабинет  ИВ Ипостась ИВ Будда ИВО \nЗал и кабинет Изначального Владыки ИВО Саввы"},{"$f":"IF(Ипостасные!D26=\"\",\"\", \"Зал и кабинет \"&Ипостасные!C26&\" \"&Ипостасные!D26)","v":""}]
[246,null,{"$f":"\"Зал и кабинет \"&справочники!R12&\"\nЗал и кабинет Изначального Владыки ИВО \"&справочники!K12","v":"Зал и кабинет  ИВ Ипостась ИВ Теург ИВО \nЗал и кабинет Изначального Владыки ИВО Савелия"},{"$f":"IF(Ипостасные!D27=\"\",\"\", \"Зал и кабинет \"&Ипостасные!C27&\" \"&Ипостасные!D27)","v":""}]
[245,null,{"$f":"\"Зал и кабинет \"&справочники!R13&\"\nЗал и кабинет Изначального Владыки ИВО \"&справочники!K13","v":"Зал и кабинет  ИВ Ипостась ИВ Творец ИВО \nЗал и кабинет Изначального Владыки ИВО Вильгельма"},{"$f":"IF(Ипостасные!D28=\"\",\"\", \"Зал и кабинет \"&Ипостасные!C28&\" \"&Ипостасные!D28)","v":""}]
[244,null,{"$f":"\"Зал и кабинет \"&справочники!R14&\"\nЗал и кабинет Изначального Владыки ИВО \"&справочники!K14","v":"Зал и кабинет  ИВ Ипостась ИВ Аспект ИВО \nЗал и кабинет Изначального Владыки ИВО Юстаса"},{"$f":"IF(Ипостасные!D29=\"\",\"\", \"Зал и кабинет \"&Ипостасные!C29&\" \"&Ипостасные!D29)","v":""}]
[243,null,{"$f":"\"Зал и кабинет \"&справочники!R15&\"\nЗал и кабинет Изначального Владыки ИВО \"&справочники!K15","v":"Зал и кабинет  ИВ Ипостась ИВ Логос ИВО \nЗал и кабинет Изначального Владыки ИВО Александра"},{"$f":"IF(Ипостасные!D30=\"\",\"\", \"Зал и кабинет \"&Ипостасные!C30&\" \"&Ипостасные!D30)","v":""}]
[242,null,{"$f":"\"Зал и кабинет \"&справочники!R16&\"\nЗал и кабинет Изначального Владыки ИВО \"&справочники!K16","v":"Зал и кабинет  ИВ Ипостась ИВ Ману ИВО \nЗал и кабинет Изначального Владыки ИВО Яромира"},{"$f":"IF(Ипостасные!D31=\"\",\"\", \"Зал и кабинет \"&Ипостасные!C31&\" \"&Ипостасные!D31)","v":""}]
[241,null,{"$f":"\"Зал и кабинет \"&справочники!R17&\"\nЗал и кабинет Изначального Владыки ИВО \"&справочники!K17","v":"Зал и кабинет  ИВ Ипостась ИВ Человек ИВО \nЗал и кабинет Изначального Владыки ИВО Сераписа"},{"$f":"IF(Ипостасные!D32=\"\",\"\", \"Зал и кабинет \"&Ипостасные!C32&\" \"&Ипостасные!D32)","v":""}]
[240,null,{"$f":"\"Зал и кабинет \"&справочники!R18&\"\nЗал и кабинет Изначального Владыки ИВО \"&справочники!K18","v":"Зал и кабинет  ИВ Ипостась ИВ ИВЧеловек ИВО \nЗал и кабинет Изначального Владыки ИВО Эдуарда"},{"$f":"IF(Ипостасные!D33=\"\",\"\", \"Зал и кабинет \"&Ипостасные!C33&\" \"&Ипостасные!D33)","v":""}]
[239,null,{"$f":"\"Зал и кабинет \"&справочники!R19&\"\nЗал и кабинет Изначального Владыки ИВО \"&справочники!K19","v":"Зал и кабинет  ИВ Ипостась ИВ Человек Изначальности ИВО \nЗал и кабинет Изначального Владыки ИВО Фадея"},{"$f":"IF(Ипостасные!D34=\"\",\"\", \"Зал и кабинет \"&Ипостасные!C34&\" \"&Ипостасные!D34)","v":""}]
[238,null,{"$f":"\"Зал и кабинет \"&справочники!R20&\"\nЗал и кабинет Изначального Владыки ИВО \"&справочники!K20","v":"Зал и кабинет  ИВ Ипостась ИВ Сын ИВО \nЗал и кабинет Изначального Владыки ИВО Серафима"},{"$f":"IF(Ипостасные!D35=\"\",\"\", \"Зал и кабинет \"&Ипостасные!C35&\" \"&Ипостасные!D35)","v":""}]
[237,null,{"$f":"\"Зал и кабинет \"&справочники!R21&\"\nЗал и кабинет Изначального Владыки ИВО \"&справочники!K21","v":"Зал и кабинет  ИВ Ипостась ИВ Дочь ИВО \nЗал и кабинет Изначального Владыки ИВО Святослава"},{"$f":"IF(Ипостасные!D36=\"\",\"\", \"Зал и кабинет \"&Ипостасные!C36&\" \"&Ипостасные!D36)","v":""}]
[236,null,{"$f":"\"Зал и кабинет \"&справочники!R22&\"\nЗал и кабинет Изначального Владыки ИВО \"&справочники!K22","v":"Зал и кабинет  ИВ Ипостась ИВ Человек ИВ Мг ИВО \nЗал и кабинет Изначального Владыки ИВО Эоана"},{"$f":"IF(Ипостасные!D37=\"\",\"\", \"Зал и кабинет \"&Ипостасные!C37&\" \"&Ипостасные!D37)","v":""}]
[235,null,{"$f":"\"Зал и кабинет \"&справочники!R23&\"\nЗал и кабинет Изначального Владыки ИВО \"&справочники!K23","v":"Зал и кабинет  ИВ Ипостась ИВ Человек Изначальной Мг ИВО \nЗал и кабинет Изначального Владыки ИВО Сергея"},{"$f":"IF(Ипостасные!D38=\"\",\"\", \"Зал и кабинет \"&Ипостасные!C38&\" \"&Ипостасные!D38)","v":""}]
[234,null,{"$f":"\"Зал и кабинет \"&справочники!R24&\"\nЗал и кабинет Изначального Владыки ИВО \"&справочники!K24","v":"Зал и кабинет  ИВ Ипостась ИВ Человек Мг ИВО \nЗал и кабинет Изначального Владыки ИВО Сулеймана"},{"$f":"IF(Ипостасные!D39=\"\",\"\", \"Зал и кабинет \"&Ипостасные!C39&\" \"&Ипостасные!D39)","v":""}]
[233,null,{"$f":"\"Зал и кабинет \"&справочники!R25&\"\nЗал и кабинет Изначального Владыки ИВО \"&справочники!K25","v":"Зал и кабинет  ИВ Ипостась ИВ Мать ИВО \nЗал и кабинет Изначального Владыки ИВО Себастьяна"},{"$f":"IF(Ипостасные!D40=\"\",\"\", \"Зал и кабинет \"&Ипостасные!C40&\" \"&Ипостасные!D40)","v":""}]
[232,null,{"$f":"\"Зал и кабинет \"&справочники!R26&\"\nЗал и кабинет Изначального Владыки ИВО \"&справочники!K26","v":"Зал и кабинет  ИВ Ипостась ИВ Праведник ИВО \nЗал и кабинет Изначального Владыки ИВО Теодора"},{"$f":"IF(Ипостасные!D41=\"\",\"\", \"Зал и кабинет \"&Ипостасные!C41&\" \"&Ипостасные!D41)","v":""}]
[231,null,{"$f":"\"Зал и кабинет \"&справочники!R27&\"\nЗал и кабинет Изначального Владыки ИВО \"&справочники!K27","v":"Зал и кабинет  ИВ Ипостась ИВ Неизречённый ИВО \nЗал и кабинет Изначального Владыки ИВО Антея"},{"$f":"IF(Ипостасные!D42=\"\",\"\", \"Зал и кабинет \"&Ипостасные!C42&\" \"&Ипостасные!D42)","v":""}]
[230,null,{"$f":"\"Зал и кабинет \"&справочники!R28&\"\nЗал и кабинет Изначального Владыки ИВО \"&справочники!K28","v":"Зал и кабинет  ИВ Ипостась ИВ Всемогущий ИВО \nЗал и кабинет Изначального Владыки ИВО Наума"},{"$f":"IF(Ипостасные!D43=\"\",\"\", \"Зал и кабинет \"&Ипостасные!C43&\" \"&Ипостасные!D43)","v":""}]
[229,null,{"$f":"\"Зал и кабинет \"&справочники!R29&\"\nЗал и кабинет Изначального Владыки ИВО \"&справочники!K29","v":"Зал и кабинет  ИВ Ипостась ИВ Предвечный ИВО \nЗал и кабинет Изначального Владыки ИВО Велемира"},{"$f":"IF(Ипостасные!D44=\"\",\"\", \"Зал и кабинет \"&Ипостасные!C44&\" \"&Ипостасные!D44)","v":""}]
[228,null,{"$f":"\"Зал и кабинет \"&справочники!R30&\"\nЗал и кабинет Изначального Владыки ИВО \"&справочники!K30","v":"Зал и кабинет  ИВ Ипостась ИВ Предначальный ИВО \nЗал и кабинет Изначального Владыки ИВО Георга"},{"$f":"IF(Ипостасные!D45=\"\",\"\", \"Зал и кабинет \"&Ипостасные!C45&\" \"&Ипостасные!D45)","v":""}]
[227,null,{"$f":"\"Зал и кабинет \"&справочники!R31&\"\nЗал и кабинет Изначального Владыки ИВО \"&справочники!K31","v":"Зал и кабинет  ИВ Ипостась ИВ Вседержитель ИВО \nЗал и кабинет Изначального Владыки ИВО Алексея"},{"$f":"IF(Ипостасные!D46=\"\",\"\", \"Зал и кабинет \"&Ипостасные!C46&\" \"&Ипостасные!D46)","v":""}]
[226,null,{"$f":"\"Зал и кабинет \"&справочники!R32&\"\nЗал и кабинет Изначального Владыки ИВО \"&справочники!K32","v":"Зал и кабинет  ИВ Ипостась ИВ Всевышний ИВО \nЗал и кабинет Изначального Владыки ИВО Эмиля"},{"$f":"IF(Ипостасные!D47=\"\",\"\", \"Зал и кабинет \"&Ипостасные!C47&\" \"&Ипостасные!D47)","v":""}]
[225,null,{"$f":"\"Зал и кабинет \"&справочники!R33&\"\nЗал и кабинет Изначального Владыки ИВО \"&справочники!K33","v":"Зал и кабинет  ИВ Ипостась ИВ Человек Планеты ИВО \nЗал и кабинет Изначального Владыки ИВО Дария"},{"$f":"IF(Ипостасные!D49=\"\",\"\", \"Зал и кабинет \"&Ипостасные!C49&\" \"&Ипостасные!D49)","v":""}]
[224,null,{"$f":"\"Зал и кабинет \"&справочники!R34&\"\nЗал и кабинет Изначального Владыки ИВО \"&справочники!K34","v":"Зал и кабинет  ИВ Ипостась ИВ Дом Аватара ИВО \nЗал и кабинет Изначального Владыки ИВО Валентина"},{"$f":"IF(Ипостасные!D50=\"\",\"\", \"Зал и кабинет \"&Ипостасные!C50&\" \"&Ипостасные!D50)","v":""}]
[223,null,{"$f":"\"Зал и кабинет \"&справочники!R35&\"\nЗал и кабинет Изначального Владыки ИВО \"&справочники!K35","v":"Зал и кабинет  ИВ Ипостась ИВ Воля ИВО \nЗал и кабинет Изначального Владыки ИВО Савия"},{"$f":"IF(Ипостасные!D51=\"\",\"\", \"Зал и кабинет \"&Ипостасные!C51&\" \"&Ипостасные!D51)","v":""}]
[222,null,{"$f":"\"Зал и кабинет \"&справочники!R36&\"\nЗал и кабинет Изначального Владыки ИВО \"&справочники!K36","v":"Зал и кабинет  ИВ Ипостась ИВ Мудрость ИВО \nЗал и кабинет Изначального Владыки ИВО Вячеслава"},{"$f":"IF(Ипостасные!D52=\"\",\"\", \"Зал и кабинет \"&Ипостасные!C52&\" \"&Ипостасные!D52)","v":""}]
[221,null,{"$f":"\"Зал и кабинет \"&справочники!R37&\"\nЗал и кабинет Изначального Владыки ИВО \"&справочники!K37","v":"Зал и кабинет  ИВ Ипостась ИВ Любовь ИВО \nЗал и кабинет Изначального Владыки ИВО Андрея"},{"$f":"IF(Ипостасные!D53=\"\",\"\", \"Зал и кабинет \"&Ипостасные!C53&\" \"&Ипостасные!D53)","v":""}]
[220,null,{"$f":"\"Зал и кабинет \"&справочники!R38&\"\nЗал и кабинет Изначального Владыки ИВО \"&справочники!K38","v":"Зал и кабинет  ИВ Ипостась ИВ Жива ИВО \nЗал и кабинет Изначального Владыки ИВО Давида"},{"$f":"IF(Ипостасные!D54=\"\",\"\", \"Зал и кабинет \"&Ипостасные!C54&\" \"&Ипостасные!D54)","v":""}]
[219,null,{"$f":"\"Зал и кабинет \"&справочники!R39&\"\nЗал и кабинет Изначального Владыки ИВО \"&справочники!K39","v":"Зал и кабинет  ИВ Ипостась ИВ Творение ИВО \nЗал и кабинет Изначального Владыки ИВО Евгения"},{"$f":"IF(Ипостасные!D55=\"\",\"\", \"Зал и кабинет \"&Ипостасные!C55&\" \"&Ипостасные!D55)","v":""}]
[218,null,{"$f":"\"Зал и кабинет \"&справочники!R40&\"\nЗал и кабинет Изначального Владыки ИВО \"&справочники!K40","v":"Зал и кабинет  ИВ Ипостась ИВ Созидание ИВО \nЗал и кабинет Изначального Владыки ИВО Дмитрия"},{"$f":"IF(Ипостасные!D56=\"\",\"\", \"Зал и кабинет \"&Ипостасные!C56&\" \"&Ипостасные!D56)","v":""}]
[217,null,{"$f":"\"Зал и кабинет \"&справочники!R41&\"\nЗал и кабинет Изначального Владыки ИВО \"&справочники!K41","v":"Зал и кабинет  ИВ Ипостась ИВ Жизнь ИВО \nЗал и кабинет Изначального Владыки ИВО Есения"},{"$f":"IF(Ипостасные!D57=\"\",\"\", \"Зал и кабинет \"&Ипостасные!C57&\" \"&Ипостасные!D57)","v":""}]
[216,null,{"$f":"\"Зал и кабинет \"&справочники!R42&\"\nЗал и кабинет Изначального Владыки ИВО \"&справочники!K42","v":"Зал и кабинет  ИВ Ипостась ИВ Дом Ипостаси ИВО \nЗал и кабинет Изначального Владыки ИВО Константина"},{"$f":"IF(Ипостасные!D58=\"\",\"\", \"Зал и кабинет \"&Ипостасные!C58&\" \"&Ипостасные!D58)","v":""}]
[215,null,{"$f":"\"Зал и кабинет \"&справочники!R43&\"\nЗал и кабинет Изначального Владыки ИВО \"&справочники!K43","v":"Зал и кабинет  ИВ Ипостась ИВ Пробуждение ИВО \nЗал и кабинет Изначального Владыки ИВО Ростислава"},{"$f":"IF(Ипостасные!D59=\"\",\"\", \"Зал и кабинет \"&Ипостасные!C59&\" \"&Ипостасные!D59)","v":""}]
[214,null,{"$f":"\"Зал и кабинет \"&справочники!R44&\"\nЗал и кабинет Изначального Владыки ИВО \"&справочники!K44","v":"Зал и кабинет  ИВ Ипостась ИВ Генезис ИВО \nЗал и кабинет Изначального Владыки ИВО Яна"},{"$f":"IF(Ипостасные!D60=\"\",\"\", \"Зал и кабинет \"&Ипостасные!C60&\" \"&Ипостасные!D60)","v":""}]
[213,null,{"$f":"\"Зал и кабинет \"&справочники!R45&\"\nЗал и кабинет Изначального Владыки ИВО \"&справочники!K45","v":"Зал и кабинет  ИВ Ипостась ИВ Человечность ИВО \nЗал и кабинет Изначального Владыки ИВО Василия"},{"$f":"IF(Ипостасные!D61=\"\",\"\", \"Зал и кабинет \"&Ипостасные!C61&\" \"&Ипостасные!D61)","v":""}]
[212,null,{"$f":"\"Зал и кабинет \"&справочники!R46&\"\nЗал и кабинет Изначального Владыки ИВО \"&справочники!K46","v":"Зал и кабинет  ИВ Ипостась ИВ Служение ИВО \nЗал и кабинет Изначального Владыки ИВО Арсения"},{"$f":"IF(Ипостасные!D62=\"\",\"\", \"Зал и кабинет \"&Ипостасные!C62&\" \"&Ипостасные!D62)","v":""}]
[211,null,{"$f":"\"Зал и кабинет \"&справочники!R47&\"\nЗал и кабинет Изначального Владыки ИВО \"&справочники!K47","v":"Зал и кабинет  ИВ Ипостась ИВ Вершение ИВО \nЗал и кабинет Изначального Владыки ИВО Огюста"},{"$f":"IF(Ипостасные!D63=\"\",\"\", \"Зал и кабинет \"&Ипостасные!C63&\" \"&Ипостасные!D63)","v":""}]
[210,null,{"$f":"\"Зал и кабинет \"&справочники!R48&\"\nЗал и кабинет Изначального Владыки ИВО \"&справочники!K48","v":"Зал и кабинет  ИВ Ипостась ИВ Практика Изначальность ИВО \nЗал и кабинет Изначального Владыки ИВО Илия"},{"$f":"IF(Ипостасные!D64=\"\",\"\", \"Зал и кабинет \"&Ипостасные!C64&\" \"&Ипостасные!D64)","v":""}]
[209,null,{"$f":"\"Зал и кабинет \"&справочники!R49&\"\nЗал и кабинет Изначального Владыки ИВО \"&справочники!K49","v":"Зал и кабинет  ИВ Ипостась ИВ Могущество ИВО \nЗал и кабинет Изначального Владыки ИВО Геральда"},{"$f":"IF(Ипостасные!D65=\"\",\"\", \"Зал и кабинет \"&Ипостасные!C65&\" \"&Ипостасные!D65)","v":""}]
[208,null,{"$f":"\"Зал и кабинет \"&справочники!R50&\"\nЗал и кабинет Изначального Владыки ИВО \"&справочники!K50","v":"Зал и кабинет  ИВ Ипостась ИВ Дом Служащего ИВО \nЗал и кабинет Изначального Владыки ИВО Платона"},{"$f":"IF(Ипостасные!D66=\"\",\"\", \"Зал и кабинет \"&Ипостасные!C66&\" \"&Ипостасные!D66)","v":""}]
[207,null,{"$f":"\"Зал и кабинет \"&справочники!R51&\"\nЗал и кабинет Изначального Владыки ИВО \"&справочники!K51","v":"Зал и кабинет  ИВ Ипостась ИВ Пассионарность Идеи ИВО \nЗал и кабинет Изначального Владыки ИВО Николая"},{"$f":"IF(Ипостасные!D67=\"\",\"\", \"Зал и кабинет \"&Ипостасные!C67&\" \"&Ипостасные!D67)","v":""}]
[206,null,{"$f":"\"Зал и кабинет \"&справочники!R52&\"\nЗал и кабинет Изначального Владыки ИВО \"&справочники!K52","v":"Зал и кабинет  ИВ Ипостась ИВ Истинность Сути ИВО \nЗал и кабинет Изначального Владыки ИВО Игоря"},{"$f":"IF(Ипостасные!D68=\"\",\"\", \"Зал и кабинет \"&Ипостасные!C68&\" \"&Ипостасные!D68)","v":""}]
[205,null,{"$f":"\"Зал и кабинет \"&справочники!R53&\"\nЗал и кабинет Изначального Владыки ИВО \"&справочники!K53","v":"Зал и кабинет  ИВ Ипостась ИВ Окскость Смысла ИВО \nЗал и кабинет Изначального Владыки ИВО Яра"},{"$f":"IF(Ипостасные!D69=\"\",\"\", \"Зал и кабинет \"&Ипостасные!C69&\" \"&Ипостасные!D69)","v":""}]
[204,null,{"$f":"\"Зал и кабинет \"&справочники!R54&\"\nЗал и кабинет Изначального Владыки ИВО \"&справочники!K54","v":"Зал и кабинет  ИВ Ипостась ИВ Изначальность Мысли ИВО \nЗал и кабинет Изначального Владыки ИВО Вадима"},{"$f":"IF(Ипостасные!D70=\"\",\"\", \"Зал и кабинет \"&Ипостасные!C70&\" \"&Ипостасные!D70)","v":""}]
[203,null,{"$f":"\"Зал и кабинет \"&справочники!R55&\"\nЗал и кабинет Изначального Владыки ИВО \"&справочники!K55","v":"Зал и кабинет  ИВ Ипостась ИВ Метагалактичность Чувства ИВО \nЗал и кабинет Изначального Владыки ИВО Огнеслава"},{"$f":"IF(Ипостасные!D71=\"\",\"\", \"Зал и кабинет \"&Ипостасные!C71&\" \"&Ипостасные!D71)","v":""}]
[202,null,{"$f":"\"Зал и кабинет \"&справочники!R56&\"\nЗал и кабинет Изначального Владыки ИВО \"&справочники!K56","v":"Зал и кабинет  ИВ Ипостась ИВ Образ Ощущений ИВО \nЗал и кабинет Изначального Владыки ИВО Марка"},{"$f":"IF(Ипостасные!D72=\"\",\"\", \"Зал и кабинет \"&Ипостасные!C72&\" \"&Ипостасные!D72)","v":""}]
[201,null,{"$f":"\"Зал и кабинет \"&справочники!R57&\"\nЗал и кабинет Изначального Владыки ИВО \"&справочники!K57","v":"Зал и кабинет  ИВ Ипостась ИВ Изначальная Мг Движения ИВО \nЗал и кабинет Изначального Владыки ИВО Теона"},{"$f":"IF(Ипостасные!D73=\"\",\"\", \"Зал и кабинет \"&Ипостасные!C73&\" \"&Ипостасные!D73)","v":""}]
[200,null,{"$f":"\"Зал и кабинет \"&справочники!R58&\"\nЗал и кабинет Изначального Владыки ИВО \"&справочники!K58","v":"Зал и кабинет  ИВ Ипостась ИВ Дом Посвящённого ИВО \nЗал и кабинет Изначального Владыки ИВО Трофима"},{"$f":"IF(Ипостасные!D74=\"\",\"\", \"Зал и кабинет \"&Ипостасные!C74&\" \"&Ипостасные!D74)","v":""}]
[199,null,{"$f":"\"Зал и кабинет \"&справочники!R59&\"\nЗал и кабинет Изначального Владыки ИВО \"&справочники!K59","v":"Зал и кабинет  ИВ Ипостась ИВ Дух Частей ИВО \nЗал и кабинет Изначального Владыки ИВО Емельяна"},{"$f":"IF(Ипостасные!D75=\"\",\"\", \"Зал и кабинет \"&Ипостасные!C75&\" \"&Ипостасные!D75)","v":""}]
[198,null,{"$f":"\"Зал и кабинет \"&справочники!R60&\"\nЗал и кабинет Изначального Владыки ИВО \"&справочники!K60","v":"Зал и кабинет  ИВ Ипостась ИВ Свет Систем ИВО \nЗал и кабинет Изначального Владыки ИВО Ефрема"},{"$f":"IF(Ипостасные!D76=\"\",\"\", \"Зал и кабинет \"&Ипостасные!C76&\" \"&Ипостасные!D76)","v":""}]
[197,null,{"$f":"\"Зал и кабинет \"&справочники!R61&\"\nЗал и кабинет Изначального Владыки ИВО \"&справочники!K61","v":"Зал и кабинет  ИВ Ипостась ИВ Энергия Аппаратов ИВО \nЗал и кабинет Изначального Владыки ИВО Натана"},{"$f":"IF(Ипостасные!D77=\"\",\"\", \"Зал и кабинет \"&Ипостасные!C77&\" \"&Ипостасные!D77)","v":""}]
[196,null,{"$f":"\"Зал и кабинет \"&справочники!R62&\"\nЗал и кабинет Изначального Владыки ИВО \"&справочники!K62","v":"Зал и кабинет  ИВ Ипостась ИВ Субъядерность Частностей ИВО \nЗал и кабинет Изначального Владыки ИВО Артёма"},{"$f":"IF(Ипостасные!D78=\"\",\"\", \"Зал и кабинет \"&Ипостасные!C78&\" \"&Ипостасные!D78)","v":""}]
[195,null,{"$f":"\"Зал и кабинет \"&справочники!R63&\"\nЗал и кабинет Изначального Владыки ИВО \"&справочники!K63","v":"Зал и кабинет  ИВ Ипостась ИВ Форма Абсолютности ИВО \nЗал и кабинет Изначального Владыки ИВО Игнатия"},{"$f":"IF(Ипостасные!D79=\"\",\"\", \"Зал и кабинет \"&Ипостасные!C79&\" \"&Ипостасные!D79)","v":""}]
[194,null,{"$f":"\"Зал и кабинет \"&справочники!R64&\"\nЗал и кабинет Изначального Владыки ИВО \"&справочники!K64","v":"Зал и кабинет  ИВ Ипостась ИВ Содержание Воскрешения ИВО \nЗал и кабинет Изначального Владыки ИВО Юлиана"},{"$f":"IF(Ипостасные!D80=\"\",\"\", \"Зал и кабинет \"&Ипостасные!C80&\" \"&Ипостасные!D80)","v":""}]
[193,null,{"$f":"\"Зал и кабинет \"&справочники!R65&\"\nЗал и кабинет Изначального Владыки ИВО \"&справочники!K65","v":"Зал и кабинет  ИВ Ипостась ИВ Поле Пробуждения ИВО \nЗал и кабинет Изначального Владыки ИВО Аркадия"},{"$f":"IF(Ипостасные!D81=\"\",\"\", \"Зал и кабинет \"&Ипостасные!C81&\" \"&Ипостасные!D81)","v":""}]
[192,null,{"$f":"\"Зал и кабинет \"&справочники!R66&\"\nЗал и кабинет Изначального Владыки ИВО \"&справочники!K66","v":"Зал и кабинет  ИВ Ипостась ИВ Дом ИВ Человека ИВО \nЗал и кабинет Изначального Владыки ИВО Никиты"},{"$f":"IF(Ипостасные!D82=\"\",\"\", \"Зал и кабинет \"&Ипостасные!C82&\" \"&Ипостасные!D82)","v":""}]
[191,null,{"$f":"\"Зал и кабинет \"&справочники!R67&\"\nЗал и кабинет Изначального Владыки ИВО \"&справочники!K67","v":"Зал и кабинет  ИВ Ипостась ИВ Владычество Статусов ИВО \nЗал и кабинет Изначального Владыки ИВО Олега"},{"$f":"IF(Ипостасные!D83=\"\",\"\", \"Зал и кабинет \"&Ипостасные!C83&\" \"&Ипостасные!D83)","v":""}]
[190,null,{"$f":"\"Зал и кабинет \"&справочники!R68&\"\nЗал и кабинет Изначального Владыки ИВО \"&справочники!K68","v":"Зал и кабинет  ИВ Ипостась Изначально Вышестоящие Права Посвящений ИВО \nЗал и кабинет Изначального Владыки ИВО Владимира"},{"$f":"IF(Ипостасные!D84=\"\",\"\", \"Зал и кабинет \"&Ипостасные!C84&\" \"&Ипостасные!D84)","v":""}]
[189,null,{"$f":"\"Зал и кабинет \"&справочники!R69&\"\nЗал и кабинет Изначального Владыки ИВО \"&справочники!K69","v":"Зал и кабинет  ИВ Ипостась ИВ Стратагемия Знаний ИВО \nЗал и кабинет Изначального Владыки ИВО Стефана"},{"$f":"IF(Ипостасные!D85=\"\",\"\", \"Зал и кабинет \"&Ипостасные!C85&\" \"&Ипостасные!D85)","v":""}]
[188,null,{"$f":"\"Зал и кабинет \"&справочники!R70&\"\nЗал и кабинет Изначального Владыки ИВО \"&справочники!K70","v":"Зал и кабинет  ИВ Ипостась ИВ Мочьность Наблюдателя ИВО \nЗал и кабинет Изначального Владыки ИВО Горислава"},{"$f":"IF(Ипостасные!D86=\"\",\"\", \"Зал и кабинет \"&Ипостасные!C86&\" \"&Ипостасные!D86)","v":""}]
[187,null,{"$f":"\"Зал и кабинет \"&справочники!R71&\"\nЗал и кабинет Изначального Владыки ИВО \"&справочники!K71","v":"Зал и кабинет  ИВ Ипостась ИВ Голос Полномочий ИВО \nЗал и кабинет Изначального Владыки ИВО Никона"},{"$f":"IF(Ипостасные!D87=\"\",\"\", \"Зал и кабинет \"&Ипостасные!C87&\" \"&Ипостасные!D87)","v":""}]
[186,null,{"$f":"\"Зал и кабинет \"&справочники!R72&\"\nЗал и кабинет Изначального Владыки ИВО \"&справочники!K72","v":"Зал и кабинет  ИВ Ипостась ИВ Интуиция Генезиса ИВО   \nЗал и кабинет Изначального Владыки ИВО Эрика"},{"$f":"IF(Ипостасные!D88=\"\",\"\", \"Зал и кабинет \"&Ипостасные!C88&\" \"&Ипостасные!D88)","v":""}]
[185,null,{"$f":"\"Зал и кабинет \"&справочники!R73&\"\nЗал и кабинет Изначального Владыки ИВО \"&справочники!K73","v":"Зал и кабинет  ИВ Ипостась ИВ Парадигма Отца ИВО \nЗал и кабинет Изначального Владыки ИВО Олафа"},{"$f":"IF(Ипостасные!D89=\"\",\"\", \"Зал и кабинет \"&Ипостасные!C89&\" \"&Ипостасные!D89)","v":""}]
[184,null,{"$f":"\"Зал и кабинет \"&справочники!R74&\"\nЗал и кабинет Изначального Владыки ИВО \"&справочники!K74","v":"Зал и кабинет  ИВ Ипостась ИВ Дом Человека ИВО \nЗал и кабинет Изначального Владыки ИВО Вацлава"},{"$f":"IF(Ипостасные!D90=\"\",\"\", \"Зал и кабинет \"&Ипостасные!C90&\" \"&Ипостасные!D90)","v":""}]
[183,null,{"$f":"\"Зал и кабинет \"&справочники!R75&\"\nЗал и кабинет Изначального Владыки ИВО \"&справочники!K75","v":"Зал и кабинет  ИВ Ипостась ИВ Столп ИВО \nЗал и кабинет Изначального Владыки ИВО Левия"},{"$f":"IF(Ипостасные!D91=\"\",\"\", \"Зал и кабинет \"&Ипостасные!C91&\" \"&Ипостасные!D91)","v":""}]
[182,null,{"$f":"\"Зал и кабинет \"&справочники!R76&\"\nЗал и кабинет Изначального Владыки ИВО \"&справочники!K76","v":"Зал и кабинет  ИВ Ипостась ИВ Сутенность ИВО \nЗал и кабинет Изначального Владыки ИВО Руслана"},{"$f":"IF(Ипостасные!D92=\"\",\"\", \"Зал и кабинет \"&Ипостасные!C92&\" \"&Ипостасные!D92)","v":""}]
[181,null,{"$f":"\"Зал и кабинет \"&справочники!R77&\"\nЗал и кабинет Изначального Владыки ИВО \"&справочники!K77","v":"Зал и кабинет  ИВ Ипостась ИВ Пассионарность ИВО \nЗал и кабинет Изначального Владыки ИВО Генриха"},{"$f":"IF(Ипостасные!D93=\"\",\"\", \"Зал и кабинет \"&Ипостасные!C93&\" \"&Ипостасные!D93)","v":""}]
[180,null,{"$f":"\"Зал и кабинет \"&справочники!R78&\"\nЗал и кабинет Изначального Владыки ИВО \"&справочники!K78","v":"Зал и кабинет  ИВ Ипостась ИВ Чаша ОМ ИВО \nЗал и кабинет Изначального Владыки ИВО Владлена"},{"$f":"IF(Ипостасные!D94=\"\",\"\", \"Зал и кабинет \"&Ипостасные!C94&\" \"&Ипостасные!D94)","v":""}]
[179,null,{"$f":"\"Зал и кабинет \"&справочники!R79&\"\nЗал и кабинет Изначального Владыки ИВО \"&справочники!K79","v":"Зал и кабинет  ИВ Ипостась ИВ Куб Созидания ИВО \nЗал и кабинет Изначального Владыки ИВО Борислава"},{"$f":"IF(Ипостасные!D95=\"\",\"\", \"Зал и кабинет \"&Ипостасные!C95&\" \"&Ипостасные!D95)","v":""}]
[178,null,{"$f":"\"Зал и кабинет \"&справочники!R80&\"\nЗал и кабинет Изначального Владыки ИВО \"&справочники!K80","v":"Зал и кабинет  ИВ Ипостась ИВ Потенциал ИВО \nЗал и кабинет Изначального Владыки ИВО Нестора"},{"$f":"IF(Ипостасные!D96=\"\",\"\", \"Зал и кабинет \"&Ипостасные!C96&\" \"&Ипостасные!D96)","v":""}]
[177,null,{"$f":"\"Зал и кабинет \"&справочники!R81&\"\nЗал и кабинет Изначального Владыки ИВО \"&справочники!K81","v":"Зал и кабинет  ИВ Ипостась ИВ Вечность Отца ИВО \nЗал и кабинет Изначального Владыки ИВО Аристарха"},{"$f":"IF(Ипостасные!D97=\"\",\"\", \"Зал и кабинет \"&Ипостасные!C97&\" \"&Ипостасные!D97)","v":""}]
[176,null,{"$f":"\"Зал и кабинет \"&справочники!R82&\"\nЗал и кабинет Изначального Владыки ИВО \"&справочники!K82","v":"Зал и кабинет  ИВ Ипостась ИВ Дом Сына ИВО \nЗал и кабинет Изначального Владыки ИВО Альфреда"},{"$f":"IF(Ипостасные!D98=\"\",\"\", \"Зал и кабинет \"&Ипостасные!C98&\" \"&Ипостасные!D98)","v":""}]
[175,null,{"$f":"\"Зал и кабинет \"&справочники!R83&\"\nЗал и кабинет Изначального Владыки ИВО \"&справочники!K83","v":"Зал и кабинет  ИВ Ипостась ИВ Вера ИВО \nЗал и кабинет Изначального Владыки ИВО Егора"},{"$f":"IF(Ипостасные!D99=\"\",\"\", \"Зал и кабинет \"&Ипостасные!C99&\" \"&Ипостасные!D99)","v":""}]
[174,null,{"$f":"\"Зал и кабинет \"&справочники!R84&\"\nЗал и кабинет Изначального Владыки ИВО \"&справочники!K84","v":"Зал и кабинет  ИВ Ипостась ИВ Рацио ИВО \nЗал и кабинет Изначального Владыки ИВО Витольда"},{"$f":"IF(Ипостасные!D100=\"\",\"\", \"Зал и кабинет \"&Ипостасные!C100&\" \"&Ипостасные!D100)","v":""}]
[173,null,{"$f":"\"Зал и кабинет \"&справочники!R85&\"\nЗал и кабинет Изначального Владыки ИВО \"&справочники!K85","v":"Зал и кабинет  ИВ Ипостась ИВ Память ИВО \nЗал и кабинет Изначального Владыки ИВО Стократа"},{"$f":"IF(Ипостасные!D101=\"\",\"\", \"Зал и кабинет \"&Ипостасные!C101&\" \"&Ипостасные!D101)","v":""}]
[172,null,{"$f":"\"Зал и кабинет \"&справочники!R86&\"\nЗал и кабинет Изначального Владыки ИВО \"&справочники!K86","v":"Зал и кабинет  ИВ Ипостась ИВ Прозрение ИВО \nЗал и кабинет Изначального Владыки ИВО Глеба"},{"$f":"IF(Ипостасные!D102=\"\",\"\", \"Зал и кабинет \"&Ипостасные!C102&\" \"&Ипостасные!D102)","v":""}]
[171,null,{"$f":"\"Зал и кабинет \"&справочники!R87&\"\nЗал и кабинет Изначального Владыки ИВО \"&справочники!K87","v":"Зал и кабинет  ИВ Ипостась ИВ Униграмма ИВО \nЗал и кабинет Изначального Владыки ИВО Клавдия"},{"$f":"IF(Ипостасные!D103=\"\",\"\", \"Зал и кабинет \"&Ипостасные!C103&\" \"&Ипостасные!D103)","v":""}]
[170,null,{"$f":"\"Зал и кабинет \"&справочники!R88&\"\nЗал и кабинет Изначального Владыки ИВО \"&справочники!K88","v":"Зал и кабинет  ИВ Ипостась ИВ Мерность ИВО \nЗал и кабинет Изначального Владыки ИВО Теониса"},{"$f":"IF(Ипостасные!D104=\"\",\"\", \"Зал и кабинет \"&Ипостасные!C104&\" \"&Ипостасные!D104)","v":""}]
[169,null,{"$f":"\"Зал и кабинет \"&справочники!R89&\"\nЗал и кабинет Изначального Владыки ИВО \"&справочники!K89","v":"Зал и кабинет  ИВ Ипостась ИВ Заряженность ИВО \nЗал и кабинет Изначального Владыки ИВО Донана"},{"$f":"IF(Ипостасные!D105=\"\",\"\", \"Зал и кабинет \"&Ипостасные!C105&\" \"&Ипостасные!D105)","v":""}]
[168,null,{"$f":"\"Зал и кабинет \"&справочники!R90&\"\nЗал и кабинет Изначального Владыки ИВО \"&справочники!K90","v":"Зал и кабинет  ИВ Ипостась ИВ Дом Дочери ИВО \nЗал и кабинет Изначального Владыки ИВО Альберта"},{"$f":"IF(Ипостасные!D106=\"\",\"\", \"Зал и кабинет \"&Ипостасные!C106&\" \"&Ипостасные!D106)","v":""}]
[167,null,{"$f":"\"Зал и кабинет \"&справочники!R91&\"\nЗал и кабинет Изначального Владыки ИВО \"&справочники!K91","v":"Зал и кабинет  ИВ Ипостась ИВ Образ-тип ИВО \nЗал и кабинет Изначального Владыки ИВО Степана"},{"$f":"IF(Ипостасные!D107=\"\",\"\", \"Зал и кабинет \"&Ипостасные!C107&\" \"&Ипостасные!D107)","v":""}]
[166,null,{"$f":"\"Зал и кабинет \"&справочники!R92&\"\nЗал и кабинет Изначального Владыки ИВО \"&справочники!K92","v":"Зал и кабинет  ИВ Ипостась ИВ Сообразительность ИВО \nЗал и кабинет Изначального Владыки ИВО Арсана"},{"$f":"IF(Ипостасные!D108=\"\",\"\", \"Зал и кабинет \"&Ипостасные!C108&\" \"&Ипостасные!D108)","v":""}]
[165,null,{"$f":"\"Зал и кабинет \"&справочники!R93&\"\nЗал и кабинет Изначального Владыки ИВО \"&справочники!K93","v":"Зал и кабинет  ИВ Ипостась ИВ Осмысленность ИВО \nЗал и кабинет Изначального Владыки ИВО Остапа"},{"$f":"IF(Ипостасные!D109=\"\",\"\", \"Зал и кабинет \"&Ипостасные!C109&\" \"&Ипостасные!D109)","v":""}]
[164,null,{"$f":"\"Зал и кабинет \"&справочники!R94&\"\nЗал и кабинет Изначального Владыки ИВО \"&справочники!K94","v":"Зал и кабинет  ИВ Ипостась ИВ Логика ИВО \nЗал и кабинет Изначального Владыки ИВО Романа"},{"$f":"IF(Ипостасные!D110=\"\",\"\", \"Зал и кабинет \"&Ипостасные!C110&\" \"&Ипостасные!D110)","v":""}]
[163,null,{"$f":"\"Зал и кабинет \"&справочники!R95&\"\nЗал и кабинет Изначального Владыки ИВО \"&справочники!K95","v":"Зал и кабинет  ИВ Ипостась ИВ Чувствознание ИВО \nЗал и кабинет Изначального Владыки ИВО Клима"},{"$f":"IF(Ипостасные!D111=\"\",\"\", \"Зал и кабинет \"&Ипостасные!C111&\" \"&Ипостасные!D111)","v":""}]
[162,null,{"$f":"\"Зал и кабинет \"&справочники!R96&\"\nЗал и кабинет Изначального Владыки ИВО \"&справочники!K96","v":"Зал и кабинет  ИВ Ипостась ИВ Проницание ИВО \nЗал и кабинет Изначального Владыки ИВО Петра"},{"$f":"IF(Ипостасные!D112=\"\",\"\", \"Зал и кабинет \"&Ипостасные!C112&\" \"&Ипостасные!D112)","v":""}]
[161,null,{"$f":"\"Зал и кабинет \"&справочники!R97&\"\nЗал и кабинет Изначального Владыки ИВО \"&справочники!K97","v":"Зал и кабинет  ИВ Ипостась ИВ Активность ИВО \nЗал и кабинет Изначального Владыки ИВО Макея"},{"$f":"IF(Ипостасные!D113=\"\",\"\", \"Зал и кабинет \"&Ипостасные!C113&\" \"&Ипостасные!D113)","v":""}]
[160,null,{"$f":"\"Зал и кабинет \"&справочники!R98&\"\nЗал и кабинет Изначального Владыки ИВО \"&справочники!K98","v":"Зал и кабинет  ИВ Ипостась ИВ Дом Человека Изначальной Мг ИВО \nЗал и кабинет Изначального Владыки ИВО Аниса"},{"$f":"IF(Ипостасные!D114=\"\",\"\", \"Зал и кабинет \"&Ипостасные!C114&\" \"&Ипостасные!D114)","v":""}]
[159,null,{"$f":"\"Зал и кабинет \"&справочники!R99&\"\nЗал и кабинет Изначального Владыки ИВО \"&справочники!K99","v":"Зал и кабинет  ИВ Ипостась ИВ Ипостасное Тело ИВО \nЗал и кабинет Изначального Владыки ИВО Ара"},{"$f":"IF(Ипостасные!D115=\"\",\"\", \"Зал и кабинет \"&Ипостасные!C115&\" \"&Ипостасные!D115)","v":""}]
[158,null,{"$f":"\"Зал и кабинет \"&справочники!R100&\"\nЗал и кабинет Изначального Владыки ИВО \"&справочники!K100","v":"Зал и кабинет  ИВ Ипостась ИВ Истина ИВО \nЗал и кабинет Изначального Владыки ИВО Дорадия"},{"$f":"IF(Ипостасные!D116=\"\",\"\", \"Зал и кабинет \"&Ипостасные!C116&\" \"&Ипостасные!D116)","v":""}]
[157,null,{"$f":"\"Зал и кабинет \"&справочники!R101&\"\nЗал и кабинет Изначального Владыки ИВО \"&справочники!K101","v":"Зал и кабинет  ИВ Ипостась ИВ Око ИВО \nЗал и кабинет Изначального Владыки ИВО Дор"},{"$f":"IF(Ипостасные!D117=\"\",\"\", \"Зал и кабинет \"&Ипостасные!C117&\" \"&Ипостасные!D117)","v":""}]
[156,null,{"$f":"\"Зал и кабинет \"&справочники!R102&\"\nЗал и кабинет Изначального Владыки ИВО \"&справочники!K102","v":"Зал и кабинет  ИВ Ипостась ИВ Хум ИВО \nЗал и кабинет Изначального Владыки ИВО Понтелея"},{"$f":"IF(Ипостасные!D118=\"\",\"\", \"Зал и кабинет \"&Ипостасные!C118&\" \"&Ипостасные!D118)","v":""}]
[155,null,{"$f":"\"Зал и кабинет \"&справочники!R103&\"\nЗал и кабинет Изначального Владыки ИВО \"&справочники!K103","v":"Зал и кабинет  ИВ Ипостась ИВ Абсолют ИВО \nЗал и кабинет Изначального Владыки ИВО Явира"},{"$f":"IF(Ипостасные!D119=\"\",\"\", \"Зал и кабинет \"&Ипостасные!C119&\" \"&Ипостасные!D119)","v":""}]
[154,null,{"$f":"\"Зал и кабинет \"&справочники!R104&\"\nЗал и кабинет Изначального Владыки ИВО \"&справочники!K104","v":"Зал и кабинет  ИВ Ипостась ИВ Омега ИВО \nЗал и кабинет Изначального Владыки ИВО Триса"},{"$f":"IF(Ипостасные!D120=\"\",\"\", \"Зал и кабинет \"&Ипостасные!C120&\" \"&Ипостасные!D120)","v":""}]
[153,null,{"$f":"\"Зал и кабинет \"&справочники!R105&\"\nЗал и кабинет Изначального Владыки ИВО \"&справочники!K105","v":"Зал и кабинет  ИВ Ипостась ИВ Монада ИВО \nЗал и кабинет Изначального Владыки ИВО Виктора"},{"$f":"IF(Ипостасные!D121=\"\",\"\", \"Зал и кабинет \"&Ипостасные!C121&\" \"&Ипостасные!D121)","v":""}]
[152,null,{"$f":"\"Зал и кабинет \"&справочники!R106&\"\nЗал и кабинет Изначального Владыки ИВО \"&справочники!K106","v":"Зал и кабинет  ИВ Ипостась ИВ Дом Человека Изначальности ИВО \nЗал и кабинет Изначального Владыки ИВО Визара"},{"$f":"IF(Ипостасные!D122=\"\",\"\", \"Зал и кабинет \"&Ипостасные!C122&\" \"&Ипостасные!D122)","v":""}]
[151,null,{"$f":"\"Зал и кабинет \"&справочники!R107&\"\nЗал и кабинет Изначального Владыки ИВО \"&справочники!K107","v":"Зал и кабинет  ИВ Ипостась ИВ Физическое Тело ИВО \nЗал и кабинет Изначального Владыки ИВО Ерёмы"},{"$f":"IF(Ипостасные!D123=\"\",\"\", \"Зал и кабинет \"&Ипостасные!C123&\" \"&Ипостасные!D123)","v":""}]
[150,null,{"$f":"\"Зал и кабинет \"&справочники!R108&\"\nЗал и кабинет Изначального Владыки ИВО \"&справочники!K108","v":"Зал и кабинет  ИВ Ипостась ИВ Разум ИВО \nЗал и кабинет Изначального Владыки ИВО Ираклия"},{"$f":"IF(Ипостасные!D124=\"\",\"\", \"Зал и кабинет \"&Ипостасные!C124&\" \"&Ипостасные!D124)","v":""}]
[149,null,{"$f":"\"Зал и кабинет \"&справочники!R109&\"\nЗал и кабинет Изначального Владыки ИВО \"&справочники!K109","v":"Зал и кабинет  ИВ Ипостась ИВ Сердце ИВО \nЗал и кабинет Изначального Владыки ИВО Елизара"},{"$f":"IF(Ипостасные!D125=\"\",\"\", \"Зал и кабинет \"&Ипостасные!C125&\" \"&Ипостасные!D125)","v":""}]
[148,null,{"$f":"\"Зал и кабинет \"&справочники!R110&\"\nЗал и кабинет Изначального Владыки ИВО \"&справочники!K110","v":"Зал и кабинет  ИВ Ипостась ИВ Мышление ИВО \nЗал и кабинет Изначального Владыки ИВО Градимира"},{"$f":"IF(Ипостасные!D126=\"\",\"\", \"Зал и кабинет \"&Ипостасные!C126&\" \"&Ипостасные!D126)","v":""}]
[147,null,{"$f":"\"Зал и кабинет \"&справочники!R111&\"\nЗал и кабинет Изначального Владыки ИВО \"&справочники!K111","v":"Зал и кабинет  ИВ Ипостась ИВ Головерсум ИВО \nЗал и кабинет Изначального Владыки ИВО Рустама"},{"$f":"IF(Ипостасные!D127=\"\",\"\", \"Зал и кабинет \"&Ипостасные!C127&\" \"&Ипостасные!D127)","v":""}]
[146,null,{"$f":"\"Зал и кабинет \"&справочники!R112&\"\nЗал и кабинет Изначального Владыки ИВО \"&справочники!K112","v":"Зал и кабинет  ИВ Ипостась ИВ Восприятие ИВО \nЗал и кабинет Изначального Владыки ИВО Октана"},{"$f":"IF(Ипостасные!D128=\"\",\"\", \"Зал и кабинет \"&Ипостасные!C128&\" \"&Ипостасные!D128)","v":""}]
[145,null,{"$f":"\"Зал и кабинет \"&справочники!R113&\"\nЗал и кабинет Изначального Владыки ИВО \"&справочники!K113","v":"Зал и кабинет  ИВ Ипостась ИВ Пламя Отца ИВО \nЗал и кабинет Изначального Владыки ИВО Силуана"},{"$f":"IF(Ипостасные!D129=\"\",\"\", \"Зал и кабинет \"&Ипостасные!C129&\" \"&Ипостасные!D129)","v":""}]
[144,null,{"$f":"\"Зал и кабинет \"&справочники!R114&\"\nЗал и кабинет Изначального Владыки ИВО \"&справочники!K114","v":"Зал и кабинет  ИВ Ипостась ИВ Дом Человека Мг ИВО \nЗал и кабинет Изначального Владыки ИВО Лукьяна"},{"$f":"IF(Ипостасные!D130=\"\",\"\", \"Зал и кабинет \"&Ипостасные!C130&\" \"&Ипостасные!D130)","v":""}]
[143,null,{"$f":"\"Зал и кабинет \"&справочники!R115&\"\nЗал и кабинет Изначального Владыки ИВО \"&справочники!K115","v":"Зал и кабинет  ИВ Ипостась ИВ Синтезтело ИВО \nЗал и кабинет Изначального Владыки ИВО Люсьена"},{"$f":"IF(Ипостасные!D131=\"\",\"\", \"Зал и кабинет \"&Ипостасные!C131&\" \"&Ипостасные!D131)","v":""}]
[142,null,{"$f":"\"Зал и кабинет \"&справочники!R116&\"\nЗал и кабинет Изначального Владыки ИВО \"&справочники!K116","v":"Зал и кабинет  ИВ Ипостась ИВ Сознание ИВО \nЗал и кабинет Изначального Владыки ИВО Андриана"},{"$f":"IF(Ипостасные!D132=\"\",\"\", \"Зал и кабинет \"&Ипостасные!C132&\" \"&Ипостасные!D132)","v":""}]
[141,null,{"$f":"\"Зал и кабинет \"&справочники!R117&\"\nЗал и кабинет Изначального Владыки ИВО \"&справочники!K117","v":"Зал и кабинет  ИВ Ипостась ИВ Грааль ИВО \nЗал и кабинет Изначального Владыки ИВО Прокофия"},{"$f":"IF(Ипостасные!D133=\"\",\"\", \"Зал и кабинет \"&Ипостасные!C133&\" \"&Ипостасные!D133)","v":""}]
[140,null,{"$f":"\"Зал и кабинет \"&справочники!R118&\"\nЗал и кабинет Изначального Владыки ИВО \"&справочники!K118","v":"Зал и кабинет  ИВ Ипостась ИВ ИСиобраз ИВО \nЗал и кабинет Изначального Владыки ИВО Зарка"},{"$f":"IF(Ипостасные!D134=\"\",\"\", \"Зал и кабинет \"&Ипостасные!C134&\" \"&Ипостасные!D134)","v":""}]
[139,null,{"$f":"\"Зал и кабинет \"&справочники!R119&\"\nЗал и кабинет Изначального Владыки ИВО \"&справочники!K119","v":"Зал и кабинет  ИВ Ипостась ИВ Провидение ИВО \nЗал и кабинет Изначального Владыки ИВО Станиса"},{"$f":"IF(Ипостасные!D135=\"\",\"\", \"Зал и кабинет \"&Ипостасные!C135&\" \"&Ипостасные!D135)","v":""}]
[138,null,{"$f":"\"Зал и кабинет \"&справочники!R120&\"\nЗал и кабинет Изначального Владыки ИВО \"&справочники!K120","v":"Зал и кабинет  ИВ Ипостась ИВ Нить Синтеза ИВО \nЗал и кабинет Изначального Владыки ИВО Панкрата"},{"$f":"IF(Ипостасные!D136=\"\",\"\", \"Зал и кабинет \"&Ипостасные!C136&\" \"&Ипостасные!D136)","v":""}]
[137,null,{"$f":"\"Зал и кабинет \"&справочники!R121&\"\nЗал и кабинет Изначального Владыки ИВО \"&справочники!K121","v":"Зал и кабинет  ИВ Ипостась ИВ Мощь Отца ИВО \nЗал и кабинет Изначального Владыки ИВО Старка"},{"$f":"IF(Ипостасные!D137=\"\",\"\", \"Зал и кабинет \"&Ипостасные!C137&\" \"&Ипостасные!D137)","v":""}]
[136,null,{"$f":"\"Зал и кабинет \"&справочники!R122&\"\nЗал и кабинет Изначального Владыки ИВО \"&справочники!K122","v":"Зал и кабинет  ИВ Ипостась ИВ Человека Планеты ИВО \nЗал и кабинет Изначального Владыки ИВО Дорофея"},{"$f":"IF(Ипостасные!D138=\"\",\"\", \"Зал и кабинет \"&Ипостасные!C138&\" \"&Ипостасные!D138)","v":""}]
[135,null,{"$f":"\"Зал и кабинет \"&справочники!R123&\"\nЗал и кабинет Изначального Владыки ИВО \"&справочники!K123","v":"Зал и кабинет  ИВ Ипостась ИВ Трансвизор ИВО \nЗал и кабинет Изначального Владыки ИВО Якова"},{"$f":"IF(Ипостасные!D139=\"\",\"\", \"Зал и кабинет \"&Ипостасные!C139&\" \"&Ипостасные!D139)","v":""}]
[134,null,{"$f":"\"Зал и кабинет \"&справочники!R124&\"\nЗал и кабинет Изначального Владыки ИВО \"&справочники!K124","v":"Зал и кабинет  ИВ Ипостась ИВ Интеллект ИВО \nЗал и кабинет Изначального Владыки ИВО Ульяна"},{"$f":"IF(Ипостасные!D140=\"\",\"\", \"Зал и кабинет \"&Ипостасные!C140&\" \"&Ипостасные!D140)","v":""}]
[133,null,{"$f":"\"Зал и кабинет \"&справочники!R125&\"\nЗал и кабинет Изначального Владыки ИВО \"&справочники!K125","v":"Зал и кабинет  ИВ Ипостась ИВ Престол ИВО \nЗал и кабинет Изначального Владыки ИВО Германа"},{"$f":"IF(Ипостасные!D141=\"\",\"\", \"Зал и кабинет \"&Ипостасные!C141&\" \"&Ипостасные!D141)","v":""}]
[132,null,{"$f":"\"Зал и кабинет \"&справочники!R126&\"\nЗал и кабинет Изначального Владыки ИВО \"&справочники!K126","v":"Зал и кабинет  ИВ Ипостась ИВ Ум ИВО \nЗал и кабинет Изначального Владыки ИВО Радомира"},{"$f":"IF(Ипостасные!D142=\"\",\"\", \"Зал и кабинет \"&Ипостасные!C142&\" \"&Ипостасные!D142)","v":""}]
[131,null,{"$f":"\"Зал и кабинет \"&справочники!R127&\"\nЗал и кабинет Изначального Владыки ИВО \"&справочники!K127","v":"Зал и кабинет  ИВ Ипостась ИВ Душа ИВО \nЗал и кабинет Изначального Владыки ИВО Октавия"},{"$f":"IF(Ипостасные!D143=\"\",\"\", \"Зал и кабинет \"&Ипостасные!C143&\" \"&Ипостасные!D143)","v":""}]
[130,null,{"$f":"\"Зал и кабинет \"&справочники!R128&\"\nЗал и кабинет Изначального Владыки ИВО \"&справочники!K128","v":"Зал и кабинет  ИВ Ипостась ИВ Слово Отца ИВО \nЗал и кабинет Изначального Владыки ИВО Кима"},{"$f":"IF(Ипостасные!D144=\"\",\"\", \"Зал и кабинет \"&Ипостасные!C144&\" \"&Ипостасные!D144)","v":""}]
[129,null,{"$f":"\"Зал и кабинет \"&справочники!R129&\"\nЗал и кабинет Изначального Владыки ИВО \"&справочники!K129","v":"Зал и кабинет  ИВ Ипостась ИВ Образ Отца ИВО \nЗал и кабинет Изначального Владыки ИВО Бонифация"},{"$f":"IF(Ипостасные!D145=\"\",\"\", \"Зал и кабинет \"&Ипостасные!C145&\" \"&Ипостасные!D145)","v":""}]
[128,null,{"$f":"\"Зал и кабинет \"&справочники!R130&\"\nЗал и кабинет Изначальной Владычицы ИВО \"&справочники!K130","v":"Зал и кабинет  ИВ Ипостась ИВ 383-Мерностное Синтезтело ИВО \nЗал и кабинет Изначальной Владычицы ИВО Фаинь"},{"$f":"IF(Ипостасные!D147=\"\",\"\", \"Зал и кабинет \"&Ипостасные!C147&\" \"&Ипостасные!D147)","v":""}]
[127,null,{"$f":"\"Зал и кабинет \"&справочники!R131&\"\nЗал и кабинет Изначальной Владычицы ИВО \"&справочники!K131","v":"Зал и кабинет  ИВ Ипостась ИВ 382-Мерностное Синтезтело ИВО \nЗал и кабинет Изначальной Владычицы ИВО Славии"},{"$f":"IF(Ипостасные!D148=\"\",\"\", \"Зал и кабинет \"&Ипостасные!C148&\" \"&Ипостасные!D148)","v":""}]
[126,null,{"$f":"\"Зал и кабинет \"&справочники!R132&\"\nЗал и кабинет Изначальной Владычицы ИВО \"&справочники!K132","v":"Зал и кабинет  ИВ Ипостась ИВ 381-Мерностное Синтезтело ИВО \nЗал и кабинет Изначальной Владычицы ИВО Свет"},{"$f":"IF(Ипостасные!D149=\"\",\"\", \"Зал и кабинет \"&Ипостасные!C149&\" \"&Ипостасные!D149)","v":""}]
[125,null,{"$f":"\"Зал и кабинет \"&справочники!R133&\"\nЗал и кабинет Изначальной Владычицы ИВО \"&справочники!K133","v":"Зал и кабинет  ИВ Ипостась ИВ 380-Мерностное Синтезтело ИВО \nЗал и кабинет Изначальной Владычицы ИВО Марины"},{"$f":"IF(Ипостасные!D150=\"\",\"\", \"Зал и кабинет \"&Ипостасные!C150&\" \"&Ипостасные!D150)","v":""}]
[124,null,{"$f":"\"Зал и кабинет \"&справочники!R134&\"\nЗал и кабинет Изначальной Владычицы ИВО \"&справочники!K134","v":"Зал и кабинет  ИВ Ипостась ИВ 379-Мерностное Синтезтело ИВО \nЗал и кабинет Изначальной Владычицы ИВО Альбины"},{"$f":"IF(Ипостасные!D151=\"\",\"\", \"Зал и кабинет \"&Ипостасные!C151&\" \"&Ипостасные!D151)","v":""}]
[123,null,{"$f":"\"Зал и кабинет \"&справочники!R135&\"\nЗал и кабинет Изначальной Владычицы ИВО \"&справочники!K135","v":"Зал и кабинет  ИВ Ипостась ИВ 378-Мерностное Синтезтело ИВО \nЗал и кабинет Изначальной Владычицы ИВО Вероники"},{"$f":"IF(Ипостасные!D152=\"\",\"\", \"Зал и кабинет \"&Ипостасные!C152&\" \"&Ипостасные!D152)","v":""}]
[122,null,{"$f":"\"Зал и кабинет \"&справочники!R136&\"\nЗал и кабинет Изначальной Владычицы ИВО \"&справочники!K136","v":"Зал и кабинет  ИВ Ипостась ИВ 377-Мерностное Синтезтело ИВО \nЗал и кабинет Изначальной Владычицы ИВО Сианы"},{"$f":"IF(Ипостасные!D153=\"\",\"\", \"Зал и кабинет \"&Ипостасные!C153&\" \"&Ипостасные!D153)","v":""}]
[121,null,{"$f":"\"Зал и кабинет \"&справочники!R137&\"\nЗал и кабинет Изначальной Владычицы ИВО \"&справочники!K137","v":"Зал и кабинет  ИВ Ипостась ИВ 376-Мерностное Синтезтело ИВО \nЗал и кабинет Изначальной Владычицы ИВО Оны"},{"$f":"IF(Ипостасные!D154=\"\",\"\", \"Зал и кабинет \"&Ипостасные!C154&\" \"&Ипостасные!D154)","v":""}]
[120,null,{"$f":"\"Зал и кабинет \"&справочники!R138&\"\nЗал и кабинет Изначальной Владычицы ИВО \"&справочники!K138","v":"Зал и кабинет  ИВ Ипостась ИВ 375-Мерностное Синтезтело ИВО \nЗал и кабинет Изначальной Владычицы ИВО Стефании"},{"$f":"IF(Ипостасные!D155=\"\",\"\", \"Зал и кабинет \"&Ипостасные!C155&\" \"&Ипостасные!D155)","v":""}]
[119,null,{"$f":"\"Зал и кабинет \"&справочники!R139&\"\nЗал и кабинет Изначальной Владычицы ИВО \"&справочники!K139","v":"Зал и кабинет  ИВ Ипостась ИВ 374-Мерностное Синтезтело ИВО \nЗал и кабинет Изначальной Владычицы ИВО Святы"},{"$f":"IF(Ипостасные!D156=\"\",\"\", \"Зал и кабинет \"&Ипостасные!C156&\" \"&Ипостасные!D156)","v":""}]
[118,null,{"$f":"\"Зал и кабинет \"&справочники!R140&\"\nЗал и кабинет Изначальной Владычицы ИВО \"&справочники!K140","v":"Зал и кабинет  ИВ Ипостась ИВ 373-Мерностное Синтезтело ИВО \nЗал и кабинет Изначальной Владычицы ИВО Баяны"},{"$f":"IF(Ипостасные!D157=\"\",\"\", \"Зал и кабинет \"&Ипостасные!C157&\" \"&Ипостасные!D157)","v":""}]
[117,null,{"$f":"\"Зал и кабинет \"&справочники!R141&\"\nЗал и кабинет Изначальной Владычицы ИВО \"&справочники!K141","v":"Зал и кабинет  ИВ Ипостась ИВ 372-Мерностное Синтезтело ИВО \nЗал и кабинет Изначальной Владычицы ИВО Екатерины"},{"$f":"IF(Ипостасные!D158=\"\",\"\", \"Зал и кабинет \"&Ипостасные!C158&\" \"&Ипостасные!D158)","v":""}]
[116,null,{"$f":"\"Зал и кабинет \"&справочники!R142&\"\nЗал и кабинет Изначальной Владычицы ИВО \"&справочники!K142","v":"Зал и кабинет  ИВ Ипостась ИВ 371-Мерностное Синтезтело ИВО \nЗал и кабинет Изначальной Владычицы ИВО Сивиллы"},{"$f":"IF(Ипостасные!D159=\"\",\"\", \"Зал и кабинет \"&Ипостасные!C159&\" \"&Ипостасные!D159)","v":""}]
[115,null,{"$f":"\"Зал и кабинет \"&справочники!R143&\"\nЗал и кабинет Изначальной Владычицы ИВО \"&справочники!K143","v":"Зал и кабинет  ИВ Ипостась ИВ 370-Мерностное Синтезтело ИВО \nЗал и кабинет Изначальной Владычицы ИВО Тамилы"},{"$f":"IF(Ипостасные!D160=\"\",\"\", \"Зал и кабинет \"&Ипостасные!C160&\" \"&Ипостасные!D160)","v":""}]
[114,null,{"$f":"\"Зал и кабинет \"&справочники!R144&\"\nЗал и кабинет Изначальной Владычицы ИВО \"&справочники!K144","v":"Зал и кабинет  ИВ Ипостась ИВ 369-Мерностное Синтезтело ИВО \nЗал и кабинет Изначальной Владычицы ИВО Ники"},{"$f":"IF(Ипостасные!D161=\"\",\"\", \"Зал и кабинет \"&Ипостасные!C161&\" \"&Ипостасные!D161)","v":""}]
[113,null,{"$f":"\"Зал и кабинет \"&справочники!R145&\"\nЗал и кабинет Изначальной Владычицы ИВО \"&справочники!K145","v":"Зал и кабинет  ИВ Ипостась ИВ 368-Мерностное Синтезтело ИВО \nЗал и кабинет Изначальной Владычицы ИВО Велетте"},{"$f":"IF(Ипостасные!D162=\"\",\"\", \"Зал и кабинет \"&Ипостасные!C162&\" \"&Ипостасные!D162)","v":""}]
[112,null,{"$f":"\"Зал и кабинет \"&справочники!R146&\"\nЗал и кабинет Изначальной Владычицы ИВО \"&справочники!K146","v":"Зал и кабинет  ИВ Ипостась ИВ 367-Мерностное Синтезтело ИВО \nЗал и кабинет Изначальной Владычицы ИВО Эмилии"},{"$f":"IF(Ипостасные!D163=\"\",\"\", \"Зал и кабинет \"&Ипостасные!C163&\" \"&Ипостасные!D163)","v":""}]
[111,null,{"$f":"\"Зал и кабинет \"&справочники!R147&\"\nЗал и кабинет Изначальной Владычицы ИВО \"&справочники!K147","v":"Зал и кабинет  ИВ Ипостась ИВ 366-Мерностное Синтезтело ИВО \nЗал и кабинет Изначальной Владычицы ИВО Елены"},{"$f":"IF(Ипостасные!D164=\"\",\"\", \"Зал и кабинет \"&Ипостасные!C164&\" \"&Ипостасные!D164)","v":""}]
[110,null,{"$f":"\"Зал и кабинет \"&справочники!R148&\"\nЗал и кабинет Изначальной Владычицы ИВО \"&справочники!K148","v":"Зал и кабинет  ИВ Ипостась ИВ 365-Мерностное Синтезтело ИВО \nЗал и кабинет Изначальной Владычицы ИВО Валерии"},{"$f":"IF(Ипостасные!D165=\"\",\"\", \"Зал и кабинет \"&Ипостасные!C165&\" \"&Ипостасные!D165)","v":""}]
[109,null,{"$f":"\"Зал и кабинет \"&справочники!R149&\"\nЗал и кабинет Изначальной Владычицы ИВО \"&справочники!K149","v":"Зал и кабинет  ИВ Ипостась ИВ 364-Мерностное Синтезтело ИВО \nЗал и кабинет Изначальной Владычицы ИВО Олеси"},{"$f":"IF(Ипостасные!D166=\"\",\"\", \"Зал и кабинет \"&Ипостасные!C166&\" \"&Ипостасные!D166)","v":""}]
[108,null,{"$f":"\"Зал и кабинет \"&справочники!R150&\"\nЗал и кабинет Изначальной Владычицы ИВО \"&справочники!K150","v":"Зал и кабинет  ИВ Ипостась ИВ 363-Мерностное Синтезтело ИВО \nЗал и кабинет Изначальной Владычицы ИВО Антуанэтты"},{"$f":"IF(Ипостасные!D167=\"\",\"\", \"Зал и кабинет \"&Ипостасные!C167&\" \"&Ипостасные!D167)","v":""}]
[107,null,{"$f":"\"Зал и кабинет \"&справочники!R151&\"\nЗал и кабинет Изначальной Владычицы ИВО \"&справочники!K151","v":"Зал и кабинет  ИВ Ипостась ИВ 362-Мерностное Синтезтело ИВО \nЗал и кабинет Изначальной Владычицы ИВО Юлианы"},{"$f":"IF(Ипостасные!D168=\"\",\"\", \"Зал и кабинет \"&Ипостасные!C168&\" \"&Ипостасные!D168)","v":""}]
[106,null,{"$f":"\"Зал и кабинет \"&справочники!R152&\"\nЗал и кабинет Изначальной Владычицы ИВО \"&справочники!K152","v":"Зал и кабинет  ИВ Ипостась ИВ 361-Мерностное Синтезтело ИВО \nЗал и кабинет Изначальной Владычицы ИВО Синтии"},{"$f":"IF(Ипостасные!D169=\"\",\"\", \"Зал и кабинет \"&Ипостасные!C169&\" \"&Ипостасные!D169)","v":""}]
[105,null,{"$f":"\"Зал и кабинет \"&справочники!R153&\"\nЗал и кабинет Изначальной Владычицы ИВО \"&справочники!K153","v":"Зал и кабинет  ИВ Ипостась ИВ 360-Мерностное Синтезтело ИВО \nЗал и кабинет Изначальной Владычицы ИВО Виктории"},{"$f":"IF(Ипостасные!D170=\"\",\"\", \"Зал и кабинет \"&Ипостасные!C170&\" \"&Ипостасные!D170)","v":""}]
[104,null,{"$f":"\"Зал и кабинет \"&справочники!R154&\"\nЗал и кабинет Изначальной Владычицы ИВО \"&справочники!K154","v":"Зал и кабинет  ИВ Ипостась ИВ 359-Мерностное Синтезтело ИВО \nЗал и кабинет Изначальной Владычицы ИВО Дариды"},{"$f":"IF(Ипостасные!D171=\"\",\"\", \"Зал и кабинет \"&Ипостасные!C171&\" \"&Ипостасные!D171)","v":""}]
[103,null,{"$f":"\"Зал и кабинет \"&справочники!R155&\"\nЗал и кабинет Изначальной Владычицы ИВО \"&справочники!K155","v":"Зал и кабинет  ИВ Ипостась ИВ 358-Мерностное Синтезтело ИВО \nЗал и кабинет Изначальной Владычицы ИВО Алины"},{"$f":"IF(Ипостасные!D172=\"\",\"\", \"Зал и кабинет \"&Ипостасные!C172&\" \"&Ипостасные!D172)","v":""}]
[102,null,{"$f":"\"Зал и кабинет \"&справочники!R156&\"\nЗал и кабинет Изначальной Владычицы ИВО \"&справочники!K156","v":"Зал и кабинет  ИВ Ипостась ИВ 357-Мерностное Синтезтело ИВО \nЗал и кабинет Изначальной Владычицы ИВО Софьи"},{"$f":"IF(Ипостасные!D173=\"\",\"\", \"Зал и кабинет \"&Ипостасные!C173&\" \"&Ипостасные!D173)","v":""}]
[101,null,{"$f":"\"Зал и кабинет \"&справочники!R157&\"\nЗал и кабинет Изначальной Владычицы ИВО \"&справочники!K157","v":"Зал и кабинет  ИВ Ипостась ИВ 356-Мерностное Синтезтело ИВО \nЗал и кабинет Изначальной Владычицы ИВО Агафьи"},{"$f":"IF(Ипостасные!D174=\"\",\"\", \"Зал и кабинет \"&Ипостасные!C174&\" \"&Ипостасные!D174)","v":""}]
[100,null,{"$f":"\"Зал и кабинет \"&справочники!R158&\"\nЗал и кабинет Изначальной Владычицы ИВО \"&справочники!K158","v":"Зал и кабинет  ИВ Ипостась ИВ 355-Мерностное Синтезтело ИВО \nЗал и кабинет Изначальной Владычицы ИВО Дарьи"},{"$f":"IF(Ипостасные!D175=\"\",\"\", \"Зал и кабинет \"&Ипостасные!C175&\" \"&Ипостасные!D175)","v":""}]
[99,null,{"$f":"\"Зал и кабинет \"&справочники!R159&\"\nЗал и кабинет Изначальной Владычицы ИВО \"&справочники!K159","v":"Зал и кабинет  ИВ Ипостась ИВ 354-Мерностное Синтезтело ИВО \nЗал и кабинет Изначальной Владычицы ИВО Иланы"},{"$f":"IF(Ипостасные!D176=\"\",\"\", \"Зал и кабинет \"&Ипостасные!C176&\" \"&Ипостасные!D176)","v":""}]
[98,null,{"$f":"\"Зал и кабинет \"&справочники!R160&\"\nЗал и кабинет Изначальной Владычицы ИВО \"&справочники!K160","v":"Зал и кабинет  ИВ Ипостась ИВ 353-Мерностное Синтезтело ИВО \nЗал и кабинет Изначальной Владычицы ИВО Яны"},{"$f":"IF(Ипостасные!D177=\"\",\"\", \"Зал и кабинет \"&Ипостасные!C177&\" \"&Ипостасные!D177)","v":""}]
[97,null,{"$f":"\"Зал и кабинет \"&справочники!R161&\"\nЗал и кабинет Изначальной Владычицы ИВО \"&справочники!K161","v":"Зал и кабинет  ИВ Ипостась ИВ 352-Мерностное Синтезтело ИВО \nЗал и кабинет Изначальной Владычицы ИВО Давлаты"},{"$f":"IF(Ипостасные!D178=\"\",\"\", \"Зал и кабинет \"&Ипостасные!C178&\" \"&Ипостасные!D178)","v":""}]
[96,null,{"$f":"\"Зал и кабинет \"&справочники!R162&\"\nЗал и кабинет Изначальной Владычицы ИВО \"&справочники!K162","v":"Зал и кабинет  ИВ Ипостась ИВ 351-Мерностное Синтезтело ИВО \nЗал и кабинет Изначальной Владычицы ИВО Ирины"},{"$f":"IF(Ипостасные!D179=\"\",\"\", \"Зал и кабинет \"&Ипостасные!C179&\" \"&Ипостасные!D179)","v":""}]
[95,null,{"$f":"\"Зал и кабинет \"&справочники!R163&\"\nЗал и кабинет Изначальной Владычицы ИВО \"&справочники!K163","v":"Зал и кабинет  ИВ Ипостась ИВ 350-Мерностное Синтезтело ИВО \nЗал и кабинет Изначальной Владычицы ИВО Лины"},{"$f":"IF(Ипостасные!D180=\"\",\"\", \"Зал и кабинет \"&Ипостасные!C180&\" \"&Ипостасные!D180)","v":""}]
[94,null,{"$f":"\"Зал и кабинет \"&справочники!R164&\"\nЗал и кабинет Изначальной Владычицы ИВО \"&справочники!K164","v":"Зал и кабинет  ИВ Ипостась ИВ 349-Мерностное Синтезтело ИВО \nЗал и кабинет Изначальной Владычицы ИВО Анастасии"},{"$f":"IF(Ипостасные!D181=\"\",\"\", \"Зал и кабинет \"&Ипостасные!C181&\" \"&Ипостасные!D181)","v":""}]
[93,null,{"$f":"\"Зал и кабинет \"&справочники!R165&\"\nЗал и кабинет Изначальной Владычицы ИВО \"&справочники!K165","v":"Зал и кабинет  ИВ Ипостась ИВ 348-Мерностное Синтезтело ИВО \nЗал и кабинет Изначальной Владычицы ИВО Омы"},{"$f":"IF(Ипостасные!D182=\"\",\"\", \"Зал и кабинет \"&Ипостасные!C182&\" \"&Ипостасные!D182)","v":""}]
[92,null,{"$f":"\"Зал и кабинет \"&справочники!R166&\"\nЗал и кабинет Изначальной Владычицы ИВО \"&справочники!K166","v":"Зал и кабинет  ИВ Ипостась ИВ 347-Мерностное Синтезтело ИВО \nЗал и кабинет Изначальной Владычицы ИВО Сольвейг"},{"$f":"IF(Ипостасные!D183=\"\",\"\", \"Зал и кабинет \"&Ипостасные!C183&\" \"&Ипостасные!D183)","v":""}]
[91,null,{"$f":"\"Зал и кабинет \"&справочники!R167&\"\nЗал и кабинет Изначальной Владычицы ИВО \"&справочники!K167","v":"Зал и кабинет  ИВ Ипостась ИВ 346-Мерностное Синтезтело ИВО \nЗал и кабинет Изначальной Владычицы ИВО Октавии"},{"$f":"IF(Ипостасные!D184=\"\",\"\", \"Зал и кабинет \"&Ипостасные!C184&\" \"&Ипостасные!D184)","v":""}]
[90,null,{"$f":"\"Зал и кабинет \"&справочники!R168&\"\nЗал и кабинет Изначальной Владычицы ИВО \"&справочники!K168","v":"Зал и кабинет  ИВ Ипостась ИВ 345-Мерностное Синтезтело ИВО \nЗал и кабинет Изначальной Владычицы ИВО Кристины"},{"$f":"IF(Ипостасные!D185=\"\",\"\", \"Зал и кабинет \"&Ипостасные!C185&\" \"&Ипостасные!D185)","v":""}]
[89,null,{"$f":"\"Зал и кабинет \"&справочники!R169&\"\nЗал и кабинет Изначальной Владычицы ИВО \"&справочники!K169","v":"Зал и кабинет  ИВ Ипостась ИВ 344-Мерностное Синтезтело ИВО \nЗал и кабинет Изначальной Владычицы ИВО Версавии"},{"$f":"IF(Ипостасные!D186=\"\",\"\", \"Зал и кабинет \"&Ипостасные!C186&\" \"&Ипостасные!D186)","v":""}]
[88,null,{"$f":"\"Зал и кабинет \"&справочники!R170&\"\nЗал и кабинет Изначальной Владычицы ИВО \"&справочники!K170","v":"Зал и кабинет  ИВ Ипостась ИВ 343-Мерностное Синтезтело ИВО \nЗал и кабинет Изначальной Владычицы ИВО Ксении"},{"$f":"IF(Ипостасные!D187=\"\",\"\", \"Зал и кабинет \"&Ипостасные!C187&\" \"&Ипостасные!D187)","v":""}]
[87,null,{"$f":"\"Зал и кабинет \"&справочники!R171&\"\nЗал и кабинет Изначальной Владычицы ИВО \"&справочники!K171","v":"Зал и кабинет  ИВ Ипостась ИВ 342-Мерностное Синтезтело ИВО \nЗал и кабинет Изначальной Владычицы ИВО Эммы"},{"$f":"IF(Ипостасные!D188=\"\",\"\", \"Зал и кабинет \"&Ипостасные!C188&\" \"&Ипостасные!D188)","v":""}]
[86,null,{"$f":"\"Зал и кабинет \"&справочники!R172&\"\nЗал и кабинет Изначальной Владычицы ИВО \"&справочники!K172","v":"Зал и кабинет  ИВ Ипостась ИВ 341-Мерностное Синтезтело ИВО \nЗал и кабинет Изначальной Владычицы ИВО Стафии"},{"$f":"IF(Ипостасные!D189=\"\",\"\", \"Зал и кабинет \"&Ипостасные!C189&\" \"&Ипостасные!D189)","v":""}]
[85,null,{"$f":"\"Зал и кабинет \"&справочники!R173&\"\nЗал и кабинет Изначальной Владычицы ИВО \"&справочники!K173","v":"Зал и кабинет  ИВ Ипостась ИВ 340-Мерностное Синтезтело ИВО \nЗал и кабинет Изначальной Владычицы ИВО Оксаны"},{"$f":"IF(Ипостасные!D190=\"\",\"\", \"Зал и кабинет \"&Ипостасные!C190&\" \"&Ипостасные!D190)","v":""}]
[84,null,{"$f":"\"Зал и кабинет \"&справочники!R174&\"\nЗал и кабинет Изначальной Владычицы ИВО \"&справочники!K174","v":"Зал и кабинет  ИВ Ипостась ИВ 339-Мерностное Синтезтело ИВО \nЗал и кабинет Изначальной Владычицы ИВО Ульяны"},{"$f":"IF(Ипостасные!D191=\"\",\"\", \"Зал и кабинет \"&Ипостасные!C191&\" \"&Ипостасные!D191)","v":""}]
[83,null,{"$f":"\"Зал и кабинет \"&справочники!R175&\"\nЗал и кабинет Изначальной Владычицы ИВО \"&справочники!K175","v":"Зал и кабинет  ИВ Ипостась ИВ 338-Мерностное Синтезтело ИВО \nЗал и кабинет Изначальной Владычицы ИВО Беатрисс"},{"$f":"IF(Ипостасные!D192=\"\",\"\", \"Зал и кабинет \"&Ипостасные!C192&\" \"&Ипостасные!D192)","v":""}]
[82,null,{"$f":"\"Зал и кабинет \"&справочники!R176&\"\nЗал и кабинет Изначальной Владычицы ИВО \"&справочники!K176","v":"Зал и кабинет  ИВ Ипостась ИВ 337-Мерностное Синтезтело ИВО \nЗал и кабинет Изначальной Владычицы ИВО Оливии"},{"$f":"IF(Ипостасные!D193=\"\",\"\", \"Зал и кабинет \"&Ипостасные!C193&\" \"&Ипостасные!D193)","v":""}]
[81,null,{"$f":"\"Зал и кабинет \"&справочники!R177&\"\nЗал и кабинет Изначальной Владычицы ИВО \"&справочники!K177","v":"Зал и кабинет  ИВ Ипостась ИВ 336-Мерностное Синтезтело ИВО \nЗал и кабинет Изначальной Владычицы ИВО Аллы"},{"$f":"IF(Ипостасные!D194=\"\",\"\", \"Зал и кабинет \"&Ипостасные!C194&\" \"&Ипостасные!D194)","v":""}]
[80,null,{"$f":"\"Зал и кабинет \"&справочники!R178&\"\nЗал и кабинет Изначальной Владычицы ИВО \"&справочники!K178","v":"Зал и кабинет  ИВ Ипостась ИВ 335-Мерностное Синтезтело ИВО \nЗал и кабинет Изначальной Владычицы ИВО Натали"},{"$f":"IF(Ипостасные!D195=\"\",\"\", \"Зал и кабинет \"&Ипостасные!C195&\" \"&Ипостасные!D195)","v":""}]
[79,null,{"$f":"\"Зал и кабинет \"&справочники!R179&\"\nЗал и кабинет Изначальной Владычицы ИВО \"&справочники!K179","v":"Зал и кабинет  ИВ Ипостась ИВ 334-Мерностное Синтезтело ИВО \nЗал и кабинет Изначальной Владычицы ИВО Эвы"},{"$f":"IF(Ипостасные!D196=\"\",\"\", \"Зал и кабинет \"&Ипостасные!C196&\" \"&Ипостасные!D196)","v":""}]
[78,null,{"$f":"\"Зал и кабинет \"&справочники!R180&\"\nЗал и кабинет Изначальной Владычицы ИВО \"&справочники!K180","v":"Зал и кабинет  ИВ Ипостась ИВ 333-Мерностное Синтезтело ИВО \nЗал и кабинет Изначальной Владычицы ИВО Ланы"},{"$f":"IF(Ипостасные!D197=\"\",\"\", \"Зал и кабинет \"&Ипостасные!C197&\" \"&Ипостасные!D197)","v":""}]
[77,null,{"$f":"\"Зал и кабинет \"&справочники!R181&\"\nЗал и кабинет Изначальной Владычицы ИВО \"&справочники!K181","v":"Зал и кабинет  ИВ Ипостась ИВ 332-Мерностное Синтезтело ИВО \nЗал и кабинет Изначальной Владычицы ИВО Одель"},{"$f":"IF(Ипостасные!D198=\"\",\"\", \"Зал и кабинет \"&Ипостасные!C198&\" \"&Ипостасные!D198)","v":""}]
[76,null,{"$f":"\"Зал и кабинет \"&справочники!R182&\"\nЗал и кабинет Изначальной Владычицы ИВО \"&справочники!K182","v":"Зал и кабинет  ИВ Ипостась ИВ 331-Мерностное Синтезтело ИВО \nЗал и кабинет Изначальной Владычицы ИВО Тамары"},{"$f":"IF(Ипостасные!D199=\"\",\"\", \"Зал и кабинет \"&Ипостасные!C199&\" \"&Ипостасные!D199)","v":""}]
[75,null,{"$f":"\"Зал и кабинет \"&справочники!R183&\"\nЗал и кабинет Изначальной Владычицы ИВО \"&справочники!K183","v":"Зал и кабинет  ИВ Ипостась ИВ 330-Мерностное Синтезтело ИВО \nЗал и кабинет Изначальной Владычицы ИВО Нины"},{"$f":"IF(Ипостасные!D200=\"\",\"\", \"Зал и кабинет \"&Ипостасные!C200&\" \"&Ипостасные!D200)","v":""}]
[74,null,{"$f":"\"Зал и кабинет \"&справочники!R184&\"\nЗал и кабинет Изначальной Владычицы ИВО \"&справочники!K184","v":"Зал и кабинет  ИВ Ипостась ИВ 329-Мерностное Синтезтело ИВО \nЗал и кабинет Изначальной Владычицы ИВО Орфеи"},{"$f":"IF(Ипостасные!D201=\"\",\"\", \"Зал и кабинет \"&Ипостасные!C201&\" \"&Ипостасные!D201)","v":""}]
[73,null,{"$f":"\"Зал и кабинет \"&справочники!R185&\"\nЗал и кабинет Изначальной Владычицы ИВО \"&справочники!K185","v":"Зал и кабинет  ИВ Ипостась ИВ 328-Мерностное Синтезтело ИВО \nЗал и кабинет Изначальной Владычицы ИВО Вергилии"},{"$f":"IF(Ипостасные!D202=\"\",\"\", \"Зал и кабинет \"&Ипостасные!C202&\" \"&Ипостасные!D202)","v":""}]
[72,null,{"$f":"\"Зал и кабинет \"&справочники!R186&\"\nЗал и кабинет Изначальной Владычицы ИВО \"&справочники!K186","v":"Зал и кабинет  ИВ Ипостась ИВ 327-Мерностное Синтезтело ИВО \nЗал и кабинет Изначальной Владычицы ИВО Василисы"},{"$f":"IF(Ипостасные!D203=\"\",\"\", \"Зал и кабинет \"&Ипостасные!C203&\" \"&Ипостасные!D203)","v":""}]
[71,null,{"$f":"\"Зал и кабинет \"&справочники!R187&\"\nЗал и кабинет Изначальной Владычицы ИВО \"&справочники!K187","v":"Зал и кабинет  ИВ Ипостась ИВ 326-Мерностное Синтезтело ИВО \nЗал и кабинет Изначальной Владычицы ИВО Варвары"},{"$f":"IF(Ипостасные!D204=\"\",\"\", \"Зал и кабинет \"&Ипостасные!C204&\" \"&Ипостасные!D204)","v":""}]
[70,null,{"$f":"\"Зал и кабинет \"&справочники!R188&\"\nЗал и кабинет Изначальной Владычицы ИВО \"&справочники!K188","v":"Зал и кабинет  ИВ Ипостась ИВ 325-Мерностное Синтезтело ИВО \nЗал и кабинет Изначальной Владычицы ИВО Арины"},{"$f":"IF(Ипостасные!D205=\"\",\"\", \"Зал и кабинет \"&Ипостасные!C205&\" \"&Ипостасные!D205)","v":""}]
[69,null,{"$f":"\"Зал и кабинет \"&справочники!R189&\"\nЗал и кабинет Изначальной Владычицы ИВО \"&справочники!K189","v":"Зал и кабинет  ИВ Ипостась ИВ 324-Мерностное Синтезтело ИВО \nЗал и кабинет Изначальной Владычицы ИВО Амалии"},{"$f":"IF(Ипостасные!D206=\"\",\"\", \"Зал и кабинет \"&Ипостасные!C206&\" \"&Ипостасные!D206)","v":""}]
[68,null,{"$f":"\"Зал и кабинет \"&справочники!R190&\"\nЗал и кабинет Изначальной Владычицы ИВО \"&справочники!K190","v":"Зал и кабинет  ИВ Ипостась ИВ 323-Мерностное Синтезтело ИВО \nЗал и кабинет Изначальной Владычицы ИВО Елизаветы"},{"$f":"IF(Ипостасные!D207=\"\",\"\", \"Зал и кабинет \"&Ипостасные!C207&\" \"&Ипостасные!D207)","v":""}]
[67,null,{"$f":"\"Зал и кабинет \"&справочники!R191&\"\nЗал и кабинет Изначальной Владычицы ИВО \"&справочники!K191","v":"Зал и кабинет  ИВ Ипостась ИВ 322-Мерностное Синтезтело ИВО \nЗал и кабинет Изначальной Владычицы ИВО Веры"},{"$f":"IF(Ипостасные!D208=\"\",\"\", \"Зал и кабинет \"&Ипостасные!C208&\" \"&Ипостасные!D208)","v":""}]
[66,null,{"$f":"\"Зал и кабинет \"&справочники!R192&\"\nЗал и кабинет Изначальной Владычицы ИВО \"&справочники!K192","v":"Зал и кабинет  ИВ Ипостась ИВ 321-Мерностное Синтезтело ИВО \nЗал и кабинет Изначальной Владычицы ИВО Мирославы"},{"$f":"IF(Ипостасные!D209=\"\",\"\", \"Зал и кабинет \"&Ипостасные!C209&\" \"&Ипостасные!D209)","v":""}]
[65,null,{"$f":"\"Зал и кабинет \"&справочники!R193&\"\nЗал и кабинет Изначальной Владычицы ИВО \"&справочники!K193","v":"Зал и кабинет  ИВ Ипостась ИВ 320-Мерностное Синтезтело ИВО \nЗал и кабинет Изначальной Владычицы ИВО Даяны"},{"$f":"IF(Ипостасные!D210=\"\",\"\", \"Зал и кабинет \"&Ипостасные!C210&\" \"&Ипостасные!D210)","v":""}]
[64,null,{"$f":"\"Зал и кабинет \"&справочники!R194&\"\nЗал и кабинет Изначальной Владычицы ИВО \"&справочники!K194","v":"Зал и кабинет  ИВ Ипостась ИВ 319-Мерностное Синтезтело ИВО \nЗал и кабинет Изначальной Владычицы ИВО Стеллы"},{"$f":"IF(Ипостасные!D211=\"\",\"\", \"Зал и кабинет \"&Ипостасные!C211&\" \"&Ипостасные!D211)","v":""}]
[63,null,{"$f":"\"Зал и кабинет \"&справочники!R195&\"\nЗал и кабинет Изначальной Владычицы ИВО \"&справочники!K195","v":"Зал и кабинет  ИВ Ипостась ИВ 318-Мерностное Синтезтело ИВО \nЗал и кабинет Изначальной Владычицы ИВО Доры"},{"$f":"IF(Ипостасные!D212=\"\",\"\", \"Зал и кабинет \"&Ипостасные!C212&\" \"&Ипостасные!D212)","v":""}]
[62,null,{"$f":"\"Зал и кабинет \"&справочники!R196&\"\nЗал и кабинет Изначальной Владычицы ИВО \"&справочники!K196","v":"Зал и кабинет  ИВ Ипостась ИВ 317-Мерностное Синтезтело ИВО \nЗал и кабинет Изначальной Владычицы ИВО Клавдии"},{"$f":"IF(Ипостасные!D213=\"\",\"\", \"Зал и кабинет \"&Ипостасные!C213&\" \"&Ипостасные!D213)","v":""}]
[61,null,{"$f":"\"Зал и кабинет \"&справочники!R197&\"\nЗал и кабинет Изначальной Владычицы ИВО \"&справочники!K197","v":"Зал и кабинет  ИВ Ипостась ИВ 316-Мерностное Синтезтело ИВО \nЗал и кабинет Изначальной Владычицы ИВО Лады"},{"$f":"IF(Ипостасные!D214=\"\",\"\", \"Зал и кабинет \"&Ипостасные!C214&\" \"&Ипостасные!D214)","v":""}]
[60,null,{"$f":"\"Зал и кабинет \"&справочники!R198&\"\nЗал и кабинет Изначальной Владычицы ИВО \"&справочники!K198","v":"Зал и кабинет  ИВ Ипостась ИВ 315-Мерностное Синтезтело ИВО \nЗал и кабинет Изначальной Владычицы ИВО Ветты"},{"$f":"IF(Ипостасные!D215=\"\",\"\", \"Зал и кабинет \"&Ипостасные!C215&\" \"&Ипостасные!D215)","v":""}]
[59,null,{"$f":"\"Зал и кабинет \"&справочники!R199&\"\nЗал и кабинет Изначальной Владычицы ИВО \"&справочники!K199","v":"Зал и кабинет  ИВ Ипостась ИВ 314-Мерностное Синтезтело ИВО \nЗал и кабинет Изначальной Владычицы ИВО Власты"},{"$f":"IF(Ипостасные!D216=\"\",\"\", \"Зал и кабинет \"&Ипостасные!C216&\" \"&Ипостасные!D216)","v":""}]
[58,null,{"$f":"\"Зал и кабинет \"&справочники!R200&\"\nЗал и кабинет Изначальной Владычицы ИВО \"&справочники!K200","v":"Зал и кабинет  ИВ Ипостась ИВ 313-Мерностное Синтезтело ИВО \nЗал и кабинет Изначальной Владычицы ИВО Офелии"},{"$f":"IF(Ипостасные!D217=\"\",\"\", \"Зал и кабинет \"&Ипостасные!C217&\" \"&Ипостасные!D217)","v":""}]
[57,null,{"$f":"\"Зал и кабинет \"&справочники!R201&\"\nЗал и кабинет Изначальной Владычицы ИВО \"&справочники!K201","v":"Зал и кабинет  ИВ Ипостась ИВ 312-Мерностное Синтезтело ИВО \nЗал и кабинет Изначальной Владычицы ИВО Данаи"},{"$f":"IF(Ипостасные!D218=\"\",\"\", \"Зал и кабинет \"&Ипостасные!C218&\" \"&Ипостасные!D218)","v":""}]
[56,null,{"$f":"\"Зал и кабинет \"&справочники!R202&\"\nЗал и кабинет Изначальной Владычицы ИВО \"&справочники!K202","v":"Зал и кабинет  ИВ Ипостась ИВ 311-Мерностное Синтезтело ИВО \nЗал и кабинет Изначальной Владычицы ИВО Ханны"},{"$f":"IF(Ипостасные!D219=\"\",\"\", \"Зал и кабинет \"&Ипостасные!C219&\" \"&Ипостасные!D219)","v":""}]
[55,null,{"$f":"\"Зал и кабинет \"&справочники!R203&\"\nЗал и кабинет Изначальной Владычицы ИВО \"&справочники!K203","v":"Зал и кабинет  ИВ Ипостась ИВ 310-Мерностное Синтезтело ИВО \nЗал и кабинет Изначальной Владычицы ИВО Хлои"},{"$f":"IF(Ипостасные!D220=\"\",\"\", \"Зал и кабинет \"&Ипостасные!C220&\" \"&Ипостасные!D220)","v":""}]
[54,null,{"$f":"\"Зал и кабинет \"&справочники!R204&\"\nЗал и кабинет Изначальной Владычицы ИВО \"&справочники!K204","v":"Зал и кабинет  ИВ Ипостась ИВ 309-Мерностное Синтезтело ИВО \nЗал и кабинет Изначальной Владычицы ИВО Надежды"},{"$f":"IF(Ипостасные!D221=\"\",\"\", \"Зал и кабинет \"&Ипостасные!C221&\" \"&Ипостасные!D221)","v":""}]
[53,null,{"$f":"\"Зал и кабинет \"&справочники!R205&\"\nЗал и кабинет Изначальной Владычицы ИВО \"&справочники!K205","v":"Зал и кабинет  ИВ Ипостась ИВ 308-Мерностное Синтезтело ИВО \nЗал и кабинет Изначальной Владычицы ИВО Оллы"},{"$f":"IF(Ипостасные!D222=\"\",\"\", \"Зал и кабинет \"&Ипостасные!C222&\" \"&Ипостасные!D222)","v":""}]
[52,null,{"$f":"\"Зал и кабинет \"&справочники!R206&\"\nЗал и кабинет Изначальной Владычицы ИВО \"&справочники!K206","v":"Зал и кабинет  ИВ Ипостась ИВ 307-Мерностное Синтезтело ИВО \nЗал и кабинет Изначальной Владычицы ИВО Илоны"},{"$f":"IF(Ипостасные!D223=\"\",\"\", \"Зал и кабинет \"&Ипостасные!C223&\" \"&Ипостасные!D223)","v":""}]
[51,null,{"$f":"\"Зал и кабинет \"&справочники!R207&\"\nЗал и кабинет Изначальной Владычицы ИВО \"&справочники!K207","v":"Зал и кабинет  ИВ Ипостась ИВ 306-Мерностное Синтезтело ИВО \nЗал и кабинет Изначальной Владычицы ИВО Генриетты"},{"$f":"IF(Ипостасные!D224=\"\",\"\", \"Зал и кабинет \"&Ипостасные!C224&\" \"&Ипостасные!D224)","v":""}]
[50,null,{"$f":"\"Зал и кабинет \"&справочники!R208&\"\nЗал и кабинет Изначальной Владычицы ИВО \"&справочники!K208","v":"Зал и кабинет  ИВ Ипостась ИВ 305-Мерностное Синтезтело ИВО \nЗал и кабинет Изначальной Владычицы ИВО Марии"},{"$f":"IF(Ипостасные!D225=\"\",\"\", \"Зал и кабинет \"&Ипостасные!C225&\" \"&Ипостасные!D225)","v":""}]
[49,null,{"$f":"\"Зал и кабинет \"&справочники!R209&\"\nЗал и кабинет Изначальной Владычицы ИВО \"&справочники!K209","v":"Зал и кабинет  ИВ Ипостась ИВ 304-Мерностное Синтезтело ИВО \nЗал и кабинет Изначальной Владычицы ИВО Глории"},{"$f":"IF(Ипостасные!D226=\"\",\"\", \"Зал и кабинет \"&Ипостасные!C226&\" \"&Ипостасные!D226)","v":""}]
[48,null,{"$f":"\"Зал и кабинет \"&справочники!R210&\"\nЗал и кабинет Изначальной Владычицы ИВО \"&справочники!K210","v":"Зал и кабинет  ИВ Ипостась ИВ 303-Мерностное Синтезтело ИВО \nЗал и кабинет Изначальной Владычицы ИВО Констанции"},{"$f":"IF(Ипостасные!D227=\"\",\"\", \"Зал и кабинет \"&Ипостасные!C227&\" \"&Ипостасные!D227)","v":""}]
[47,null,{"$f":"\"Зал и кабинет \"&справочники!R211&\"\nЗал и кабинет Изначальной Владычицы ИВО \"&справочники!K211","v":"Зал и кабинет  ИВ Ипостась ИВ 302-Мерностное Синтезтело ИВО \nЗал и кабинет Изначальной Владычицы ИВО Стэвии"},{"$f":"IF(Ипостасные!D228=\"\",\"\", \"Зал и кабинет \"&Ипостасные!C228&\" \"&Ипостасные!D228)","v":""}]
[46,null,{"$f":"\"Зал и кабинет \"&справочники!R212&\"\nЗал и кабинет Изначальной Владычицы ИВО \"&справочники!K212","v":"Зал и кабинет  ИВ Ипостась ИВ 301-Мерностное Синтезтело ИВО \nЗал и кабинет Изначальной Владычицы ИВО Полины"},{"$f":"IF(Ипостасные!D229=\"\",\"\", \"Зал и кабинет \"&Ипостасные!C229&\" \"&Ипостасные!D229)","v":""}]
[45,null,{"$f":"\"Зал и кабинет \"&справочники!R213&\"\nЗал и кабинет Изначальной Владычицы ИВО \"&справочники!K213","v":"Зал и кабинет  ИВ Ипостась ИВ 300-Мерностное Синтезтело ИВО \nЗал и кабинет Изначальной Владычицы ИВО Виру"},{"$f":"IF(Ипостасные!D230=\"\",\"\", \"Зал и кабинет \"&Ипостасные!C230&\" \"&Ипостасные!D230)","v":""}]
[44,null,{"$f":"\"Зал и кабинет \"&справочники!R214&\"\nЗал и кабинет Изначальной Владычицы ИВО \"&справочники!K214","v":"Зал и кабинет  ИВ Ипостась ИВ 299-Мерностное Синтезтело ИВО \nЗал и кабинет Изначальной Владычицы ИВО Фанны"},{"$f":"IF(Ипостасные!D231=\"\",\"\", \"Зал и кабинет \"&Ипостасные!C231&\" \"&Ипостасные!D231)","v":""}]
[43,null,{"$f":"\"Зал и кабинет \"&справочники!R215&\"\nЗал и кабинет Изначальной Владычицы ИВО \"&справочники!K215","v":"Зал и кабинет  ИВ Ипостась ИВ 298-Мерностное Синтезтело ИВО \nЗал и кабинет Изначальной Владычицы ИВО Евгении"},{"$f":"IF(Ипостасные!D232=\"\",\"\", \"Зал и кабинет \"&Ипостасные!C232&\" \"&Ипостасные!D232)","v":""}]
[42,null,{"$f":"\"Зал и кабинет \"&справочники!R216&\"\nЗал и кабинет Изначальной Владычицы ИВО \"&справочники!K216","v":"Зал и кабинет  ИВ Ипостась ИВ 297-Мерностное Синтезтело ИВО \nЗал и кабинет Изначальной Владычицы ИВО Элины"},{"$f":"IF(Ипостасные!D233=\"\",\"\", \"Зал и кабинет \"&Ипостасные!C233&\" \"&Ипостасные!D233)","v":""}]
[41,null,{"$f":"\"Зал и кабинет \"&справочники!R217&\"\nЗал и кабинет Изначальной Владычицы ИВО \"&справочники!K217","v":"Зал и кабинет  ИВ Ипостась ИВ 296-Мерностное Синтезтело ИВО \nЗал и кабинет Изначальной Владычицы ИВО Сары"},{"$f":"IF(Ипостасные!D234=\"\",\"\", \"Зал и кабинет \"&Ипостасные!C234&\" \"&Ипостасные!D234)","v":""}]
[40,null,{"$f":"\"Зал и кабинет \"&справочники!R218&\"\nЗал и кабинет Изначальной Владычицы ИВО \"&справочники!K218","v":"Зал и кабинет  ИВ Ипостась ИВ 295-Мерностное Синтезтело ИВО \nЗал и кабинет Изначальной Владычицы ИВО Алевтины"},{"$f":"IF(Ипостасные!D235=\"\",\"\", \"Зал и кабинет \"&Ипостасные!C235&\" \"&Ипостасные!D235)","v":""}]
[39,null,{"$f":"\"Зал и кабинет \"&справочники!R219&\"\nЗал и кабинет Изначальной Владычицы ИВО \"&справочники!K219","v":"Зал и кабинет  ИВ Ипостась ИВ 294-Мерностное Синтезтело ИВО \nЗал и кабинет Изначальной Владычицы ИВО Раисы"},{"$f":"IF(Ипостасные!D236=\"\",\"\", \"Зал и кабинет \"&Ипостасные!C236&\" \"&Ипостасные!D236)","v":""}]
[38,null,{"$f":"\"Зал и кабинет \"&справочники!R220&\"\nЗал и кабинет Изначальной Владычицы ИВО \"&справочники!K220","v":"Зал и кабинет  ИВ Ипостась ИВ 293-Мерностное Синтезтело ИВО \nЗал и кабинет Изначальной Владычицы ИВО Авроры"},{"$f":"IF(Ипостасные!D237=\"\",\"\", \"Зал и кабинет \"&Ипостасные!C237&\" \"&Ипостасные!D237)","v":""}]
[37,null,{"$f":"\"Зал и кабинет \"&справочники!R221&\"\nЗал и кабинет Изначальной Владычицы ИВО \"&справочники!K221","v":"Зал и кабинет  ИВ Ипостась ИВ 292-Мерностное Синтезтело ИВО \nЗал и кабинет Изначальной Владычицы ИВО Диланы"},{"$f":"IF(Ипостасные!D238=\"\",\"\", \"Зал и кабинет \"&Ипостасные!C238&\" \"&Ипостасные!D238)","v":""}]
[36,null,{"$f":"\"Зал и кабинет \"&справочники!R222&\"\nЗал и кабинет Изначальной Владычицы ИВО \"&справочники!K222","v":"Зал и кабинет  ИВ Ипостась ИВ 291-Мерностное Синтезтело ИВО \nЗал и кабинет Изначальной Владычицы ИВО Яси"},{"$f":"IF(Ипостасные!D239=\"\",\"\", \"Зал и кабинет \"&Ипостасные!C239&\" \"&Ипостасные!D239)","v":""}]
[35,null,{"$f":"\"Зал и кабинет \"&справочники!R223&\"\nЗал и кабинет Изначальной Владычицы ИВО \"&справочники!K223","v":"Зал и кабинет  ИВ Ипостась ИВ 290-Мерностное Синтезтело ИВО \nЗал и кабинет Изначальной Владычицы ИВО Фиры"},{"$f":"IF(Ипостасные!D240=\"\",\"\", \"Зал и кабинет \"&Ипостасные!C240&\" \"&Ипостасные!D240)","v":""}]
[34,null,{"$f":"\"Зал и кабинет \"&справочники!R224&\"\nЗал и кабинет Изначальной Владычицы ИВО \"&справочники!K224","v":"Зал и кабинет  ИВ Ипостась ИВ 289-Мерностное Синтезтело ИВО \nЗал и кабинет Изначальной Владычицы ИВО Омелии"},{"$f":"IF(Ипостасные!D241=\"\",\"\", \"Зал и кабинет \"&Ипостасные!C241&\" \"&Ипостасные!D241)","v":""}]
[33,null,{"$f":"\"Зал и кабинет \"&справочники!R225&\"\nЗал и кабинет Изначальной Владычицы ИВО \"&справочники!K225","v":"Зал и кабинет  ИВ Ипостась ИВ 288-Мерностное Синтезтело ИВО \nЗал и кабинет Изначальной Владычицы ИВО Мадлен"},{"$f":"IF(Ипостасные!D242=\"\",\"\", \"Зал и кабинет \"&Ипостасные!C242&\" \"&Ипостасные!D242)","v":""}]
[32,null,{"$f":"\"Зал и кабинет \"&справочники!R226&\"\nЗал и кабинет Изначальной Владычицы ИВО \"&справочники!K226","v":"Зал и кабинет  ИВ Ипостась ИВ 287-Мерностное Синтезтело ИВО \nЗал и кабинет Изначальной Владычицы ИВО Риммы"},{"$f":"IF(Ипостасные!D243=\"\",\"\", \"Зал и кабинет \"&Ипостасные!C243&\" \"&Ипостасные!D243)","v":""}]
[31,null,{"$f":"\"Зал и кабинет \"&справочники!R227&\"\nЗал и кабинет Изначальной Владычицы ИВО \"&справочники!K227","v":"Зал и кабинет  ИВ Ипостась ИВ 286-Мерностное Синтезтело ИВО \nЗал и кабинет Изначальной Владычицы ИВО Беллы"},{"$f":"IF(Ипостасные!D244=\"\",\"\", \"Зал и кабинет \"&Ипостасные!C244&\" \"&Ипостасные!D244)","v":""}]
[30,null,{"$f":"\"Зал и кабинет \"&справочники!R228&\"\nЗал и кабинет Изначальной Владычицы ИВО \"&справочники!K228","v":"Зал и кабинет  ИВ Ипостась ИВ 285-Мерностное Синтезтело ИВО \nЗал и кабинет Изначальной Владычицы ИВО Агнии"},{"$f":"IF(Ипостасные!D245=\"\",\"\", \"Зал и кабинет \"&Ипостасные!C245&\" \"&Ипостасные!D245)","v":""}]
[29,null,{"$f":"\"Зал и кабинет \"&справочники!R229&\"\nЗал и кабинет Изначальной Владычицы ИВО \"&справочники!K229","v":"Зал и кабинет  ИВ Ипостась ИВ 284-Мерностное Синтезтело ИВО \nЗал и кабинет Изначальной Владычицы ИВО Фелиции"},{"$f":"IF(Ипостасные!D246=\"\",\"\", \"Зал и кабинет \"&Ипостасные!C246&\" \"&Ипостасные!D246)","v":""}]
[28,null,{"$f":"\"Зал и кабинет \"&справочники!R230&\"\nЗал и кабинет Изначальной Владычицы ИВО \"&справочники!K230","v":"Зал и кабинет  ИВ Ипостась ИВ 283-Мерностное Синтезтело ИВО \nЗал и кабинет Изначальной Владычицы ИВО Виталины"},{"$f":"IF(Ипостасные!D247=\"\",\"\", \"Зал и кабинет \"&Ипостасные!C247&\" \"&Ипостасные!D247)","v":""}]
[27,null,{"$f":"\"Зал и кабинет \"&справочники!R231&\"\nЗал и кабинет Изначальной Владычицы ИВО \"&справочники!K231","v":"Зал и кабинет  ИВ Ипостась ИВ 282-Мерностное Синтезтело ИВО \nЗал и кабинет Изначальной Владычицы ИВО Ноны"},{"$f":"IF(Ипостасные!D248=\"\",\"\", \"Зал и кабинет \"&Ипостасные!C248&\" \"&Ипостасные!D248)","v":""}]
[26,null,{"$f":"\"Зал и кабинет \"&справочники!R232&\"\nЗал и кабинет Изначальной Владычицы ИВО \"&справочники!K232","v":"Зал и кабинет  ИВ Ипостась ИВ 281-Мерностное Синтезтело ИВО \nЗал и кабинет Изначальной Владычицы ИВО Клементины"},{"$f":"IF(Ипостасные!D249=\"\",\"\", \"Зал и кабинет \"&Ипостасные!C249&\" \"&Ипостасные!D249)","v":""}]
[25,null,{"$f":"\"Зал и кабинет \"&справочники!R233&\"\nЗал и кабинет Изначальной Владычицы ИВО \"&справочники!K233","v":"Зал и кабинет  ИВ Ипостась ИВ 280-Мерностное Синтезтело ИВО \nЗал и кабинет Изначальной Владычицы ИВО Лиры"},{"$f":"IF(Ипостасные!D250=\"\",\"\", \"Зал и кабинет \"&Ипостасные!C250&\" \"&Ипостасные!D250)","v":""}]
[24,null,{"$f":"\"Зал и кабинет \"&справочники!R234&\"\nЗал и кабинет Изначальной Владычицы ИВО \"&справочники!K234","v":"Зал и кабинет  ИВ Ипостась ИВ 279-Мерностное Синтезтело ИВО \nЗал и кабинет Изначальной Владычицы ИВО Ванессы"},{"$f":"IF(Ипостасные!D251=\"\",\"\", \"Зал и кабинет \"&Ипостасные!C251&\" \"&Ипостасные!D251)","v":""}]
[23,null,{"$f":"\"Зал и кабинет \"&справочники!R235&\"\nЗал и кабинет Изначальной Владычицы ИВО \"&справочники!K235","v":"Зал и кабинет  ИВ Ипостась ИВ 278-Мерностное Синтезтело ИВО \nЗал и кабинет Изначальной Владычицы ИВО Евдокии"},{"$f":"IF(Ипостасные!D252=\"\",\"\", \"Зал и кабинет \"&Ипостасные!C252&\" \"&Ипостасные!D252)","v":""}]
[22,null,{"$f":"\"Зал и кабинет \"&справочники!R236&\"\nЗал и кабинет Изначальной Владычицы ИВО \"&справочники!K236","v":"Зал и кабинет  ИВ Ипостась ИВ 277-Мерностное Синтезтело ИВО \nЗал и кабинет Изначальной Владычицы ИВО Клары"},{"$f":"IF(Ипостасные!D253=\"\",\"\", \"Зал и кабинет \"&Ипостасные!C253&\" \"&Ипостасные!D253)","v":""}]
[21,null,{"$f":"\"Зал и кабинет \"&справочники!R237&\"\nЗал и кабинет Изначальной Владычицы ИВО \"&справочники!K237","v":"Зал и кабинет  ИВ Ипостась ИВ 276-Мерностное Синтезтело ИВО \nЗал и кабинет Изначальной Владычицы ИВО Лизы"},{"$f":"IF(Ипостасные!D254=\"\",\"\", \"Зал и кабинет \"&Ипостасные!C254&\" \"&Ипостасные!D254)","v":""}]
[20,null,{"$f":"\"Зал и кабинет \"&справочники!R238&\"\nЗал и кабинет Изначальной Владычицы ИВО \"&справочники!K238","v":"Зал и кабинет  ИВ Ипостась ИВ 275-Мерностное Синтезтело ИВО \nЗал и кабинет Изначальной Владычицы ИВО Сюзанны"},{"$f":"IF(Ипостасные!D255=\"\",\"\", \"Зал и кабинет \"&Ипостасные!C255&\" \"&Ипостасные!D255)","v":""}]
[19,null,{"$f":"\"Зал и кабинет \"&справочники!R239&\"\nЗал и кабинет Изначальной Владычицы ИВО \"&справочники!K239","v":"Зал и кабинет  ИВ Ипостась ИВ 274-Мерностное Синтезтело ИВО \nЗал и кабинет Изначальной Владычицы ИВО Сейлы"},{"$f":"IF(Ипостасные!D256=\"\",\"\", \"Зал и кабинет \"&Ипостасные!C256&\" \"&Ипостасные!D256)","v":""}]
[18,null,{"$f":"\"Зал и кабинет \"&справочники!R240&\"\nЗал и кабинет Изначальной Владычицы ИВО \"&справочники!K240","v":"Зал и кабинет  ИВ Ипостась ИВ 273-Мерностное Синтезтело ИВО \nЗал и кабинет Изначальной Владычицы ИВО Русланы"},{"$f":"IF(Ипостасные!D257=\"\",\"\", \"Зал и кабинет \"&Ипостасные!C257&\" \"&Ипостасные!D257)","v":""}]
[17,null,{"$f":"\"Зал и кабинет \"&справочники!R241&\"\nЗал и кабинет Изначальной Владычицы ИВО \"&справочники!K241","v":"Зал и кабинет  ИВ Ипостась ИВ 272-Мерностное Синтезтело ИВО \nЗал и кабинет Изначальной Владычицы ИВО Устины"},{"$f":"IF(Ипостасные!D258=\"\",\"\", \"Зал и кабинет \"&Ипостасные!C258&\" \"&Ипостасные!D258)","v":""}]
[16,null,{"$f":"\"Зал и кабинет \"&справочники!R242&\"\nЗал и кабинет Изначальной Владычицы ИВО \"&справочники!K242","v":"Зал и кабинет  ИВ Ипостась ИВ 271-Мерностное Синтезтело ИВО \nЗал и кабинет Изначальной Владычицы ИВО Марики"},{"$f":"IF(Ипостасные!D259=\"\",\"\", \"Зал и кабинет \"&Ипостасные!C259&\" \"&Ипостасные!D259)","v":""}]
[15,null,{"$f":"\"Зал и кабинет \"&справочники!R243&\"\nЗал и кабинет Изначальной Владычицы ИВО \"&справочники!K243","v":"Зал и кабинет  ИВ Ипостась ИВ 270-Мерностное Синтезтело ИВО \nЗал и кабинет Изначальной Владычицы ИВО Франсуазы"},{"$f":"IF(Ипостасные!D260=\"\",\"\", \"Зал и кабинет \"&Ипостасные!C260&\" \"&Ипостасные!D260)","v":""}]
[14,null,{"$f":"\"Зал и кабинет \"&справочники!R244&\"\nЗал и кабинет Изначальной Владычицы ИВО \"&справочники!K244","v":"Зал и кабинет  ИВ Ипостась ИВ 269-Мерностное Синтезтело ИВО \nЗал и кабинет Изначальной Владычицы ИВО Христины"},{"$f":"IF(Ипостасные!D261=\"\",\"\", \"Зал и кабинет \"&Ипостасные!C261&\" \"&Ипостасные!D261)","v":""}]
[13,null,{"$f":"\"Зал и кабинет \"&справочники!R245&\"\nЗал и кабинет Изначальной Владычицы ИВО \"&справочники!K245","v":"Зал и кабинет  ИВ Ипостась ИВ 268-Мерностное Синтезтело ИВО \nЗал и кабинет Изначальной Владычицы ИВО Иоланы"},{"$f":"IF(Ипостасные!D262=\"\",\"\", \"Зал и кабинет \"&Ипостасные!C262&\" \"&Ипостасные!D262)","v":""}]
[12,null,{"$f":"\"Зал и кабинет \"&справочники!R246&\"\nЗал и кабинет Изначальной Владычицы ИВО \"&справочники!K246","v":"Зал и кабинет  ИВ Ипостась ИВ 267-Мерностное Синтезтело ИВО \nЗал и кабинет Изначальной Владычицы ИВО Джесики"},{"$f":"IF(Ипостасные!D263=\"\",\"\", \"Зал и кабинет \"&Ипостасные!C263&\" \"&Ипостасные!D263)","v":""}]
[11,null,{"$f":"\"Зал и кабинет \"&справочники!R247&\"\nЗал и кабинет Изначальной Владычицы ИВО \"&справочники!K247","v":"Зал и кабинет  ИВ Ипостась ИВ 266-Мерностное Синтезтело ИВО \nЗал и кабинет Изначальной Владычицы ИВО Сабины"},{"$f":"IF(Ипостасные!D264=\"\",\"\", \"Зал и кабинет \"&Ипостасные!C264&\" \"&Ипостасные!D264)","v":""}]
[10,null,{"$f":"\"Зал и кабинет \"&справочники!R248&\"\nЗал и кабинет Изначальной Владычицы ИВО \"&справочники!K248","v":"Зал и кабинет  ИВ Ипостась ИВ 265-Мерностное Синтезтело ИВО \nЗал и кабинет Изначальной Владычицы ИВО Нелли"},{"$f":"IF(Ипостасные!D265=\"\",\"\", \"Зал и кабинет \"&Ипостасные!C265&\" \"&Ипостасные!D265)","v":""}]
[9,null,{"$f":"\"Зал и кабинет \"&справочники!R249&\"\nЗал и кабинет Изначальной Владычицы ИВО \"&справочники!K249","v":"Зал и кабинет  ИВ Ипостась ИВ 264-Мерностное Синтезтело ИВО \nЗал и кабинет Изначальной Владычицы ИВО Санты"},{"$f":"IF(Ипостасные!D266=\"\",\"\", \"Зал и кабинет \"&Ипостасные!C266&\" \"&Ипостасные!D266)","v":""}]
[8,null,{"$f":"\"Зал и кабинет \"&справочники!R250&\"\nЗал и кабинет Изначальной Владычицы ИВО \"&справочники!K250","v":"Зал и кабинет  ИВ Ипостась ИВ 263-Мерностное Синтезтело ИВО \nЗал и кабинет Изначальной Владычицы ИВО Доротеи"},{"$f":"IF(Ипостасные!D267=\"\",\"\", \"Зал и кабинет \"&Ипостасные!C267&\" \"&Ипостасные!D267)","v":""}]
[7,null,{"$f":"\"Зал и кабинет \"&справочники!R251&\"\nЗал и кабинет Изначальной Владычицы ИВО \"&справочники!K251","v":"Зал и кабинет  ИВ Ипостась ИВ 262-Мерностное Синтезтело ИВО \nЗал и кабинет Изначальной Владычицы ИВО Янины"},{"$f":"IF(Ипостасные!D268=\"\",\"\", \"Зал и кабинет \"&Ипостасные!C268&\" \"&Ипостасные!D268)","v":""}]
[6,null,{"$f":"\"Зал и кабинет \"&справочники!R252&\"\nЗал и кабинет Изначальной Владычицы ИВО \"&справочники!K252","v":"Зал и кабинет  ИВ Ипостась ИВ 261-Мерностное Синтезтело ИВО \nЗал и кабинет Изначальной Владычицы ИВО Люции"},{"$f":"IF(Ипостасные!D269=\"\",\"\", \"Зал и кабинет \"&Ипостасные!C269&\" \"&Ипостасные!D269)","v":""}]
[5,null,{"$f":"\"Зал и кабинет \"&справочники!R253&\"\nЗал и кабинет Изначальной Владычицы ИВО \"&справочники!K253","v":"Зал и кабинет  ИВ Ипостась ИВ 260-Мерностное Синтезтело ИВО \nЗал и кабинет Изначальной Владычицы ИВО Ирэн"},{"$f":"IF(Ипостасные!D270=\"\",\"\", \"Зал и кабинет \"&Ипостасные!C270&\" \"&Ипостасные!D270)","v":""}]
[4,null,{"$f":"\"Зал и кабинет \"&справочники!R254&\"\nЗал и кабинет Изначальной Владычицы ИВО \"&справочники!K254","v":"Зал и кабинет  ИВ Ипостась ИВ 259-Мерностное Синтезтело ИВО \nЗал и кабинет Изначальной Владычицы ИВО Сесилии"},{"$f":"IF(Ипостасные!D271=\"\",\"\", \"Зал и кабинет \"&Ипостасные!C271&\" \"&Ипостасные!D271)","v":""}]
[3,null,{"$f":"\"Зал и кабинет \"&справочники!R255&\"\nЗал и кабинет Изначальной Владычицы ИВО \"&справочники!K255","v":"Зал и кабинет  ИВ Ипостась ИВ 258-Мерностное Синтезтело ИВО \nЗал и кабинет Изначальной Владычицы ИВО Вериславы"},{"$f":"IF(Ипостасные!D272=\"\",\"\", \"Зал и кабинет \"&Ипостасные!C272&\" \"&Ипостасные!D272)","v":""}]
[2,null,{"$f":"\"Зал и кабинет \"&справочники!R256&\"\nЗал и кабинет Изначальной Владычицы ИВО \"&справочники!K256","v":"Зал и кабинет  ИВ Ипостась ИВ 257-Мерностное Синтезтело ИВО \nЗал и кабинет Изначальной Владычицы ИВО Станиславы"},{"$f":"IF(Ипостасные!D273=\"\",\"\", \"Зал и кабинет \"&Ипостасные!C273&\" \"&Ипостасные!D273)","v":""}]
[1,null,{"$f":"\"Зал и кабинет \"&справочники!R257&\"\nЗал и кабинет Изначальной Владычицы ИВО \"&справочники!K257","v":"Зал и кабинет  ИВ Ипостась ИВ 256-Мерностное Синтезтело ИВО \nЗал и кабинет Изначальной Владычицы ИВО Милославы"},{"$f":"IF(Ипостасные!D274=\"\",\"\", \"Зал и кабинет \"&Ипостасные!C274&\" \"&Ипостасные!D274)","v":""}]

{"sheet":"Этажи","index":3,"n_rows":4,"n_cols":1,"rows_kept":4,"cut":false,"hidden":false,"merged":[[0,0,0,1],[1,0,1,1],[18,0,18,1],[3,0,3,1]]}
[{"$f":"\"План здания \"&Наименование_Подразделения&\" \"&Изначальность&\" Изначальности, \"&Территория","v":"План здания Изначально Вышестоящий Дом ИВО 512 Изначальности, Москва"}]
["В плане здания распределены только Ипостасные ИВДИВО Основного и Синтезного состава. Служащие, Посвящённые и Полномочные приписаны к Ипостасным и составляют их группы явления в Залах."]
[]
["План 256-ти этажей:"]

{"sheet":"справочники","index":4,"n_rows":274,"n_cols":18,"rows_kept":274,"cut":false,"hidden":false,"merged":[]}
["№ Изн","территория","территории","Отделения","Название подразделения","Название подразделения в родительном падеже","128рица Синтеза ИВО","256-рица ИВО","256-рица ИВОв родительном падеже","ИВладыки","ИВладыки","Вид подразделения",{"$f":"\"Контакты Ипостасных подразделения \"&Наименование_Подразделения&\" \"&Изначальность&\" Изначальности\"&\", \"&Территория","v":"Контакты Ипостасных подразделения Изначально Вышестоящий Дом ИВО 512 Изначальности, Москва"},null,null,null,"128 частей","Кабинеты на этажах"]
[512,"Москва","Москвы","Р","Изначально Вышестоящий Дом ИВО","Изначально Вышестоящий Дом ИВО","Изначально Вышестоящий Дом ИВО"," ИВ Отец ИВО ","Отца ИВО","Кут Хуми   ","Кут Хуми","1 Состав: 16 Служащих","Фаинь",null,0,0," Отец ИВО                               "," ИВ Отец ИВО "]
[511,"Санкт-Петербург","Санкт-Петербурга","Р","Изначально Вышестоящая Иерархия ИВО","Изначально Вышестоящая Иерархия ИВО","Изначально Вышестоящая Иерархия ИВО"," ИВ Аватар ИВО ","Аватара ИВО","Иосиф","Иосифа","2 Состав: 22 Служащих","Славия","Наименование подразделения в родительном падеже:",null,null," Владыка ИВО                         "," ИВ Аватар ИВО "]
[510,"Новосибирск","Новосибирска","Р","Синтез Изначально Вышестоящего Человека ИВО","Синтез Изначально Вышестоящего Человека ИВО","Синтез Изначально Вышестоящего Человека ИВО"," ИВ Владыка ИВ ","Владыки ИВО","Мория","Мории","3 Состав: 27 Служащих","Свет","Управление Синтеза",null,null," Учитель ИВО                          "," ИВ Владыка ИВ "]
[509,"Крым","Крыма","Р","Синтез Изначально Метагалактической Цивилизации ИВО","Синтез Изначально Метагалактической Цивилизации ИВО","Синтез Изначально Метагалактической Цивилизации ИВО"," ИВ Учитель ИВО ","Учителя ИВО","Филипп","Филиппа","4 Состав: 33 Служащих","Марина","Территория (именительный падеж):",null,null," Логос ИВО                              "," ИВ Учитель ИВО "]
[508,"Краснодар","Краснодара","Р","Синтез Метагалактической Гражданской Конфедерации ИВО","Синтез Метагалактической Гражданской Конфедерации ИВО","Синтез Метагалактической Гражданской Конфедерации ИВО"," ИВ Ипостась ИВО ","Ипостаси ИВО","Византий","Византия","5 Состав: 40 Служащих","Альбина","Территория (родительный падеж):",null,null," Аватар ИВО                            "," ИВ Ипостась ИВО "]
[507,"Красноярск","Красноярска","Р","Синтез Изначально Психодинамического Мастерства ИВО","Синтез Изначально Психодинамического Мастерства ИВО","Синтез Изначально Психодинамического Мастерства ИВО"," ИВ Ипостась ИВ Служащий ИВО ","Ипостаси Служащего ИВО","Янов","Янова","6 Состав: 50 Служащих","Вероника","Владыка",null,null," Ипостась ИВО                        "," ИВ Ипостась ИВ Служащий ИВО "]
[506,"Екатеринбург","Екатеринбурга","Р","Синтез Посвящений ИВО","Синтез Посвящений ИВО","Синтез Посвящений ИВО"," ИВ Ипостась ИВ Посвящённый ИВО ","Ипостаси Посвящённого ИВО","Юлий","Юлия","7 Состав: 59 Служащих","Сиана","Владычица",null,null," Служащий ИВО                      "," ИВ Ипостась ИВ Посвящённый ИВО "]
[505,"Московия","Московии","Р","Синтез Жизни ИВО","Синтез Жизни ИВО","Синтез Жизни ИВО"," ИВ Ипостась ИВ Майтрейя ИВО ","Ипостаси Майтрейя ИВО","Юсеф ","Юсефа","8 Состав: 68 Служащих","Она",null,null,null," Посвящённый ИВО                "," ИВ Ипостась ИВ Майтрейя ИВО "]
[504,"Иркутск","Иркутска","Р","Синтез Воскрешения ИВО","Синтез Воскрешения ИВО","Синтез Воскрешения ИВО"," ИВ Ипостась ИВ Христос ИВО ","Ипостаси Христа ИВО","Владомир  ","Владомира","9 Состав: 76 Служащих","Стефания",null,null,null," Полномочный ИВО                "," ИВ Ипостась ИВ Христос ИВО "]
[503,"Сочи","Сочи","Р","Синтез Пробуждения ИВО","Синтез Пробуждения ИВО","Синтез Пробуждения ИВО"," ИВ Ипостась ИВ Будда ИВО ","Ипостаси Будды ИВО","Савва         ","Саввы","10 Состав: 84 Служащих","Свята",null,null,null," Ману ИВО                               "," ИВ Ипостась ИВ Будда ИВО "]
[502,"Ставрополь","Ставрополя","Р","Синтез Генезиса ИВО","Синтез Генезиса ИВО","Синтез Генезиса ИВО"," ИВ Ипостась ИВ Теург ИВО ","Ипостаси Теурга ИВО","Савелий     ","Савелия","11 Состав: 92 Служащих","Баяна",null,null,null," Теург ИВО                                "," ИВ Ипостась ИВ Теург ИВО "]
[501,"Самара","Самары","Р","Синтез Человечности ИВО","Синтез Человечности ИВО","Синтез Человечности ИВО"," ИВ Ипостась ИВ Творец ИВО ","Ипостаси Творца ИВО","Вильгельм ","Вильгельма","12 Состав: 100 Служащих","Екатерина",null,null,null," Творец ИВО                                "," ИВ Ипостась ИВ Творец ИВО "]
[500,"Ростов-на-Дону","Ростова-на-Дону","Р","Синтез Служения ИВО","Синтез Служения ИВО","Синтез Служения ИВО"," ИВ Ипостась ИВ Аспект ИВО ","Ипостаси Аспекта ИВО","Юстас        ","Юстаса","13 Состав: 108 Служащих","Сивилла",null,null,null," Аспект ИВО                             "," ИВ Ипостась ИВ Аспект ИВО "]
[499,"Челны","Челнов","Р","Синтез Взрастания ИВО","Синтез Взрастания ИВО","Синтез Взрастания ИВО"," ИВ Ипостась ИВ Логос ИВО ","Ипостаси Логоса ИВО","Александр ","Александра","14 Состав: 116 Служащих","Тамила",null,null,null," Майтрейя ИВО                        "," ИВ Ипостась ИВ Логос ИВО "]
[498,"Кавминводы","Кавминвод","Р","Синтез Практики ИВО","Синтез Практики ИВО","Синтез Практики ИВО"," ИВ Ипостась ИВ Ману ИВО ","Ипостаси Ману ИВО","Яромир       ","Яромира","15 Состав: 124 Служащих","Ника",{"$f":"\"Аватар Синтез Синтеза ИВО, Глава ИВДИВО \"&Изначальность&\" Изначальности, Управления Синтеза Кут Хуми\"","v":"Аватар Синтез Синтеза ИВО, Глава ИВДИВО 512 Изначальности, Управления Синтеза Кут Хуми"},null,null," Христос ИВО                           "," ИВ Ипостась ИВ Ману ИВО "]
[497,"Казань","Казани","Р","Синтез Могущества ИВО","Синтез Могущества ИВО","Синтез Могущества ИВО"," ИВ Ипостась ИВ Человек ИВО ","Ипостаси Человека ИВО","Серапис      ","Сераписа","16 Состав: 128 Служащих","Велетте",{"$f":"\"Владыка Синтез Синтеза Изначально Вышестоящего \"&IFERROR(INDEX(_256_ИВО,513-Изначальность),\"ошибка\")&\", Глава Высшей Школы Синтеза \"&Изначальность&\" Изначальности, Управления Синтеза Иосифа\"","v":"Владыка Синтез Синтеза Изначально Вышестоящего Отца ИВО, Глава Высшей Школы Синтеза 512 Изначальности, Управления Синтеза Иосифа"},null,null," Будда ИВО                               "," ИВ Ипостась ИВ Человек ИВО "]
[496,"Севастополь","Севастополя","Р","Синтез Ипостасности ИВО","Синтез Ипостасности ИВО","Синтез Ипостасности ИВО"," ИВ Ипостась ИВ ИВЧеловек ИВО ","Ипостаси ИВ Человека ИВО","Эдуард        ","Эдуарда",null,"Эмилия",{"$f":"\"Владыка Синтез Синтеза Изначального Владыки Кут Хуми, Глава Изначально Метагалактической Академии Наук \"&Территории&\", Управления Синтеза Мории\"","v":"Владыка Синтез Синтеза Изначального Владыки Кут Хуми, Глава Изначально Метагалактической Академии Наук Москвы, Управления Синтеза Мории"},null,null," Изначально Вышестоящий Человек ИВО        "," ИВ Ипостась ИВ ИВЧеловек ИВО "]
[495,"Балтия","Балтии","Р","Синтез Пассионарности ИВО","Синтез Пассионарности ИВО","Синтез Пассионарности ИВО"," ИВ Ипостась ИВ Человек Изначальности ИВО ","Ипостаси Человека Изначальности ИВО","Фадей          ","Фадея",null,"Елена",{"$f":"\"Владыка Синтез Синтеза Изначального Владыки \"&Владыка&\", Глава Изначального Центра Ипостаси Синтеза, Управления Синтеза Филиппа\"","v":"Владыка Синтез Синтеза Изначального Владыки Кут Хуми, Глава Изначального Центра Ипостаси Синтеза, Управления Синтеза Филиппа"},null,null," Человек ИВО                                                                "," ИВ Ипостась ИВ Человек Изначальности ИВО "]
[494,"Бородино","Бородино","М","Синтез Истинности ИВО","Синтез Истинности ИВО","Синтез Истинности ИВО"," ИВ Ипостась ИВ Сын ИВО ","Ипостаси Сына ИВО","Серафим     ","Серафима",null,"Валерия",{"$f":"\"Владыка Синтез Синтеза ИВО, Глава Метагалактической Гражданской Конфедерации \"&Территории&\", Управления Синтеза Византия\"","v":"Владыка Синтез Синтеза ИВО, Глава Метагалактической Гражданской Конфедерации Москвы, Управления Синтеза Византия"},null,null," Сын ИВО                                   "," ИВ Ипостась ИВ Сын ИВО "]
[493,"Волгоград","Волгограда","Р","Синтез Окскости ИВО","Синтез Окскости ИВО","Синтез Окскости ИВО"," ИВ Ипостась ИВ Дочь ИВО ","Ипостаси Дочери ИВО","Святослав  ","Святослава",null,"Олеся",{"$f":"\"Учитель Синтез Синтеза ИВО, Глава Дома Изначально Вышестоящего Отца Психодинамики, Управления Синтеза Янова\"","v":"Учитель Синтез Синтеза ИВО, Глава Дома Изначально Вышестоящего Отца Психодинамики, Управления Синтеза Янова"},null,null," Дочь ИВО                                     "," ИВ Ипостась ИВ Дочь ИВО "]
[492,"Вологодск","Вологодской области","Р","Синтез Изначальности ИВО ","Синтез Изначальности ИВО ","Синтез Изначальности ИВО "," ИВ Ипостась ИВ Человек ИВ Мг ИВО ","Ипостаси Человека Мг ИВО","Эоан            ","Эоана",null,"Антуанэтта",{"$f":"\"Учитель Синтез Синтеза ИВО, Глава Дома Изначально Вышестоящего Отца Посвящений, Управления Синтеза Юлия\"","v":"Учитель Синтез Синтеза ИВО, Глава Дома Изначально Вышестоящего Отца Посвящений, Управления Синтеза Юлия"},null,null," Человек Изначальной Метагалактики ИВО                 "," ИВ Ипостась ИВ Человек ИВ Мг ИВО "]
[491,"Уфа","Уфы","Р","Синтез Присутствия ИВО","Синтез Присутствия ИВО","Синтез Присутствия ИВО"," ИВ Ипостась ИВ Человек Изначальной Мг ИВО ","Ипостаси Человека Изначальной Мг ИВО","Сергей         ","Сергея",null,"Юлиана",{"$f":"\"Учитель Синтез Синтеза ИВО, Глава Дома Изначально Вышестоящего Отца Синтеза Жизни, Управления Синтеза Юсефа\"","v":"Учитель Синтез Синтеза ИВО, Глава Дома Изначально Вышестоящего Отца Синтеза Жизни, Управления Синтеза Юсефа"},null,null," Человек Изначальности ИВО                        "," ИВ Ипостась ИВ Человек Изначальной Мг ИВО "]
[490,"Хакасия","Хакасии","Р","Синтез Изначально Вышестоящей Метагалактики ИВО","Синтез Изначально Вышестоящей Метагалактики ИВО","Синтез Изначально Вышестоящей Метагалактики ИВО"," ИВ Ипостась ИВ Человек Мг ИВО ","Ипостаси Человека Мг ИВО","Сулейман   ","Сулеймана",null,"Синтия",{"$f":"\"Учитель Синтез Синтеза ИВО, Глава Метагалактического Агентства Информации \"&Территории&\", Управления Синтеза Владомира\"","v":"Учитель Синтез Синтеза ИВО, Глава Метагалактического Агентства Информации Москвы, Управления Синтеза Владомира"},null,null," Человек Метагалактики ИВО                       "," ИВ Ипостась ИВ Человек Мг ИВО "]
[489,"Дагестан","Дагестана","Р","Синтез Изначальной Метагалактики ИВО","Синтез Изначальной Метагалактики ИВО","Синтез Изначальной Метагалактики ИВО"," ИВ Ипостась ИВ Мать ИВО ","Ипостаси Матери ИВО","Себастьян  ","Себастьяна",null,"Виктория",null,null,null," Мать ИВО                         "," ИВ Ипостась ИВ Мать ИВО "]
[488,"Курск","Курска","Р","Синтез Метагалактики ИВО","Синтез Метагалактики ИВО","Синтез Метагалактики ИВО"," ИВ Ипостась ИВ Праведник ИВО ","Ипостаси Праведника ИВО","Теодор         ","Теодора",null,"Дарида","Ипостась Синтез Синтеза ИВО, Глава Дома Отца Пробуждения ИВО, Управления Синтеза Саввы",null,null," Праведник ИВО                                                        "," ИВ Ипостась ИВ Праведник ИВО "]
[487,"Воронеж","Воронежа","Р","Синтез Планеты ИВО","Синтез Планеты ИВО","Синтез Планеты ИВО"," ИВ Ипостась ИВ Неизречённый ИВО ","Ипостаси Неизречённого ИВО","Антей          ","Антея",null,"Алина","Ипостась Синтез Синтеза ИВО, Глава Дома Отца Генезиса ИВО, Управления Синтеза Савелия",null,null," Неизречённый ИВО       "," ИВ Ипостась ИВ Неизречённый ИВО "]
[486,"Королёв","Королёва","М","Синтез Буддичности Человека ИВО","Синтез Буддичности Человека ИВО","Синтез Буддичности Человека ИВО"," ИВ Ипостась ИВ Всемогущий ИВО ","Ипостаси Всемогущего ИВО","Наум            ","Наума",null,"Софья","Ипостась Синтез Синтеза ИВО, Глава Дома Отца Человечности ИВО, Управления Синтеза Вильгельма",null,null," Всемогущий ИВО                                                 "," ИВ Ипостась ИВ Всемогущий ИВО "]
[485,"Братск","Братска","Р","Синтез Всеединой Супергалактики ИВО","Синтез Всеединой Супергалактики ИВО","Синтез Всеединой Супергалактики ИВО"," ИВ Ипостась ИВ Предвечный ИВО ","Ипостаси Предвечного ИВО","Велемир      ","Велемира",null,"Агафья","Ипостась Синтез Синтеза ИВО, Глава Дома Отца Служения ИВО, Управления Синтеза Юстаса",null,null," Предвечный ИВО                                                      "," ИВ Ипостась ИВ Предвечный ИВО "]
[484,"Чита","Читы","Р","Синтез Единой Галактики ИВО","Синтез Единой Галактики ИВО","Синтез Единой Галактики ИВО"," ИВ Ипостась ИВ Предначальный ИВО ","Ипостаси Предначального ИВО","Георг             ","Георга",null,"Дарья","Ипостась Синтез Синтеза ИВО, Глава Дома Отца Взрастания ИВО, Управления Синтеза Александра",null,null," Предначальный ИВО      "," ИВ Ипостась ИВ Предначальный ИВО "]
[483,"Тверь","Твери","Р","Синтез Универсума Солнца ИВО","Синтез Универсума Солнца ИВО","Синтез Универсума Солнца ИВО"," ИВ Ипостась ИВ Вседержитель ИВО ","Ипостаси Вседержителя ИВО","Алексей  ","Алексея",null,"Илана","Ипостась Синтез Синтеза ИВО, Глава Дома Отца Практики ИВО, Управления Синтеза Яромира",null,null," Вседержитель ИВО                          "," ИВ Ипостась ИВ Вседержитель ИВО "]
[482,"Бурятия","Бурятии","Р","Синтез Звёздной Вселенной ИВО","Синтез Звёздной Вселенной ИВО","Синтез Звёздной Вселенной ИВО"," ИВ Ипостась ИВ Всевышний ИВО ","Ипостаси Всевышнего ИВО","Эмиль           ","Эмиля",null,"Яна","Ипостась Синтез Синтеза ИВО, Глава Дома Отца Могущества ИВО, Управления Синтеза Сераписа",null,null," Всевышний ИВО                           "," ИВ Ипостась ИВ Всевышний ИВО "]
[481,"Алтай","Алтая","Р","Синтез Физичности ИВО","Синтез Физичности ИВО","Синтез Физичности ИВО"," ИВ Ипостась ИВ Человек Планеты ИВО ","Ипостаси Человека Планеты ИВО","Дарий     ","Дария",null,"Давлата","Ипостась Синтез Синтеза ИВО, Глава Дома Отца Ипостасности ИВО, Управления Синтеза Эдуарда",null,null," Человек Планеты ИВО                                     "," ИВ Ипостась ИВ Человек Планеты ИВО "]
[480,"Югра","Югры","М","Синтез Изначально Вышестоящего Дома Аватара ИВО","Синтез Изначально Вышестоящего Дома Аватара ИВО","Синтез Изначально Вышестоящего Дома Аватара ИВО"," ИВ Ипостась ИВ Дом Аватара ИВО ","Ипостаси Дома Аватара ИВО","Валентин     ","Валентина",null,"Ирина","Ипостась Синтез Синтеза ИВО, Глава Дома Отца Пассионарности ИВО, Управления Синтеза Фадея",null,null," Изначально Вышестоящий Дом Аватара ИВО       "," ИВ Ипостась ИВ Дом Аватара ИВО "]
[479,"Тамбов","Тамбова","Р","Синтез Изначально Вышестоящей Воли ИВО","Синтез Изначально Вышестоящей Воли ИВО","Синтез Изначально Вышестоящей Воли ИВО"," ИВ Ипостась ИВ Воля ИВО ","Ипостаси Воли ИВО","Савий          ","Савия",null,"Лина","Ипостась Синтез Синтеза ИВО, Глава Дома Отца Истинности ИВО, Управления Синтеза Серафима",null,null," Воля ИВО"," ИВ Ипостась ИВ Воля ИВО "]
[478,"Чебоксары","Чебоксар","М","Синтез Изначально Вышестоящей Мудрости ИВО","Синтез Изначально Вышестоящей Мудрости ИВО","Синтез Изначально Вышестоящей Мудрости ИВО"," ИВ Ипостась ИВ Мудрость ИВО ","Ипостаси Мудрости ИВО","Вячеслав    ","Вячеслава",null,"Анастасия","Ипостась Синтез Синтеза ИВО, Глава Дома Отца Окскости ИВО, Управления Синтеза Святослава",null,null," Мудрость ИВО"," ИВ Ипостась ИВ Мудрость ИВО "]
[477,"Ангарск","Ангарска","М","Синтез Изначально Вышестоящей Любви ИВО","Синтез Изначально Вышестоящей Любви ИВО","Синтез Изначально Вышестоящей Любви ИВО"," ИВ Ипостась ИВ Любовь ИВО ","Ипостаси Любви ИВО","Андрей        ","Андрея",null,"Ома","Ипостась Синтез Синтеза ИВО, Глава Дома Отца Изначальности ИВО, Управления Синтеза Эоана",null,null," Любовь ИВО "," ИВ Ипостась ИВ Любовь ИВО "]
[476,"Волгодонск","Волгодонска","М","Синтез Изначально Вышестоящей Живы ИВО","Синтез Изначально Вышестоящей Живы ИВО","Синтез Изначально Вышестоящей Живы ИВО"," ИВ Ипостась ИВ Жива ИВО ","Ипостаси Живы ИВО","Давид          ","Давида",null,"Сольвейг","Ипостась Синтез Синтеза ИВО, Глава Дома Отца Присутствия ИВО, Управления Синтеза Сергея",null,null," Жива ИВО                                                                                  "," ИВ Ипостась ИВ Жива ИВО "]
[475,"Зеленогорск","Зеленогорска","М","Синтез Изначально Вышестоящего Творения ИВО","Синтез Изначально Вышестоящего Творения ИВО","Синтез Изначально Вышестоящего Творения ИВО"," ИВ Ипостась ИВ Творение ИВО ","Ипостаси Творения ИВО","Евгений     ","Евгения",null,"Октавия","Ипостась Синтез Синтеза ИВО, Глава Дома Отца Изначально Вышестоящей Метагалактики ИВО, Управления Синтеза Сулеймана",null,null," Творение ИВО   "," ИВ Ипостась ИВ Творение ИВО "]
[474,"Порубежье","Порубежья","Р","Синтез Изначально Вышестоящего Созидания ИВО ","Синтез Изначально Вышестоящего Созидания ИВО ","Синтез Изначально Вышестоящего Созидания ИВО "," ИВ Ипостась ИВ Созидание ИВО ","Ипостаси Созидания ИВО","Дмитрий     ","Дмитрия",null,"Кристина","Ипостась Синтез Синтеза ИВО, Глава Дома Отца Изначальной Метагалактики ИВО, Управления Синтеза Себастьяна",null,null," Созидание ИВО                                       "," ИВ Ипостась ИВ Созидание ИВО "]
[473,"Новороссийск","Новороссийска","М","Синтез Изначально Вышестоящей Жизни ИВО","Синтез Изначально Вышестоящей Жизни ИВО","Синтез Изначально Вышестоящей Жизни ИВО"," ИВ Ипостась ИВ Жизнь ИВО ","Ипостаси Жизни ИВО","Есений        ","Есения",null,"Версавия","Ипостась Синтез Синтеза ИВО, Глава Дома Отца Метагалактики ИВО, Управления Синтеза Теодора",null,null," Жизнь ИВО "," ИВ Ипостась ИВ Жизнь ИВО "]
[472,"Донецк","Донецка","Р","Синтез Изначально Вышестоящего Дома Ипостаси ИВО","Синтез Изначально Вышестоящего Дома Ипостаси ИВО","Синтез Изначально Вышестоящего Дома Ипостаси ИВО"," ИВ Ипостась ИВ Дом Ипостаси ИВО ","Ипостаси Дома Ипостаси ИВО","Константин","Константина",null,"Ксения","Ипостась Синтез Синтеза ИВО, Глава Дома Отца Планеты ИВО, Управления Синтеза Антея",null,null," Изначально Вышестоящий Дом Ипостаси ИВО    "," ИВ Ипостась ИВ Дом Ипостаси ИВО "]
[471,"Омск","Омска","Р","Синтез Изначально Вышестоящего Пробуждения ИВО","Синтез Изначально Вышестоящего Пробуждения ИВО","Синтез Изначально Вышестоящего Пробуждения ИВО"," ИВ Ипостась ИВ Пробуждение ИВО ","Ипостаси Пробуждения ИВО","Ростислав   ","Ростислава",null,"Эмма","Ипостась Синтез Синтеза ИВО, Глава Дома Отца Буддичности Человека ИВО, Управления Синтеза Наума",null,null," Генезис ИВО"," ИВ Ипостась ИВ Пробуждение ИВО "]
[470,"Астана","Астаны","Р","Синтез Изначально Вышестоящего Генезиса ИВО","Синтез Изначально Вышестоящего Генезиса ИВО","Синтез Изначально Вышестоящего Генезиса ИВО"," ИВ Ипостась ИВ Генезис ИВО ","Ипостаси Генезиса ИВО","Ян                ","Яна",null,"Стафия","Ипостась Синтез Синтеза ИВО, Глава Дома Отца Всеединой Супергалактики ИВО, Управления Синтеза Велемира",null,null," Практика ИВО "," ИВ Ипостась ИВ Генезис ИВО "]
[469,"Киев","Киева","Р","Синтез Изначально Вышестоящей Человечности ИВО","Синтез Изначально Вышестоящей Человечности ИВО","Синтез Изначально Вышестоящей Человечности ИВО"," ИВ Ипостась ИВ Человечность ИВО ","Ипостаси Человечности ИВО","Василий       ","Василия",null,"Оксана","Ипостась Синтез Синтеза ИВО, Глава Дома Отца Единой Галактики ИВО, Управления Синтеза Георга",null,null," Человечность ИВО "," ИВ Ипостась ИВ Человечность ИВО "]
[468,"Минск","Минска","Р","Синтез Изначально Вышестоящего Служения ИВО","Синтез Изначально Вышестоящего Служения ИВО","Синтез Изначально Вышестоящего Служения ИВО"," ИВ Ипостась ИВ Служение ИВО ","Ипостаси Служения ИВО","Арсений      ","Арсения",null,"Ульяна","Ипостась Синтез Синтеза ИВО, Глава Дома Отца Универсума Солнца ИВО, Управления Синтеза Алексея",null,null," Служение ИВО"," ИВ Ипостась ИВ Служение ИВО "]
[467,"Одесса","Одессы","Р","Синтез Изначально Вышестоящего Вершения ИВО","Синтез Изначально Вышестоящего Вершения ИВО","Синтез Изначально Вышестоящего Вершения ИВО"," ИВ Ипостась ИВ Вершение ИВО ","Ипостаси Вершения ИВО","Огюст          ","Огюста",null,"Беатрисс","Ипостась Синтез Синтеза ИВО, Глава Дома Отца Звёздной Вселенной ИВО, Управления Синтеза Эмиля",null,null," Изначальная Метагалактичность ИВО "," ИВ Ипостась ИВ Вершение ИВО "]
[466,"Днепр","Днепр","Р","Синтез Изначально Вышестоящей Практики ИВО","Синтез Изначально Вышестоящей Практики ИВО","Синтез Изначально Вышестоящей Практики ИВО"," ИВ Ипостась ИВ Практика Изначальность ИВО ","Ипостаси Практики Изначальности ИВО","Илий           ","Илия",null,"Оливия",null,null,null," Изначальность ИВО                                                          "," ИВ Ипостась ИВ Практика Изначальность ИВО "]
[465,"Германия","Германии","Р","Синтез Изначально Вышестоящего Могущества ИВО","Синтез Изначально Вышестоящего Могущества ИВО","Синтез Изначально Вышестоящего Могущества ИВО"," ИВ Ипостась ИВ Могущество ИВО ","Ипостаси Могущества ИВО","Геральд      ","Геральда",null,"Алла","Служащий Синтез Синтеза Физичности ИВО Управления Синтеза Дария, Ипостась Ипостасного Синтеза ВШС",null,null," Метагалактичность ИВО"," ИВ Ипостась ИВ Могущество ИВО "]
[464,"Азнакаево","Азнакаево","М","Синтез Изначально Вышестоящего Дома Служащего ИВО","Синтез Изначально Вышестоящего Дома Служащего ИВО","Синтез Изначально Вышестоящего Дома Служащего ИВО"," ИВ Ипостась ИВ Дом Служащего ИВО ","Ипостаси Дома Служащего ИВО","Платон        ","Платона",null,"Натали","Служащий Синтез Синтеза ИВ Дома Аватара ИВО Управления Синтеза Валентина, Ипостась Профессионального Синтеза ВШС",null,null," Изначально Вышестоящий Дом Служащего ИВО    "," ИВ Ипостась ИВ Дом Служащего ИВО "]
[463," Харьков","Харькова","Р","Синтез Изначально Вышестоящей Пассионарности Идеи ИВО","Синтез Изначально Вышестоящей Пассионарности Идеи ИВО","Синтез Изначально Вышестоящей Пассионарности Идеи ИВО"," ИВ Ипостась ИВ Пассионарность Идеи ИВО ","Ипостаси Пассионарности Идеи ИВО","Николай     ","Николая",null,"Эва","Служащий Синтез Синтеза ИВ Воли ИВО Управления Синтеза Савия, Ипостась Синтеза ИВО ВШС",null,null," Пассионарность Идеи ИВО"," ИВ Ипостась ИВ Пассионарность Идеи ИВО "]
[462,"Витебск","Витебска","Р","Синтез Изначально Вышестоящей Истинности Сути ИВО","Синтез Изначально Вышестоящей Истинности Сути ИВО","Синтез Изначально Вышестоящей Истинности Сути ИВО"," ИВ Ипостась ИВ Истинность Сути ИВО ","Ипостаси Истинности Сути ИВО","Игорь         ","Игоря",null,"Лана","Служащий Синтез Синтеза ИВ Мудрости ИВО Управления Синтеза Вячеслава, Философский Синтез-Секретарь ВШС",null,null," Истинность Сути ИВО"," ИВ Ипостась ИВ Истинность Сути ИВО "]
[461,"Херсон","Херсона","Р","Синтез Изначально Вышестоящей Окскости Смысла ИВО","Синтез Изначально Вышестоящей Окскости Смысла ИВО","Синтез Изначально Вышестоящей Окскости Смысла ИВО"," ИВ Ипостась ИВ Окскость Смысла ИВО ","Ипостаси Окскости Смысла ИВО","Яр                ","Яра",null,"Одель","Служащий Синтез Синтеза ИВ Любви ИВО Управления Синтеза Андрея, Ипостась Сиаматического Совета ИМАН",null,null," Окскость Смысла ИВО"," ИВ Ипостась ИВ Окскость Смысла ИВО "]
[460,"Невинномыск","Невинномысска","Р","Синтез Изначально Вышестоящей Изначальности Мысли ИВО","Синтез Изначально Вышестоящей Изначальности Мысли ИВО","Синтез Изначально Вышестоящей Изначальности Мысли ИВО"," ИВ Ипостась ИВ Изначальность Мысли ИВО ","Ипостаси Изначальности Мысли ИВО","Вадим          ","Вадима",null,"Тамара","Служащий Синтез Синтеза ИВ Живы ИВО Управления Синтеза Давида, Ипостась Философского Совета ИМАН",null,null," Могущество Мысли ИВО"," ИВ Ипостась ИВ Изначальность Мысли ИВО "]
[459,"Молдова","Молдовы","Р","Синтез Изначально Вышестоящей Метагалактичности Чувств ИВО","Синтез Изначально Вышестоящей Метагалактичности Чувств ИВО","Синтез Изначально Вышестоящей Метагалактичности Чувств ИВО"," ИВ Ипостась ИВ Метагалактичность Чувства ИВО ","Ипостаси Метагалактичности Чувства ИВО","Огнеслав    ","Огнеслава",null,"Нина","Служащий Синтез Синтеза ИВ Творения ИВО Управления Синтеза Евгения, Ипостась Учёного Совета ИМАН",null,null," Воссоединённость Чувства ИВО                                        "," ИВ Ипостась ИВ Метагалактичность Чувства ИВО "]
[458,"Запорожье","Запорожья","Р","Синтез Изначально Вышестоящего Образа Ощущений ИВО","Синтез Изначально Вышестоящего Образа Ощущений ИВО","Синтез Изначально Вышестоящего Образа Ощущений ИВО"," ИВ Ипостась ИВ Образ Ощущений ИВО ","Ипостаси Образа Ощущений ИВО","Марк           ","Марка",null,"Орфея","Служащий Синтез Синтеза ИВ Созидания ИВО Управления Синтеза Дмитрия, Академический Секретарь ИМАН",null,null," Образ Ощущений ИВО                                                     "," ИВ Ипостась ИВ Образ Ощущений ИВО "]
[457,"Темиртау","Темиртау","Р","Синтез Изначально Вышестоящей Изначальной Метагалактики Движения ИВО","Синтез Изначально Вышестоящей Изначальной Метагалактики Движения ИВО","Синтез Изначально Вышестоящей Изначальной Метагалактики Движения ИВО"," ИВ Ипостась ИВ Изначальная Мг Движения ИВО ","Ипостаси Изначальной Мг Движения ИВО","Теон             ","Теона",null,"Вергилия","Служащий Синтез Синтеза ИВ Жизни ИВО Управления Синтеза Есения, Ипостась Синтез-Окскости",null,null," Изначальная Метагалактика Движения ИВО"," ИВ Ипостась ИВ Изначальная Мг Движения ИВО "]
[456,"Могилёв","Могилёва","М","Синтез Изначально Вышестоящего Дома Посвящённого ИВО","Синтез Изначально Вышестоящего Дома Посвящённого ИВО","Синтез Изначально Вышестоящего Дома Посвящённого ИВО"," ИВ Ипостась ИВ Дом Посвящённого ИВО ","Ипостаси Дома Посвящённого ИВО","Трофим   ","Трофима",null,"Василиса","Служащий Синтез Синтеза ИВ Дома Ипостаси ИВО Управления Синтеза Константина, Ипостась Синтез-Ипостасности",null,null," Изначально Вышестоящий Дом Посвящённого ИВО   "," ИВ Ипостась ИВ Дом Посвящённого ИВО "]
[455,"Алматы","Алматы","Р","Синтез Изначально Вышестоящего Духа Частей ИВО","Синтез Изначально Вышестоящего Духа Частей ИВО","Синтез Изначально Вышестоящего Духа Частей ИВО"," ИВ Ипостась ИВ Дух Частей ИВО ","Ипостаси Духа Частей ИВО","Емельян     ","Емельяна",null,"Варвара","Служащий Синтез Синтеза ИВ Пробуждения ИВО Управления Синтеза Ростислава, Ипостась Синтез-Метагалактичности",null,null," Дух Частей ИВО"," ИВ Ипостась ИВ Дух Частей ИВО "]
[454,"Энергодар","Энергодара","М","Синтез Изначально Вышестоящего Света Систем ИВО","Синтез Изначально Вышестоящего Света Систем ИВО","Синтез Изначально Вышестоящего Света Систем ИВО"," ИВ Ипостась ИВ Свет Систем ИВО ","Ипостаси Света Систем ИВО","Ефрем       ","Ефрема",null,"Арина","Служащий Синтез Синтеза ИВ Генезиса ИВО Управления Синтеза Яна, Изначальный Офис-секретарь ИВ Дома ИВО",null,null," Свет Систем ИВО "," ИВ Ипостась ИВ Свет Систем ИВО "]
[453,"Черкассы","Черкассы","Р","Синтез Изначально Вышестоящей Энергии Аппаратов ИВО","Синтез Изначально Вышестоящей Энергии Аппаратов ИВО","Синтез Изначально Вышестоящей Энергии Аппаратов ИВО"," ИВ Ипостась ИВ Энергия Аппаратов ИВО ","Ипостаси Энергии Аппаратов ИВО","Натан          ","Натана",null,"Амалия",{"$f":"\"Служащий Синтез Синтеза ИВ Человечности ИВО Управления Синтеза Василия, Ипостась \"&Р_М_Совета&\" Совета МГК\"","v":"Служащий Синтез Синтеза ИВ Человечности ИВО Управления Синтеза Василия, Ипостась Регионального Совета МГК"},null,null," Энергия Аппаратов ИВО "," ИВ Ипостась ИВ Энергия Аппаратов ИВО "]
[452,"Канск","Канска","М","Синтез Изначально Вышестоящей Субъядерности Частностей ИВО","Синтез Изначально Вышестоящей Субъядерности Частностей ИВО","Синтез Изначально Вышестоящей Субъядерности Частностей ИВО"," ИВ Ипостась ИВ Субъядерность Частностей ИВО ","Ипостаси Субъядерности Частностей ИВО","Артём          ","Артёма",null,"Елизавета",{"$f":"\"Служащий Синтез Синтеза ИВ Служения ИВО Управления Синтеза Арсения, Ипостась \"&Р_М_Совета&\" Совета МГК\"","v":"Служащий Синтез Синтеза ИВ Служения ИВО Управления Синтеза Арсения, Ипостась Регионального Совета МГК"},null,null," Субъядерность Частностей ИВО "," ИВ Ипостась ИВ Субъядерность Частностей ИВО "]
[451,"Уральск","Уральска","М","Синтез Изначально Вышестоящей Формы Абсолютности ИВО","Синтез Изначально Вышестоящей Формы Абсолютности ИВО","Синтез Изначально Вышестоящей Формы Абсолютности ИВО"," ИВ Ипостась ИВ Форма Абсолютности ИВО ","Ипостаси Формы Абсолютности ИВО","Игнатий      ","Игнатия",null,"Вера",{"$f":"\"Служащий Синтез Синтеза ИВ Вершения ИВО Управления Синтеза Огюста, \"&Р_М_Совет&\" Ревизор МГК\"","v":"Служащий Синтез Синтеза ИВ Вершения ИВО Управления Синтеза Огюста, Региональный Ревизор МГК"},null,null," Форма Абсолютности ИВО "," ИВ Ипостась ИВ Форма Абсолютности ИВО "]
[450,"Причерноморье","Причерноморья","М","Синтез Изначально Вышестоящего Содержания Воскрешения ИВО","Синтез Изначально Вышестоящего Содержания Воскрешения ИВО","Синтез Изначально Вышестоящего Содержания Воскрешения ИВО"," ИВ Ипостась ИВ Содержание Воскрешения ИВО ","Ипостаси Содержания Воскрешения ИВО","Юлиан        ","Юлиана",null,"Мирослава",{"$f":"\"Служащий Синтез Синтеза ИВ Практики Изначальности ИВО Управления Синтеза Илия, \"&Р_М_Совет&\" Секретарь МГК\"","v":"Служащий Синтез Синтеза ИВ Практики Изначальности ИВО Управления Синтеза Илия, Региональный Секретарь МГК"},null,null," Содержание Воскрешения ИВО"," ИВ Ипостась ИВ Содержание Воскрешения ИВО "]
[449,"Полесье","Полесья","М","Синтез Изначально Вышестоящего Поля Пробуждения ИВО","Синтез Изначально Вышестоящего Поля Пробуждения ИВО","Синтез Изначально Вышестоящего Поля Пробуждения ИВО"," ИВ Ипостась ИВ Поле Пробуждения ИВО ","Ипостаси Поля Пробуждения ИВО","Аркадий     ","Аркадия",null,"Даяна","Служащий Синтез Синтеза ИВ Могущества ИВО Управления Синтеза Геральда, Ипостась Синтез-Генезиса",null,null," Поле Пробуждения ИВО"," ИВ Ипостась ИВ Поле Пробуждения ИВО "]
[448,"США","США","Р","Синтез Изначально Вышестоящего Дома Изначально Вышестоящего Человека ИВО","Синтез Изначально Вышестоящего Дома Изначально Вышестоящего Человека ИВО","Синтез Изначально Вышестоящего Дома Изначально Вышестоящего Человека ИВО"," ИВ Ипостась ИВ Дом ИВ Человека ИВО ","Ипостаси Дома Человека ИВО","Никита","Никиты",null,"Стелла","Служащий Синтез Синтеза ИВ Дома Служащего ИВО Управления Синтеза Платона, Ипостась Статус-Синтеза",null,null," Изначально Вышестоящий Дом Изначально Вышестоящего Человека ИВО  "," ИВ Ипостась ИВ Дом ИВ Человека ИВО "]
[447,"Елабуга","Елабуги","М","Синтез Владычества Статусов ИВО","Синтез Владычества Статусов ИВО","Синтез Владычества Статусов ИВО"," ИВ Ипостась ИВ Владычество Статусов ИВО ","Ипостаси Владычества Статусов ИВО","Олег","Олега",null,"Дора","Служащий Синтез Синтеза ИВ Пассионарности Идеи ИВО Управления Синтеза Николая, Ипостась Синтез-Стяжаний",null,null," Владычество Статусов ИВО   "," ИВ Ипостась ИВ Владычество Статусов ИВО "]
[446,"Вишнёвое","Вишнёвого","М","Синтез Прав Посвящений ИВО","Синтез Прав Посвящений ИВО","Синтез Прав Посвящений ИВО"," ИВ Ипостась Изначально Вышестоящие Права Посвящений ИВО ","Ипостаси Изначально Вышестоящих Прав Посвящений ИВО","Владимир","Владимира",null,"Клавдия","Служащий Синтез Синтеза ИВ Истинности Сути ИВО Управления Синтеза Игоря, Праздничный Секретарь ИВ Дома ИВО",null,null," Права Посвящений ИВО"," ИВ Ипостась Изначально Вышестоящие Права Посвящений ИВО "]
[445,"Белая Церковь","Белой Церкви","М","Синтез Стратагемии Знаний ИВО","Синтез Стратагемии Знаний ИВО","Синтез Стратагемии Знаний ИВО"," ИВ Ипостась ИВ Стратагемия Знаний ИВО ","Ипостаси Стратагемии Знаний ИВО","Стефан","Стефана",null,"Лада","Служащий Синтез Синтеза ИВ Окскости Смысла ИВО Управления Синтеза Яра, Ипостась Синтез-Практик",null,null," Стратагемия Знаний ИВО "," ИВ Ипостась ИВ Стратагемия Знаний ИВО "]
[444,"Ялта","Ялты","М","Синтез Мочьность Наблюдателя ИВО","Синтез Мочьность Наблюдателя ИВО","Синтез Мочьность Наблюдателя ИВО"," ИВ Ипостась ИВ Мочьность Наблюдателя ИВО ","Ипостаси Мочьности Наблюдателя ИВО","Горислав","Горислава",null,"Ветта","Служащий Синтез Синтеза ИВ Изначальности Мысли ИВО Управления Синтеза Вадима, Ипостась Синтез-Посвящений",null,null," Мочьность Наблюдателя ИВО"," ИВ Ипостась ИВ Мочьность Наблюдателя ИВО "]
[443,"Адыгея","Адыгеи","Р","Синтез Голос Полномочий ИВО","Синтез Голос Полномочий ИВО","Синтез Голос Полномочий ИВО"," ИВ Ипостась ИВ Голос Полномочий ИВО ","Ипостаси Голоса Полномочий ИВО","Никон","Никона",null,"Власта","Служащий Синтез Синтеза ИВ Метагалактичности Чувств ИВО Управления Синтеза Огнеслава, Ипостась Синтез-Инструментов",null,null," Голос Полномочий ИВО"," ИВ Ипостась ИВ Голос Полномочий ИВО "]
[442,"Караганда","Караганды","Р","Синтез Интуиции Генезиса ИВО","Синтез Интуиции Генезиса ИВО","Синтез Интуиции Генезиса ИВО"," ИВ Ипостась ИВ Интуиция Генезиса ИВО   ","Ипостаси Интуиции Генезиса ИВО  ","Эрик","Эрика",null,"Офелия","Служащий Синтез Синтеза ИВ Образа Ощущений ИВО Управления Синтеза Марка, Энергопотенциальный Секретарь ИВ Дома ИВО",null,null," Интуиция Генезиса ИВО  "," ИВ Ипостась ИВ Интуиция Генезиса ИВО   "]
[441,"Североуральск","Североуральска","М","Синтез Парадигмы Отца ИВО","Синтез Парадигмы Отца ИВО","Синтез Парадигмы Отца ИВО"," ИВ Ипостась ИВ Парадигма Отца ИВО ","Ипостаси Парадигмы Отца ИВО","Олаф","Олафа",null,"Даная","Служащий Синтез Синтеза ИВ Изначальной Метагалактики Движения ИВО Управления Синтеза Теона, Ипостась Культуры Синтеза",null,null," Парадигма Отца ИВО"," ИВ Ипостась ИВ Парадигма Отца ИВО "]
[440,"Чувашия","Чувашии","Р","Синтез Изначально Вышестоящего Дома Человека ИВО","Синтез Изначально Вышестоящего Дома Человека ИВО","Синтез Изначально Вышестоящего Дома Человека ИВО"," ИВ Ипостась ИВ Дом Человека ИВО ","Ипостаси Дома Человека ИВО","Вацлав","Вацлава",null,"Ханна","Служащий Синтез Синтеза ИВ Дома Посвящённого ИВО Управления Синтеза Трофима, Ипостась Синтеза Жизни",null,null," Изначально Вышестоящий Дом Человека ИВО  "," ИВ Ипостась ИВ Дом Человека ИВО "]
[439,"Житомир","Житомира","М","Синтез Столпа ИВО","Синтез Столпа ИВО","Синтез Столпа ИВО"," ИВ Ипостась ИВ Столп ИВО ","Ипостаси Столпа ИВО","Левий","Левия",null,"Хлоя","Служащий Синтез Синтеза ИВ Духа Частей ИВО Управления Синтеза Емельяна, Ипостась Пассионарного Синтеза",null,null," Столп ИВО"," ИВ Ипостась ИВ Столп ИВО "]
[438,"Шымкент","Шымкента","М","Синтез Сутенности ИВО","Синтез Сутенности ИВО","Синтез Сутенности ИВО"," ИВ Ипостась ИВ Сутенность ИВО ","Ипостаси Сутенности ИВО","Руслан","Руслана",null,"Надежда","Служащий Синтез Синтеза ИВ Света Систем ИВО Управления Синтеза Ефрема, Частный Синтез-Секретарь ИВ Дома ИВО",null,null," Сутенность ИВО"," ИВ Ипостась ИВ Сутенность ИВО "]
[437,"Европа","Европы","Р","Синтез Пассионарности ИВО","Синтез Пассионарности ИВО","Синтез Пассионарности ИВО"," ИВ Ипостась ИВ Пассионарность ИВО ","Ипостаси Пассионарности ИВО","Генрих","Генриха",null,"Олла","Служащий Синтез Синтеза ИВ Энергии Аппаратов ИВО Управления Синтеза Натана, Ипостась Синтез-Сайта ИВ Дома ИВО",null,null," Пассионарность ИВО"," ИВ Ипостась ИВ Пассионарность ИВО "]
[436,"Италия","Италии","Р","Синтез Чаша ОМ ИВО","Синтез Чаша ОМ ИВО","Синтез Чаша ОМ ИВО"," ИВ Ипостась ИВ Чаша ОМ ИВО ","Ипостаси Чаши ОМ ИВО","Владлен","Владлена",null,"Илона","Служащий Синтез Синтеза ИВ Субъядерности Частностей ИВО Управления Синтеза Артёма, Ипостась Синтез-Мышления",null,null," Чаша ОМ ИВО"," ИВ Ипостась ИВ Чаша ОМ ИВО "]
[435,"Усолье-Сибирское","Усолья-Сибирского","М","Синтез Куба Созидания ИВО","Синтез Куба Созидания ИВО","Синтез Куба Созидания ИВО"," ИВ Ипостась ИВ Куб Созидания ИВО ","Ипостаси Куба Созидания ИВО","Борислав","Борислава",null,"Генриетта","Служащий Синтез Синтеза ИВ Формы Абсолютности ИВО Управления Синтеза Игнатия, Ипостась Пресс-секретарь ИВ Дома ИВО",null,null," Куб Созидания ИВО"," ИВ Ипостась ИВ Куб Созидания ИВО "]
[434,"Петропавловск","Петропавловска","Р","Синтез Потенциала ИВО","Синтез Потенциала ИВО","Синтез Потенциала ИВО"," ИВ Ипостась ИВ Потенциал ИВО ","Ипостаси Потенциала ИВО","Нестор","Нестора",null,"Мария","Служащий Синтез Синтеза ИВ Содержания Воскрешения ИВО Управления Синтеза Юлиана, Ипостась Дома Отца Пробуждения ИВО",null,null," Потенциал ИВО"," ИВ Ипостась ИВ Потенциал ИВО "]
[433,"Приднепровье","Приднепровья","Р","Синтез Вечности Отца ИВО","Синтез Вечности Отца ИВО","Синтез Вечности Отца ИВО"," ИВ Ипостась ИВ Вечность Отца ИВО ","Ипостаси Вечности Отца ИВО","Аристарх","Аристарха",null,"Глория","Служащий Синтез Синтеза ИВ Поле Пробуждения ИВО Управления Синтеза Аркадия, Ипостась Дома Отца Пробуждения ИВО",null,null," Вечность Отца ИВО"," ИВ Ипостась ИВ Вечность Отца ИВО "]
[432,"Стерлитамак","Стерлитамака","М","Синтез Изначально Вышестоящего Дома Сына ИВО","Синтез Изначально Вышестоящего Дома Сына ИВО","Синтез Изначально Вышестоящего Дома Сына ИВО"," ИВ Ипостась ИВ Дом Сына ИВО ","Ипостаси Дома Сына ИВО","Альфред","Альфреда",null,"Констанция","Служащий Синтез Синтеза ИВ Дома ИВ Человека ИВО Управления Синтеза Никиты, Ипостась Дома Отца Пробуждения ИВО",null,null," Изначально Вышестоящий Дом Сына ИВО  "," ИВ Ипостась ИВ Дом Сына ИВО "]
[431,"Измаил","Измаила","М","Синтез Веры ИВО","Синтез Веры ИВО","Синтез Веры ИВО"," ИВ Ипостась ИВ Вера ИВО ","Ипостаси Веры ИВО","Егор","Егора",null,"Стэвия","Служащий Синтез Синтеза Владычества Статусов ИВО Управления Синтеза Олега, Ипостась Дома Отца Генезиса ИВО",null,null," Вера ИВО "," ИВ Ипостась ИВ Вера ИВО "]
[430,"Актау","Актау","М","Синтез Рацио ИВО","Синтез Рацио ИВО","Синтез Рацио ИВО"," ИВ Ипостась ИВ Рацио ИВО ","Ипостаси Рацио ИВО","Витольд","Витольда",null,"Полина","Служащий Синтез Синтеза Прав Посвящений ИВО Управления Синтеза Владимира, Ипостась Дома Отца Генезиса ИВО",null,null," Рацио ИВО"," ИВ Ипостась ИВ Рацио ИВО "]
[429,"Зальцгиттер","Зальцгиттер","Р","Синтез Памяти ИВО","Синтез Памяти ИВО","Синтез Памяти ИВО"," ИВ Ипостась ИВ Память ИВО ","Ипостаси Памяти ИВО","Стократ","Стократа",null,"Виру","Служащий Синтез Синтеза Стратагемии Знаний ИВО Управления Синтеза Стефана, Ипостась Дома Отца Генезиса ИВО",null,null," Память ИВО"," ИВ Ипостась ИВ Память ИВО "]
[428,"Хальброн ","Хальброн ","Р","Синтез Прозрения ИВО","Синтез Прозрения ИВО","Синтез Прозрения ИВО"," ИВ Ипостась ИВ Прозрение ИВО ","Ипостаси Прозрения ИВО","Глеб","Глеба",null,"Фанна","Служащий Синтез Синтеза Мочьности Наблюдателя ИВО Управления Синтеза Горислава, Ипостась Дома Отца Человечности ИВО",null,null," Прозрение ИВО"," ИВ Ипостась ИВ Прозрение ИВО "]
[427,null,null,null,"Синтез Униграммы ИВО","Синтез Униграммы ИВО","Синтез Униграммы ИВО"," ИВ Ипостась ИВ Униграмма ИВО ","Ипостаси Униграммы ИВО","Клавдий","Клавдия",null,"Евгения","Служащий Синтез Синтеза Голоса Полномочий ИВО Управления Синтеза Никона, Ипостась Дома Отца Человечности ИВО",null,null," Униграмма ИВО"," ИВ Ипостась ИВ Униграмма ИВО "]
[426,null,null,null,"Синтез Мерности ИВО","Синтез Мерности ИВО","Синтез Мерности ИВО"," ИВ Ипостась ИВ Мерность ИВО ","Ипостаси Мерности ИВО","Теонис","Теониса",null,"Элина","Служащий Синтез Синтеза Интуиции Генезиса Изначально Вышестоящего Отца Управления Синтеза Эрика, Ипостась Дома Отца Человечности ИВО",null,null," Мерность ИВО"," ИВ Ипостась ИВ Мерность ИВО "]
[425,null,null,null,"Синтез Заряженности ИВО","Синтез Заряженности ИВО","Синтез Заряженности ИВО"," ИВ Ипостась ИВ Заряженность ИВО ","Ипостаси Заряженности ИВО","Донан","Донана",null,"Сара","Служащий Синтез Синтеза Парадигмы Отца ИВО Управления Синтеза Олафа, Ипостась Дома Отца Служения ИВО",null,null," Заряженность ИВО                                               "," ИВ Ипостась ИВ Заряженность ИВО "]
[424,null,null,null,"Синтез Изначально Вышестоящего Дома Дочери ИВО","Синтез Изначально Вышестоящего Дома Дочери ИВО","Синтез Изначально Вышестоящего Дома Дочери ИВО"," ИВ Ипостась ИВ Дом Дочери ИВО ","Ипостаси Дома Дочери ИВО","Альберт","Альберта",null,"Алевтина","Служащий Синтез Синтеза ИВ Дома Человека ИВО Управления Синтеза Вацлава, Ипостась Дома Отца Служения ИВО",null,null," Изначально Вышестоящий Дом Дочери ИВО "," ИВ Ипостась ИВ Дом Дочери ИВО "]
[423,null,null,null,"Синтез Образ-типа ИВО","Синтез Образ-типа ИВО","Синтез Образ-типа ИВО"," ИВ Ипостась ИВ Образ-тип ИВО ","Ипостаси Образ-типа ИВО","Степан","Степана",null,"Раиса","Служащий Синтез Синтеза Столпа ИВО Управления Синтеза Левия, Ипостась Дома Отца Служения ИВО",null,null," Образ-тип ИВО                                                           "," ИВ Ипостась ИВ Образ-тип ИВО "]
[422,null,null,null,"Синтез Сообразительности ИВО","Синтез Сообразительности ИВО","Синтез Сообразительности ИВО"," ИВ Ипостась ИВ Сообразительность ИВО ","Ипостаси Сообразительности ИВО","Арсан","Арсана",null,"Аврора","Служащий Синтез Синтеза Сутенности ИВО Управления Синтеза Руслана, Ипостась Дома Отца Взрастания ИВО",null,null," Сообразительность ИВО                                                                                "," ИВ Ипостась ИВ Сообразительность ИВО "]
[421,null,null,null,"Синтез Осмысленности ИВО","Синтез Осмысленности ИВО","Синтез Осмысленности ИВО"," ИВ Ипостась ИВ Осмысленность ИВО ","Ипостаси Осмысленности ИВО","Остап","Остапа",null,"Дилана","Служащий Синтез Синтеза ИВ Пассионарности ИВО Управления Синтеза Генриха, Ипостась Дома Отца Взрастания ИВО",null,null," Осмысленность ИВО"," ИВ Ипостась ИВ Осмысленность ИВО "]
[420,null,null,null,"Синтез Логика ИВО","Синтез Логика ИВО","Синтез Логика ИВО"," ИВ Ипостась ИВ Логика ИВО ","Ипостаси Логики ИВО","Роман","Романа",null,"Яся","Служащий Синтез Синтеза Чаши ОМ ИВО Управления Синтеза Владлена, Ипостась Дома Отца Взрастания ИВО",null,null," Логика ИВО                                                                                                    "," ИВ Ипостась ИВ Логика ИВО "]
[419,null,null,null,"Синтез Чувствознание ИВО","Синтез Чувствознание ИВО","Синтез Чувствознание ИВО"," ИВ Ипостась ИВ Чувствознание ИВО ","Ипостаси Чувствознания ИВО","Клим","Клима",null,"Фира","Служащий Синтез Синтеза Куба Созидания ИВО Управления Синтеза Борислава, Ипостась Дома Отца Практик ИВО",null,null," Чувствознание ИВО"," ИВ Ипостась ИВ Чувствознание ИВО "]
[418,null,null,null,"Синтез Проницание ИВО","Синтез Проницание ИВО","Синтез Проницание ИВО"," ИВ Ипостась ИВ Проницание ИВО ","Ипостаси Проницания ИВО","Пётр","Петра",null,"Омелия","Служащий Синтез Синтеза Потенциала ИВО Управления Синтеза Нестора, Ипостась Дома Отца Практик ИВО",null,null," Проницание ИВО                                                                                      "," ИВ Ипостась ИВ Проницание ИВО "]
[417,null,null,null,"Синтез Активности ИВО","Синтез Активности ИВО","Синтез Активности ИВО"," ИВ Ипостась ИВ Активность ИВО ","Ипостаси Активности ИВО","Макей","Макея",null,"Мадлен","Служащий Синтез Синтеза Вечности Отца ИВО Управления Синтеза Аристарха, Ипостась Дома Отца Практик ИВО",null,null," Активность ИВО"," ИВ Ипостась ИВ Активность ИВО "]
[416,null,null,null,"Синтез Изначально Вышестоящего Дома Человека Изначальной Метагалактики ИВО","Синтез Изначально Вышестоящего Дома Человека Изначальной Метагалактики ИВО","Синтез Изначально Вышестоящего Дома Человека Изначальной Метагалактики ИВО"," ИВ Ипостась ИВ Дом Человека Изначальной Мг ИВО ","Ипостаси Дома Человека Изначальной Мг ИВО","Анис","Аниса",null,"Римма","Служащий Синтез Синтеза ИВ Дома Сына ИВО Управления Синтеза Альфреда, Ипостась Дома Отца Могущества ИВО",null,null," Изначально Вышестоящий Дом Человека Изначальной Метагалактики ИВО "," ИВ Ипостась ИВ Дом Человека Изначальной Мг ИВО "]
[415,null,null,null,"Синтез Ипостасное Тела ИВО","Синтез Ипостасное Тела ИВО","Синтез Ипостасное Тела ИВО"," ИВ Ипостась ИВ Ипостасное Тело ИВО ","Ипостаси Ипостасного Тела ИВО","Ар","Ара",null,"Белла","Служащий Синтез Синтеза Веры ИВО Управления Синтеза Егора, Ипостась Дома Отца Могущества ИВО",null,null," Ипостасное Тело ИВО"," ИВ Ипостась ИВ Ипостасное Тело ИВО "]
[414,null,null,null,"Синтез Истина ИВО","Синтез Истина ИВО","Синтез Истина ИВО"," ИВ Ипостась ИВ Истина ИВО ","Ипостаси Истины ИВО","Дорадий","Дорадия",null,"Агния","Служащий Синтез Синтеза Рацио ИВО Управления Синтеза Витольда, Ипостась Дома Отца Могущества ИВО",null,null," Истина ИВО"," ИВ Ипостась ИВ Истина ИВО "]
[413,null,null,null,"Синтез Око ИВО","Синтез Око ИВО","Синтез Око ИВО"," ИВ Ипостась ИВ Око ИВО ","Ипостаси Ока ИВО","Дор","Дор",null,"Фелиция","Служащий Синтез Синтеза Памяти ИВО Управления Синтеза Стократа, Ипостась Дома Отца Ипостасности ИВО",null,null," Око ИВО"," ИВ Ипостась ИВ Око ИВО "]
[412,null,null,null,"Синтез Хум ИВО","Синтез Хум ИВО","Синтез Хум ИВО"," ИВ Ипостась ИВ Хум ИВО ","Ипостаси Хум ИВО","Понтелей","Понтелея",null,"Виталина","Служащий Синтез Синтеза Прозрения ИВО Управления Синтеза Глеба, Ипостась Дома Отца Ипостасности ИВО",null,null," Хум ИВО"," ИВ Ипостась ИВ Хум ИВО "]
[411,null,null,null,"Синтез Абсолют ИВО","Синтез Абсолют ИВО","Синтез Абсолют ИВО"," ИВ Ипостась ИВ Абсолют ИВО ","Ипостаси Абсолюта ИВО","Явир","Явира",null,"Нона","Служащий Синтез Синтеза Униграммы ИВО Управления Синтеза Клавдия, Ипостась Дома Отца Ипостасности ИВО",null,null," Абсолют ИВО"," ИВ Ипостась ИВ Абсолют ИВО "]
[410,null,null,null,"Синтез Омега ИВО","Синтез Омега ИВО","Синтез Омега ИВО"," ИВ Ипостась ИВ Омега ИВО ","Ипостаси Омеги ИВО","Трис","Триса",null,"Клементина","Служащий Синтез Синтеза Мерности ИВО Управления Синтеза Теониса, Ипостась Дома Отца Пассионарности ИВО",null,null," Омега ИВО"," ИВ Ипостась ИВ Омега ИВО "]
[409,null,null,null,"Синтез Монада ИВО","Синтез Монада ИВО","Синтез Монада ИВО"," ИВ Ипостась ИВ Монада ИВО ","Ипостаси Монады ИВО","Виктор","Виктора",null,"Лира","Служащий Синтез Синтеза Заряженности ИВО Управления Синтеза Донана, Ипостась Дома Отца Пассионарности ИВО",null,null," Монада ИВО "," ИВ Ипостась ИВ Монада ИВО "]
[408,null,null,null,"Синтез Изначально Вышестоящего Дома Человека Изначальности ИВО ","Синтез Изначально Вышестоящего Дома Человека Изначальности ИВО ","Синтез Изначально Вышестоящего Дома Человека Изначальности ИВО "," ИВ Ипостась ИВ Дом Человека Изначальности ИВО ","Ипостаси Дома Человека Изначальности ИВО","Визар","Визара",null,"Ванесса","Служащий Синтез Синтеза ИВ Дома Дочери ИВО Управления Синтеза Альберта, Ипостась Дома Отца Пассионарности ИВО",null,null," Изначально Вышестоящий Дом Человека Изначальности ИВО  "," ИВ Ипостась ИВ Дом Человека Изначальности ИВО "]
[407,null,null,null,"Синтез Физическое тело ИВО","Синтез Физическое тело ИВО","Синтез Физическое тело ИВО"," ИВ Ипостась ИВ Физическое Тело ИВО ","Ипостаси Физического Тела ИВО","Ерёма","Ерёмы",null,"Евдокия","Служащий Синтез Синтеза Образ-типа ИВО Управления Синтеза Степана, Ипостась Дома Отца Истинности ИВО",null,null," Физическое Тело ИВО "," ИВ Ипостась ИВ Физическое Тело ИВО "]
[406,null,null,null,"Синтез Разум ИВО","Синтез Разум ИВО","Синтез Разум ИВО"," ИВ Ипостась ИВ Разум ИВО ","Ипостаси Разума ИВО","Ираклий","Ираклия",null,"Клара","Служащий Синтез Синтеза Сообразительности ИВО Управления Синтеза Арсана, Ипостась Дома Отца Истинности ИВО",null,null," Разум ИВО"," ИВ Ипостась ИВ Разум ИВО "]
[405,null,null,null,"Синтез Сердце ИВО","Синтез Сердце ИВО","Синтез Сердце ИВО"," ИВ Ипостась ИВ Сердце ИВО ","Ипостаси Сердца ИВО","Елизар","Елизара",null,"Лиза","Служащий Синтез Синтеза Осмысленности ИВО Управления Синтеза Остапа, Ипостась Дома Отца Истинности ИВО",null,null," Сердце ИВО"," ИВ Ипостась ИВ Сердце ИВО "]
[404,null,null,null,"Синтез Мышление ИВО","Синтез Мышление ИВО","Синтез Мышление ИВО"," ИВ Ипостась ИВ Мышление ИВО ","Ипостаси Мышления ИВО","Градимир","Градимира",null,"Сюзанна","Служащий Синтез Синтеза Логики ИВО Управления Синтеза Романа, Ипостась Дома Отца Окскости ИВО",null,null," Мышление ИВО"," ИВ Ипостась ИВ Мышление ИВО "]
[403,null,null,null,"Синтез Головерсум ИВО","Синтез Головерсум ИВО","Синтез Головерсум ИВО"," ИВ Ипостась ИВ Головерсум ИВО ","Ипостаси Головерсума ИВО","Рустам","Рустама",null,"Сейла","Служащий Синтез Синтеза Чувствознания ИВО Управления Синтеза Клима, Ипостась Дома Отца Окскости ИВО",null,null," Головерсум ИВО"," ИВ Ипостась ИВ Головерсум ИВО "]
[402,null,null,null,"Синтез Восприятие ИВО","Синтез Восприятие ИВО","Синтез Восприятие ИВО"," ИВ Ипостась ИВ Восприятие ИВО ","Ипостаси Восприятия ИВО","Октан","Октана",null,"Руслана","Служащий Синтез Синтеза Проницания ИВО Управления Синтеза Петра, Ипостась Дома Отца Окскости ИВО",null,null," Восприятие ИВО"," ИВ Ипостась ИВ Восприятие ИВО "]
[401,null,null,null,"Синтез Пламени Отца ИВО","Синтез Пламени Отца ИВО","Синтез Пламени Отца ИВО"," ИВ Ипостась ИВ Пламя Отца ИВО ","Ипостаси Пламени Отца ИВО","Силуан","Силуана",null,"Устина","Служащий Синтез Синтеза Активности ИВО Управления Синтеза Макея, Ипостась Дома Отца Изначальности ИВО",null,null," Пламя Отца ИВО"," ИВ Ипостась ИВ Пламя Отца ИВО "]
[400,null,null,null,"Синтез Изначально Вышестоящего Дома Человека Метагалактики ИВО","Синтез Изначально Вышестоящего Дома Человека Метагалактики ИВО","Синтез Изначально Вышестоящего Дома Человека Метагалактики ИВО"," ИВ Ипостась ИВ Дом Человека Мг ИВО ","Ипостаси Дома Человека Мг ИВО","Лукьян","Лукьяна",null,"Марика","Служащий Синтез Синтеза ИВ Дома Человека ИМг ИВО Управления Синтеза Аниса, Ипостась Дома Отца Изначальности ИВО",null,null," Изначально Вышестоящий Дом Человека Метагалактики ИВО "," ИВ Ипостась ИВ Дом Человека Мг ИВО "]
[399,null,null,null,"Синтез Синтезтела ИВО","Синтез Синтезтела ИВО","Синтез Синтезтела ИВО"," ИВ Ипостась ИВ Синтезтело ИВО ","Ипостаси Синтезтела ИВО","Люсьен","Люсьена",null,"Франсуаза","Служащий Синтез Синтеза Ипостасного Тела ИВО Управления Синтеза Ара, Ипостась Дома Отца Изначальности ИВО",null,null," Синтезтело ИВО"," ИВ Ипостась ИВ Синтезтело ИВО "]
[398,null,null,null,"Синтез Сознания ИВО","Синтез Сознания ИВО","Синтез Сознания ИВО"," ИВ Ипостась ИВ Сознание ИВО ","Ипостаси Сознания ИВО","Андриан","Андриана",null,"Христина","Служащий Синтез Синтеза Истины ИВО Управления Синтеза Дорадия, Ипостась Дома Отца Присутствия ИВО",null,null," Сознание ИВО "," ИВ Ипостась ИВ Сознание ИВО "]
[397,null,null,null,"Синтез Грааля ИВО","Синтез Грааля ИВО","Синтез Грааля ИВО"," ИВ Ипостась ИВ Грааль ИВО ","Ипостаси Грааля ИВО","Прокофий","Прокофия",null,"Иолана","Служащий Синтез Синтеза Око ИВО Управления Синтеза Дора, Ипостась Дома Отца Присутствия ИВО",null,null," Грааль ИВО "," ИВ Ипостась ИВ Грааль ИВО "]
[396,null,null,null,"Синтез Синтезобраза ИВО","Синтез Синтезобраза ИВО","Синтез Синтезобраза ИВО"," ИВ Ипостась ИВ Синтезаобраз ИВО ","Ипостаси Синтезаобраза  ИВО","Зарк","Зарка",null,"Джесика","Служащий Синтез Синтеза Хум ИВО Управления Синтеза Понтелея, Ипостась Дома Отца Присутствия ИВО",null,null," Синтезобраз ИВО"," ИВ Ипостась ИВ ИСиобраз ИВО "]
[395,null,null,null,"Синтез Провидения ИВО","Синтез Провидения ИВО","Синтез Провидения ИВО"," ИВ Ипостась ИВ Провидение ИВО ","Ипостаси Провидения ИВО","Станис","Станиса",null,"Сабина","Служащий Синтез Синтеза Абсолют ИВО Управления Синтеза Явира, Ипостась Дома Отца ИВ Мг ИВО",null,null," Провидение ИВО"," ИВ Ипостась ИВ Провидение ИВО "]
[394,null,null,null,"Синтез Нить Синтеза ИВО","Синтез Нить Синтеза ИВО","Синтез Нить Синтеза ИВО"," ИВ Ипостась ИВ Нить Синтеза ИВО ","Ипостаси Нити Синтеза ИВО","Панкрат","Панкрата",null,"Нелли","Служащий Синтез Синтеза Омега ИВО Управления Синтеза Триса, Ипостась Дома Отца ИВ Мг ИВО",null,null," Нить Синтеза ИВО"," ИВ Ипостась ИВ Нить Синтеза ИВО "]
[393,null,null,null,"Синтез Мощи Отца ИВО","Синтез Мощи Отца ИВО","Синтез Мощи Отца ИВО"," ИВ Ипостась ИВ Мощь Отца ИВО ","Ипостаси Мощи Отца ИВО","Старк","Старка",null,"Санта","Служащий Синтез Синтеза Монада ИВО Управления Синтеза Виктора, Ипостась Дома Отца ИВ Мг ИВО",null,null," Мощь Отца ИВО "," ИВ Ипостась ИВ Мощь Отца ИВО "]
[392,null,null,null,"Синтез Изначально Вышестоящего Дома Человека Планеты ИВО ","Синтез Изначально Вышестоящего Дома Человека Планеты ИВО ","Синтез Изначально Вышестоящего Дома Человека Планеты ИВО "," ИВ Ипостась ИВ Человека Планеты ИВО ","Ипостаси Человека Планеты ИВО","Дорофей","Дорофея",null,"Доротея","Служащий Синтез Синтеза ИВ Дома Человека Изначальности ИВО Управления Синтеза Визара, Ипостась Дома Отца ИМг ИВО",null,null," Изначально Вышестоящий Дом Человека Планеты ИВО "," ИВ Ипостась ИВ Человека Планеты ИВО "]
[391,null,null,null,"Синтез Трансвизора ИВО","Синтез Трансвизора ИВО","Синтез Трансвизора ИВО"," ИВ Ипостась ИВ Трансвизор ИВО ","Ипостаси Трансвизора ИВО","Яков","Якова",null,"Янина","Служащий Синтез Синтеза Физического тела ИВО Управления Синтеза Ерёмы, Ипостась Дома Отца ИМг ИВО",null,null," Трансвизор ИВО"," ИВ Ипостась ИВ Трансвизор ИВО "]
[390,null,null,null,"Синтез Интеллекта ИВО","Синтез Интеллекта ИВО","Синтез Интеллекта ИВО"," ИВ Ипостась ИВ Интеллект ИВО ","Ипостаси Интеллекта ИВО","Ульян","Ульяна",null,"Люция","Служащий Синтез Синтеза Разума ИВО Управления Синтеза Ираклия, Ипостась Дома Отца ИМг ИВО",null,null," Интеллект ИВО "," ИВ Ипостась ИВ Интеллект ИВО "]
[389,null,null,null,"Синтез Престола ИВО","Синтез Престола ИВО","Синтез Престола ИВО"," ИВ Ипостась ИВ Престол ИВО ","Ипостаси Престола ИВО","Герман","Германа",null,"Ирэн","Служащий Синтез Синтеза Сердца ИВО Управления Синтеза Елизара, Ипостась Дома Отца Метагалактики ИВО",null,null," Престол ИВО "," ИВ Ипостась ИВ Престол ИВО "]
[388,null,null,null,"Синтез Ума ИВО","Синтез Ума ИВО","Синтез Ума ИВО"," ИВ Ипостась ИВ Ум ИВО ","Ипостаси Ума ИВО","Радомир","Радомира",null,"Сесилия","Служащий Синтез Синтеза Мышления ИВО Управления Синтеза Градимира, Ипостась Дома Отца Метагалактики ИВО",null,null," Ум ИВО"," ИВ Ипостась ИВ Ум ИВО "]
[387,null,null,null,"Синтез Души ИВО","Синтез Души ИВО","Синтез Души ИВО"," ИВ Ипостась ИВ Душа ИВО ","Ипостаси Души ИВО","Октавий","Октавия",null,"Верислава","Служащий Синтез Синтеза Головерсума ИВО Управления Синтеза Рустама, Ипостась Дома Отца Метагалактики ИВО",null,null," Душа ИВО"," ИВ Ипостась ИВ Душа ИВО "]
[386,null,null,null,"Синтез Слова Отца ИВО","Синтез Слова Отца ИВО","Синтез Слова Отца ИВО"," ИВ Ипостась ИВ Слово Отца ИВО ","Ипостаси Слова Отца ИВО","Ким","Кима",null,"Станислава","Служащий Синтез Синтеза Восприятия ИВО Управления Синтеза Октана, Ипостась Дома Отца Планеты ИВО",null,null," Слово Отца ИВО"," ИВ Ипостась ИВ Слово Отца ИВО "]
[385,null,null,null,"Синтез Образа Отца ИВО","Синтез Образа Отца ИВО","Синтез Образа Отца ИВО"," ИВ Ипостась ИВ Образ Отца ИВО ","Ипостаси Образа Отца ИВО","Бонифаций","Бонифация",null,"Милослава","Служащий Синтез Синтеза Пламени Отца ИВО Управления Синтеза Силуана, Ипостась Дома Отца Планеты ИВО",null,null," Образ Отца ИВО"," ИВ Ипостась ИВ Образ Отца ИВО "]
[null,null,null,null,"Синтез 383-Мерностного Синтезтела ИВО ИВО","Синтез 383-Мерностного Синтезтела ИВО ИВО","Синтез 383-Мерностного Синтезтела ИВО ИВО",null,null,"Фаинь","Фаинь",null,null,"Служащий Синтез Синтеза ИВ Дома Человека Мг ИВО Управления Синтеза Лукьяна, Ипостась Дома Отца Планеты ИВО",null,null,null," ИВ Ипостась ИВ 383-Мерностное Синтезтело ИВО "]
[null,null,null,null,"Синтез 382-Мерностного Синтезтела Изначально Вышестоящего Аватара ИВО","Синтез 382-Мерностного Синтезтела Изначально Вышестоящего Аватара ИВО","Синтез 382-Мерностного Синтезтела Изначально Вышестоящего Аватара ИВО",null,null,"Славия","Славии",null,null,"Служащий Синтез Синтеза Синтезтела ИВО Управления Синтеза Люсьена, Ипостась Дома Отца Буддичности Человека ИВО",null,null,null," ИВ Ипостась ИВ 382-Мерностное Синтезтело ИВО "]
[null,null,null,null,"Синтез 381-Мерностного Синтезтела Изначально Вышестоящего Владыки ИВО","Синтез 381-Мерностного Синтезтела Изначально Вышестоящего Владыки ИВО","Синтез 381-Мерностного Синтезтела Изначально Вышестоящего Владыки ИВО",null,null,"Свет","Свет",null,null,"Служащий Синтез Синтеза Сознания ИВО Управления Синтеза Андриана, Ипостась Дома Отца Буддичности Человека ИВО",null,null,null," ИВ Ипостась ИВ 381-Мерностное Синтезтело ИВО "]
[null,null,null,null,"Синтез 380-Мерностного Синтезтела Изначально Вышестоящего Учителя ИВО","Синтез 380-Мерностного Синтезтела Изначально Вышестоящего Учителя ИВО","Синтез 380-Мерностного Синтезтела Изначально Вышестоящего Учителя ИВО",null,null,"Марина","Марины",null,null,"Служащий Синтез Синтеза Грааля ИВО Управления Синтеза Прокофия, Ипостась Дома Отца Буддичности Человека ИВО",null,null,null," ИВ Ипостась ИВ 380-Мерностное Синтезтело ИВО "]
[null,null,null,null,"Синтез 379-Мерностного Синтезтела Изначально Вышестоящего Ипостаси ИВО","Синтез 379-Мерностного Синтезтела Изначально Вышестоящего Ипостаси ИВО","Синтез 379-Мерностного Синтезтела Изначально Вышестоящего Ипостаси ИВО",null,null,"Альбина","Альбины",null,null,"Служащий Синтез Синтеза Синтезобраза ИВО Управления Синтеза Зарка, Ипостась Дома Отца Всеединой Супергалактики ИВО",null,null,null," ИВ Ипостась ИВ 379-Мерностное Синтезтело ИВО "]
[null,null,null,null,"Синтез 378-Мерностного Синтезтела Изначально Вышестоящей Служащего ИВО","Синтез 378-Мерностного Синтезтела Изначально Вышестоящей Служащего ИВО","Синтез 378-Мерностного Синтезтела Изначально Вышестоящей Служащего ИВО",null,null,"Вероника","Вероники",null,null,"Служащий Синтез Синтеза Провидения ИВО Управления Синтеза Станиса, Ипостась Дома Отца Всеединой Супергалактики ИВО",null,null,null," ИВ Ипостась ИВ 378-Мерностное Синтезтело ИВО "]
[null,null,null,null,"Синтез 377-Мерностного Синтезтела Изначально Вышестоящего Посвящённого ИВО","Синтез 377-Мерностного Синтезтела Изначально Вышестоящего Посвящённого ИВО","Синтез 377-Мерностного Синтезтела Изначально Вышестоящего Посвящённого ИВО",null,null,"Сиана","Сианы",null,null,"Служащий Синтез Синтеза Нить Синтеза ИВО Управления Синтеза Панкрата, Ипостась Дома Отца Всеединой Супергалактики ИВО",null,null,null," ИВ Ипостась ИВ 377-Мерностное Синтезтело ИВО "]
[null,null,null,null,"Синтез 376-Мерностного Синтезтела Изначально Вышестоящего Майтрейи ИВО","Синтез 376-Мерностного Синтезтела Изначально Вышестоящего Майтрейи ИВО","Синтез 376-Мерностного Синтезтела Изначально Вышестоящего Майтрейи ИВО",null,null,"Она","Оны",null,null,"Служащий Синтез Синтеза Мощи Отца ИВО Управления Синтеза Старка, Ипостась Дома Отца Единой Галактики ИВО",null,null,null," ИВ Ипостась ИВ 376-Мерностное Синтезтело ИВО "]
[null,null,null,null,"Синтез 375-Мерностного Синтезтела Изначально Вышестоящего Христа ИВО","Синтез 375-Мерностного Синтезтела Изначально Вышестоящего Христа ИВО","Синтез 375-Мерностного Синтезтела Изначально Вышестоящего Христа ИВО",null,null,"Стефания","Стефании",null,null,"Служащий Синтез Синтеза ИВ Дома Человека Планеты ИВО Управления Синтеза Дорофея, Ипостась Дома Отца Единой Галактики ИВО",null,null,null," ИВ Ипостась ИВ 375-Мерностное Синтезтело ИВО "]
[null,null,null,null,"Синтез 374-Мерностного Синтезтела Изначально Вышестоящего Будды ИВО","Синтез 374-Мерностного Синтезтела Изначально Вышестоящего Будды ИВО","Синтез 374-Мерностного Синтезтела Изначально Вышестоящего Будды ИВО",null,null,"Свята","Святы",null,null,"Служащий Синтез Синтеза Трансвизора ИВО Управления Синтеза Якова, Ипостась Дома Отца Единой Галактики ИВО",null,null,null," ИВ Ипостась ИВ 374-Мерностное Синтезтело ИВО "]
[null,null,null,null,"Синтез 373-Мерностного Синтезтела Изначально Вышестоящего Теурга ИВО","Синтез 373-Мерностного Синтезтела Изначально Вышестоящего Теурга ИВО","Синтез 373-Мерностного Синтезтела Изначально Вышестоящего Теурга ИВО",null,null,"Баяна","Баяны",null,null,"Служащий Синтез Синтеза Интеллекта ИВО Управления Синтеза Ульяна, Ипостась Дома Отца Универсума Солнца ИВО",null,null,null," ИВ Ипостась ИВ 373-Мерностное Синтезтело ИВО "]
[null,null,null,null,"Синтез 372-Мерностного Синтезтела Изначально Вышестоящего Творца ИВО","Синтез 372-Мерностного Синтезтела Изначально Вышестоящего Творца ИВО","Синтез 372-Мерностного Синтезтела Изначально Вышестоящего Творца ИВО",null,null,"Екатерина","Екатерины",null,null,"Служащий Синтез Синтеза Престола ИВО Управления Синтеза Германа, Ипостась Дома Отца Универсума Солнца ИВО",null,null,null," ИВ Ипостась ИВ 372-Мерностное Синтезтело ИВО "]
[null,null,null,null,"Синтез 371-Мерностного Синтезтела Изначально Вышестоящего Аспекта ИВО","Синтез 371-Мерностного Синтезтела Изначально Вышестоящего Аспекта ИВО","Синтез 371-Мерностного Синтезтела Изначально Вышестоящего Аспекта ИВО",null,null,"Сивилла","Сивиллы",null,null,"Служащий Синтез Синтеза Ума ИВО Управления Синтеза Радомира, Ипостась Дома Отца Универсума Солнца ИВО",null,null,null," ИВ Ипостась ИВ 371-Мерностное Синтезтело ИВО "]
[null,null,null,null,"Синтез 370-Мерностного Синтезтела Изначально Вышестоящего Логоса ИВО","Синтез 370-Мерностного Синтезтела Изначально Вышестоящего Логоса ИВО","Синтез 370-Мерностного Синтезтела Изначально Вышестоящего Логоса ИВО",null,null,"Тамила","Тамилы",null,null,"Служащий Синтез Синтеза Души ИВО Управления Синтеза Октавия, Ипостась Дома Отца Звёздной Вселенной ИВО",null,null,null," ИВ Ипостась ИВ 370-Мерностное Синтезтело ИВО "]
[null,null,null,null,"Синтез 369-Мерностного Синтезтела Изначально Вышестоящего Ману ИВО","Синтез 369-Мерностного Синтезтела Изначально Вышестоящего Ману ИВО","Синтез 369-Мерностного Синтезтела Изначально Вышестоящего Ману ИВО",null,null,"Ника","Ники",null,null,"Служащий Синтез Синтеза Слова Отца ИВО Управления Синтеза Кима, Ипостась Дома Отца Звёздной Вселенной ИВО",null,null,null," ИВ Ипостась ИВ 369-Мерностное Синтезтело ИВО "]
[null,null,null,null,"Синтез 368-Мерностного Синтезтела Изначально Вышестоящего Человека ИВО","Синтез 368-Мерностного Синтезтела Изначально Вышестоящего Человека ИВО","Синтез 368-Мерностного Синтезтела Изначально Вышестоящего Человека ИВО",null,null,"Велетте","Велетте",null,null,"Служащий Синтез Синтеза Образа Отца ИВО Управления Синтеза Бонифация, Ипостась Дома Отца Звёздной Вселенной ИВО",null,null,null," ИВ Ипостась ИВ 368-Мерностное Синтезтело ИВО "]
[null,null,null,null,"Синтез 367-Мерностного Синтезтела Изначально Вышестоящего Изначально Вышестоящего Человека ИВО","Синтез 367-Мерностного Синтезтела Изначально Вышестоящего Изначально Вышестоящего Человека ИВО","Синтез 367-Мерностного Синтезтела Изначально Вышестоящего Изначально Вышестоящего Человека ИВО",null,null,"Эмилия","Эмилии",null,null,null,null,null,null," ИВ Ипостась ИВ 367-Мерностное Синтезтело ИВО "]
[null,null,null,null,"Синтез 366-Мерностного Синтезтела Изначально Вышестоящего Человека Изначальности ИВО","Синтез 366-Мерностного Синтезтела Изначально Вышестоящего Человека Изначальности ИВО","Синтез 366-Мерностного Синтезтела Изначально Вышестоящего Человека Изначальности ИВО",null,null,"Елена","Елены",null,null,"Посвящённый Синтез Синтеза 383-Мерностного Синтезтела Изначально Вышестоящего Отца ИВО, Управления Синтеза Фаинь",null,null,null," ИВ Ипостась ИВ 366-Мерностное Синтезтело ИВО "]
[null,null,null,null,"Синтез 365-Мерностного Синтезтела Изначально Вышестоящего Сына ИВО","Синтез 365-Мерностного Синтезтела Изначально Вышестоящего Сына ИВО","Синтез 365-Мерностного Синтезтела Изначально Вышестоящего Сына ИВО",null,null,"Валерия","Валерии",null,null,"Посвящённый Синтез Синтеза 382-Мерностного Синтезтела Изначально Вышестоящего Аватара ИВО, Управления Синтеза Славии",null,null,null," ИВ Ипостась ИВ 365-Мерностное Синтезтело ИВО "]
[null,null,null,null,"Синтез 364-Мерностного Синтезтела Изначально Вышестоящей Дочери ИВО","Синтез 364-Мерностного Синтезтела Изначально Вышестоящей Дочери ИВО","Синтез 364-Мерностного Синтезтела Изначально Вышестоящей Дочери ИВО",null,null,"Олеся","Олеси",null,null,"Посвящённый Синтез Синтеза 381-Мерностного Синтезтела Изначально Вышестоящего Владыки ИВО, Управления Синтеза Свет",null,null,null," ИВ Ипостась ИВ 364-Мерностное Синтезтело ИВО "]
[null,null,null,null,"Синтез 363-Мерностного Синтезтела Изначально Вышестоящего Человека Изначально Вышестоящей Метагалактики ИВО","Синтез 363-Мерностного Синтезтела Изначально Вышестоящего Человека Изначально Вышестоящей Метагалактики ИВО","Синтез 363-Мерностного Синтезтела Изначально Вышестоящего Человека Изначально Вышестоящей Метагалактики ИВО",null,null,"Антуанэтта","Антуанэтты",null,null,"Посвящённый Синтез Синтеза 380-Мерностного Синтезтела Изначально Вышестоящего Учителя ИВО, Управления Синтеза Марины",null,null,null," ИВ Ипостась ИВ 363-Мерностное Синтезтело ИВО "]
[null,null,null,null,"Синтез 362-Мерностного Синтезтела Изначально Вышестоящего Человека Изначальной Метагалактики ИВО","Синтез 362-Мерностного Синтезтела Изначально Вышестоящего Человека Изначальной Метагалактики ИВО","Синтез 362-Мерностного Синтезтела Изначально Вышестоящего Человека Изначальной Метагалактики ИВО",null,null,"Юлиана","Юлианы",null,null,"Посвящённый Синтез Синтеза 379-Мерностного Синтезтела Изначально Вышестоящей Ипостаси ИВО, Управления Синтеза Альбины",null,null,null," ИВ Ипостась ИВ 362-Мерностное Синтезтело ИВО "]
[null,null,null,null,"Синтез 361-Мерностного Синтезтела Изначально Вышестоящего Человека Метагалактики ИВО","Синтез 361-Мерностного Синтезтела Изначально Вышестоящего Человека Метагалактики ИВО","Синтез 361-Мерностного Синтезтела Изначально Вышестоящего Человека Метагалактики ИВО",null,null,"Синтия","Синтии",null,null,"Посвящённый Синтез Синтеза 378-Мерностного Синтезтела Изначально Вышестоящего Служащего ИВО, Управления Синтеза Вероники",null,null,null," ИВ Ипостась ИВ 361-Мерностное Синтезтело ИВО "]
[null,null,null,null,"Синтез 360-Мерностного Синтезтела Изначально Вышестоящей Матери ИВО","Синтез 360-Мерностного Синтезтела Изначально Вышестоящей Матери ИВО","Синтез 360-Мерностного Синтезтела Изначально Вышестоящей Матери ИВО",null,null,"Виктория","Виктории",null,null,"Посвящённый Синтез Синтеза 377-Мерностного Синтезтела Изначально Вышестоящего Посвящённого ИВО, Управления Синтеза Сианы",null,null,null," ИВ Ипостась ИВ 360-Мерностное Синтезтело ИВО "]
[null,null,null,null,"Синтез 359-Мерностного Синтезтела Изначально Вышестоящего Праведника ИВО","Синтез 359-Мерностного Синтезтела Изначально Вышестоящего Праведника ИВО","Синтез 359-Мерностного Синтезтела Изначально Вышестоящего Праведника ИВО",null,null,"Дарида","Дариды",null,null,"Посвящённый Синтез Синтеза 376-Мерностного Синтезтела Изначально Вышестоящего Майтрейи ИВО, Управления Синтеза Оны",null,null,null," ИВ Ипостась ИВ 359-Мерностное Синтезтело ИВО "]
[null,null,null,null,"Синтез 358-Мерностного Синтезтела Изначально Вышестоящего Неизречённого ИВО","Синтез 358-Мерностного Синтезтела Изначально Вышестоящего Неизречённого ИВО","Синтез 358-Мерностного Синтезтела Изначально Вышестоящего Неизречённого ИВО",null,null,"Алина","Алины",null,null,"Посвящённый Синтез Синтеза 375-Мерностного Синтезтела Изначально Вышестоящего Христа ИВО, Управления Синтеза Стефании",null,null,null," ИВ Ипостась ИВ 358-Мерностное Синтезтело ИВО "]
[null,null,null,null,"Синтез 357-Мерностного Синтезтела Изначально Вышестоящего Всемогущего ИВО","Синтез 357-Мерностного Синтезтела Изначально Вышестоящего Всемогущего ИВО","Синтез 357-Мерностного Синтезтела Изначально Вышестоящего Всемогущего ИВО",null,null,"Софья","Софьи",null,null,"Посвящённый Синтез Синтеза 374-Мерностного Синтезтела Изначально Вышестоящего Будды ИВО, Управления Синтеза Святы",null,null,null," ИВ Ипостась ИВ 357-Мерностное Синтезтело ИВО "]
[null,null,null,null,"Синтез 356-Мерностного Синтезтела Изначально Вышестоящего Предвечного ИВО","Синтез 356-Мерностного Синтезтела Изначально Вышестоящего Предвечного ИВО","Синтез 356-Мерностного Синтезтела Изначально Вышестоящего Предвечного ИВО",null,null,"Агафья","Агафьи",null,null,"Посвящённый Синтез Синтеза 373-Мерностного Синтезтела Изначально Вышестоящего Теурга ИВО, Управления Синтеза Баяны",null,null,null," ИВ Ипостась ИВ 356-Мерностное Синтезтело ИВО "]
[null,null,null,null,"Синтез 355-Мерностного Синтезтела Изначально Вышестоящего Предвечного ИВО","Синтез 355-Мерностного Синтезтела Изначально Вышестоящего Предвечного ИВО","Синтез 355-Мерностного Синтезтела Изначально Вышестоящего Предвечного ИВО",null,null,"Дарья","Дарьи",null,null,"Посвящённый Синтез Синтеза 372-Мерностного Синтезтела Изначально Вышестоящего Творца ИВО, Управления Синтеза Екатерины",null,null,null," ИВ Ипостась ИВ 355-Мерностное Синтезтело ИВО "]
[null,null,null,null,"Синтез 354-Мерностного Синтезтела Изначально Вышестоящего Вседержителя ИВО","Синтез 354-Мерностного Синтезтела Изначально Вышестоящего Вседержителя ИВО","Синтез 354-Мерностного Синтезтела Изначально Вышестоящего Вседержителя ИВО",null,null,"Илана","Иланы",null,null,"Посвящённый Синтез Синтеза 371-Мерностного Синтезтела Изначально Вышестоящего Аспекта ИВО, Управления Синтеза Сивиллы",null,null,null," ИВ Ипостась ИВ 354-Мерностное Синтезтело ИВО "]
[null,null,null,null,"Синтез 353-Мерностного Синтезтела Изначально Вышестоящего Всевышнего ИВО","Синтез 353-Мерностного Синтезтела Изначально Вышестоящего Всевышнего ИВО","Синтез 353-Мерностного Синтезтела Изначально Вышестоящего Всевышнего ИВО",null,null,"Яна","Яны",null,null,"Посвящённый Синтез Синтеза 370-Мерностного Синтезтела Изначально Вышестоящего Логоса ИВО, Управления Синтеза Тамилы",null,null,null," ИВ Ипостась ИВ 353-Мерностное Синтезтело ИВО "]
[null,null,null,null,"Синтез 352-Мерностного Синтезтела Изначально Вышестоящего Человека Планеты ИВО","Синтез 352-Мерностного Синтезтела Изначально Вышестоящего Человека Планеты ИВО","Синтез 352-Мерностного Синтезтела Изначально Вышестоящего Человека Планеты ИВО",null,null,"Давлата","Давлаты",null,null,"Посвящённый Синтез Синтеза 369-Мерностного Синтезтела Изначально Вышестоящего Ману ИВО, Управления Синтеза Ники",null,null,null," ИВ Ипостась ИВ 352-Мерностное Синтезтело ИВО "]
[null,null,null,null,"Синтез 351-Мерностного Синтезтела Отца Изначальной Метагалактики ИВО ","Синтез 351-Мерностного Синтезтела Отца Изначальной Метагалактики ИВО ","Синтез 351-Мерностного Синтезтела Отца Изначальной Метагалактики ИВО ",null,null,"Ирина","Ирины",null,null,"Посвящённый Синтез Синтеза 368-Мерностного Синтезтела Изначально Вышестоящего Человека ИВО, Управления Синтеза Велетте",null,null,null," ИВ Ипостась ИВ 351-Мерностное Синтезтело ИВО "]
[null,null,null,null,"Синтез 350-Мерностного Синтезтела Аватара Изначальной Метагалактики Вышестоящего Отца","Синтез 350-Мерностного Синтезтела Аватара Изначальной Метагалактики Вышестоящего Отца","Синтез 350-Мерностного Синтезтела Аватара Изначальной Метагалактики Вышестоящего Отца",null,null,"Лина","Лины",null,null,"Посвящённый Синтез Синтеза 367-Мерностного Синтезтела Изначально Вышестоящего ИВ Человека ИВО, Управления Синтеза Эмилии",null,null,null," ИВ Ипостась ИВ 350-Мерностное Синтезтело ИВО "]
[null,null,null,null,"Синтез 349-Мерностного Синтезтела Владыки Изначальной Метагалактики ИВО","Синтез 349-Мерностного Синтезтела Владыки Изначальной Метагалактики ИВО","Синтез 349-Мерностного Синтезтела Владыки Изначальной Метагалактики ИВО",null,null,"Анастасия","Анастасии",null,null,"Посвящённый Синтез Синтеза 366-Мерностного Синтезтела Изначально Вышестоящего Человека Изначальности ИВО, Управления Синтеза Елены",null,null,null," ИВ Ипостась ИВ 349-Мерностное Синтезтело ИВО "]
[null,null,null,null,"Синтез 348-Мерностного Синтезтела Учителя Изначальной Метагалактики ИВО","Синтез 348-Мерностного Синтезтела Учителя Изначальной Метагалактики ИВО","Синтез 348-Мерностного Синтезтела Учителя Изначальной Метагалактики ИВО",null,null,"Ома","Омы",null,null,"Посвящённый Синтез Синтеза 365-Мерностного Синтезтела Изначально Вышестоящего Сына ИВО, Управления Синтеза Валерии",null,null,null," ИВ Ипостась ИВ 348-Мерностное Синтезтело ИВО "]
[null,null,null,null,"Синтез 347-Мерностного Синтезтела Ипостаси Изначальной Метагалактики ИВО ","Синтез 347-Мерностного Синтезтела Ипостаси Изначальной Метагалактики ИВО ","Синтез 347-Мерностного Синтезтела Ипостаси Изначальной Метагалактики ИВО ",null,null,"Сольвейг","Сольвейг",null,null,"Посвящённый Синтез Синтеза 364-Мерностного Синтезтела Изначально Вышестоящей Дочери ИВО, Управления Синтеза Олеси",null,null,null," ИВ Ипостась ИВ 347-Мерностное Синтезтело ИВО "]
[null,null,null,null,"Синтез 346-Мерностного Синтезтела Служащего Изначальной Метагалактики ИВО","Синтез 346-Мерностного Синтезтела Служащего Изначальной Метагалактики ИВО","Синтез 346-Мерностного Синтезтела Служащего Изначальной Метагалактики ИВО",null,null,"Октавия","Октавии",null,null,"Посвящённый Синтез Синтеза 363-Мерностного Синтезтела ИВ Человека ИВ Метагалактики ИВО, Управления Синтеза Антуанетты",null,null,null," ИВ Ипостась ИВ 346-Мерностное Синтезтело ИВО "]
[null,null,null,null,"Синтез 345-Мерностного Синтезтела Посвящённого Изначальной Метагалактики ИВО","Синтез 345-Мерностного Синтезтела Посвящённого Изначальной Метагалактики ИВО","Синтез 345-Мерностного Синтезтела Посвящённого Изначальной Метагалактики ИВО",null,null,"Кристина","Кристины",null,null,"Посвящённый Синтез Синтеза 362-Мерностного Синтезтела ИВ Человека Изначальной Метагалактики ИВО, Управления Синтеза Юлианы",null,null,null," ИВ Ипостась ИВ 345-Мерностное Синтезтело ИВО "]
[null,null,null,null,"Синтез 344-Мерностного Синтезтела Майтрейи Изначальной Метагалактики ИВО","Синтез 344-Мерностного Синтезтела Майтрейи Изначальной Метагалактики ИВО","Синтез 344-Мерностного Синтезтела Майтрейи Изначальной Метагалактики ИВО",null,null,"Версавия","Версавии",null,null,"Посвящённый Синтез Синтеза 361-Мерностного Синтезтела Изначально Вышестоящего Человека Метагалактики ИВОтца, Управления Синтеза Синтии",null,null,null," ИВ Ипостась ИВ 344-Мерностное Синтезтело ИВО "]
[null,null,null,null,"Синтез 343-Мерностного Синтезтела Христа Изначальной Метагалактики ИВО","Синтез 343-Мерностного Синтезтела Христа Изначальной Метагалактики ИВО","Синтез 343-Мерностного Синтезтела Христа Изначальной Метагалактики ИВО",null,null,"Ксения","Ксении",null,null,"Посвящённый Синтез Синтеза 360-Мерностного Синтезтела Изначально Вышестоящей Матери ИВО, Управления Синтеза Виктории",null,null,null," ИВ Ипостась ИВ 343-Мерностное Синтезтело ИВО "]
[null,null,null,null,"Синтез 342-Мерностного Синтезтела Будды Изначальной Метагалактики ИВО","Синтез 342-Мерностного Синтезтела Будды Изначальной Метагалактики ИВО","Синтез 342-Мерностного Синтезтела Будды Изначальной Метагалактики ИВО",null,null,"Эмма","Эммы",null,null,"Посвящённый Синтез Синтеза 359-Мерностного Синтезтела Изначально Вышестоящего Праведника ИВО, Управления Синтеза Дариды",null,null,null," ИВ Ипостась ИВ 342-Мерностное Синтезтело ИВО "]
[null,null,null,null,"Синтез 341-Мерностного Синтезтела Теурга Изначальной Метагалактики ИВО","Синтез 341-Мерностного Синтезтела Теурга Изначальной Метагалактики ИВО","Синтез 341-Мерностного Синтезтела Теурга Изначальной Метагалактики ИВО",null,null,"Стафия","Стафии",null,null,"Посвящённый Синтез Синтеза 358-Мерностного Синтезтела Изначально Вышестоящего Неизречённого ИВО, Управления Синтеза Алины",null,null,null," ИВ Ипостась ИВ 341-Мерностное Синтезтело ИВО "]
[null,null,null,null,"Синтез 340-Мерностного Синтезтела Творца Изначальной Метагалактики ИВО","Синтез 340-Мерностного Синтезтела Творца Изначальной Метагалактики ИВО","Синтез 340-Мерностного Синтезтела Творца Изначальной Метагалактики ИВО",null,null,"Оксана","Оксаны",null,null,"Посвящённый Синтез Синтеза 357-Мерностного Синтезтела Изначально Вышестоящего Всемогущего ИВО, Управления Синтеза Софьи",null,null,null," ИВ Ипостась ИВ 340-Мерностное Синтезтело ИВО "]
[null,null,null,null,"Синтез 339-Мерностного Синтезтела Аспекта Изначальной Метагалактики ИВО","Синтез 339-Мерностного Синтезтела Аспекта Изначальной Метагалактики ИВО","Синтез 339-Мерностного Синтезтела Аспекта Изначальной Метагалактики ИВО",null,null,"Ульяна","Ульяны",null,null,"Посвящённый Синтез Синтеза 356-Мерностного Синтезтела Изначально Вышестоящего Предвечного ИВО, Управления Синтеза Агафьи",null,null,null," ИВ Ипостась ИВ 339-Мерностное Синтезтело ИВО "]
[null,null,null,null,"Синтез 338-Мерностного Синтезтела Логоса Изначальной Метагалактики ИВО","Синтез 338-Мерностного Синтезтела Логоса Изначальной Метагалактики ИВО","Синтез 338-Мерностного Синтезтела Логоса Изначальной Метагалактики ИВО",null,null,"Беатрисс","Беатрисс",null,null,"Посвящённый Синтез Синтеза 355-Мерностного Синтезтела Изначально Вышестоящего Предначального ИВО, Управления Синтеза Дарьи",null,null,null," ИВ Ипостась ИВ 338-Мерностное Синтезтело ИВО "]
[null,null,null,null,"Синтез 337-Мерностного Синтезтела Ману Изначальной Метагалактики ИВО","Синтез 337-Мерностного Синтезтела Ману Изначальной Метагалактики ИВО","Синтез 337-Мерностного Синтезтела Ману Изначальной Метагалактики ИВО",null,null,"Оливия","Оливии",null,null,"Посвящённый Синтез Синтеза 354-Мерностного Синтезтела Изначально Вышестоящего Вседержителя ИВО, Управления Синтеза Иланы",null,null,null," ИВ Ипостась ИВ 337-Мерностное Синтезтело ИВО "]
[null,null,null,null,"Синтез 336-Мерностного Синтезтела Человека ИВО Изначальной Метагалактики ИВО","Синтез 336-Мерностного Синтезтела Человека ИВО Изначальной Метагалактики ИВО","Синтез 336-Мерностного Синтезтела Человека ИВО Изначальной Метагалактики ИВО",null,null,"Алла","Аллы",null,null,"Посвящённый Синтез Синтеза 353-Мерностного Синтезтела Изначально Вышестоящего Всевышнего ИВО, Управления Синтеза Яны",null,null,null," ИВ Ипостась ИВ 336-Мерностное Синтезтело ИВО "]
[null,null,null,null,"Синтез 335-Мерностного Синтезтела Изначально Вышестоящего Человека ИВО Изначальной Метагалактики ИВО","Синтез 335-Мерностного Синтезтела Изначально Вышестоящего Человека ИВО Изначальной Метагалактики ИВО","Синтез 335-Мерностного Синтезтела Изначально Вышестоящего Человека ИВО Изначальной Метагалактики ИВО",null,null,"Натали","Натали",null,null,"Посвящённый Синтез Синтеза 352-Мерностного Синтезтела Изначально Вышестоящего Человека Планеты ИВО, Управления Синтеза Давлаты",null,null,null," ИВ Ипостась ИВ 335-Мерностное Синтезтело ИВО "]
[null,null,null,null,"Синтез 334-Мерностного Синтезтела Человека Изначальности Изначальной Метагалактики ИВО","Синтез 334-Мерностного Синтезтела Человека Изначальности Изначальной Метагалактики ИВО","Синтез 334-Мерностного Синтезтела Человека Изначальности Изначальной Метагалактики ИВО",null,null,"Эва","Эвы",null,null,"Посвящённый Синтез Синтеза 351-Мерностного Синтезтела Отца Изначальной Метагалактики ИВО, Управления Синтеза Ирины",null,null,null," ИВ Ипостась ИВ 334-Мерностное Синтезтело ИВО "]
[null,null,null,null,"Синтез 333-Мерностного Синтезтела Сына Изначальной Метагалактики ИВО","Синтез 333-Мерностного Синтезтела Сына Изначальной Метагалактики ИВО","Синтез 333-Мерностного Синтезтела Сына Изначальной Метагалактики ИВО",null,null,"Лана","Ланы",null,null,"Посвящённый Синтез Синтеза 350-Мерностного Синтезтела Аватара Изначальной Метагалактики ИВО, Управления Синтеза Лины",null,null,null," ИВ Ипостась ИВ 333-Мерностное Синтезтело ИВО "]
[null,null,null,null,"Синтез 332-Мерностного Синтезтела Дочери Изначальной Метагалактики ИВО","Синтез 332-Мерностного Синтезтела Дочери Изначальной Метагалактики ИВО","Синтез 332-Мерностного Синтезтела Дочери Изначальной Метагалактики ИВО",null,null,"Одель","Одель",null,null,"Посвящённый Синтез Синтеза 349-Мерностного Синтезтела Владыки Изначальной Метагалактики ИВО, Управления Синтеза Анастасии",null,null,null," ИВ Ипостась ИВ 332-Мерностное Синтезтело ИВО "]
[null,null,null,null,"Синтез 331-Мерностного Синтезтела Человека Изначально Вышестоящей Метагалактики Изначальной Метагалактики ИВО  ","Синтез 331-Мерностного Синтезтела Человека Изначально Вышестоящей Метагалактики Изначальной Метагалактики ИВО  ","Синтез 331-Мерностного Синтезтела Человека Изначально Вышестоящей Метагалактики Изначальной Метагалактики ИВО  ",null,null,"Тамара","Тамары",null,null,"Посвящённый Синтез Синтеза 348-Мерностного Синтезтела Учителя Изначальной Метагалактики ИВО, Управления Синтеза Омы",null,null,null," ИВ Ипостась ИВ 331-Мерностное Синтезтело ИВО "]
[null,null,null,null,"Синтез 330-Мерностного Синтезтела Человека Изначальной Метагалактики ИВО","Синтез 330-Мерностного Синтезтела Человека Изначальной Метагалактики ИВО","Синтез 330-Мерностного Синтезтела Человека Изначальной Метагалактики ИВО",null,null,"Нина","Нины",null,null,"Посвящённый Синтез Синтеза 347-Мерностного Синтезтела Ипостаси Изначальной Метагалактики ИВО, Управления Синтеза Сольвейг",null,null,null," ИВ Ипостась ИВ 330-Мерностное Синтезтело ИВО "]
[null,null,null,null,"Синтез 329-Мерностного Синтезтела Человека Метагалактики Изначальной Метагалактики ИВО","Синтез 329-Мерностного Синтезтела Человека Метагалактики Изначальной Метагалактики ИВО","Синтез 329-Мерностного Синтезтела Человека Метагалактики Изначальной Метагалактики ИВО",null,null,"Орфея","Орфеи",null,null,"Посвящённый Синтез Синтеза 346-Мерностного Синтезтела Служащего Изначальной Метагалактики ИВО, Управления Синтеза Октавии",null,null,null," ИВ Ипостась ИВ 329-Мерностное Синтезтело ИВО "]
[null,null,null,null,"Синтез 328-Мерностного Синтезтела Матери Изначальной Метагалактики ИВО","Синтез 328-Мерностного Синтезтела Матери Изначальной Метагалактики ИВО","Синтез 328-Мерностного Синтезтела Матери Изначальной Метагалактики ИВО",null,null,"Вергилия","Вергилии",null,null,"Посвящённый Синтез Синтеза 345-Мерностного Синтезтела Посвящённого Изначальной Метагалактики ИВО, Управления Синтеза Кристины",null,null,null," ИВ Ипостась ИВ 328-Мерностное Синтезтело ИВО "]
[null,null,null,null,"Синтез 327-Мерностного Синтезтела Праведника Изначальной Метагалактики ИВО","Синтез 327-Мерностного Синтезтела Праведника Изначальной Метагалактики ИВО","Синтез 327-Мерностного Синтезтела Праведника Изначальной Метагалактики ИВО",null,null,"Василиса","Василисы",null,null,"Посвящённый Синтез Синтеза 344-Мерностного Синтезтела Майтрейи Изначальной Метагалактики ИВО, Управления Синтеза Версавии",null,null,null," ИВ Ипостась ИВ 327-Мерностное Синтезтело ИВО "]
[null,null,null,null,"Синтез 326-Мерностного Синтезтела Неизречённого Изначальной Метагалактики ИВО","Синтез 326-Мерностного Синтезтела Неизречённого Изначальной Метагалактики ИВО","Синтез 326-Мерностного Синтезтела Неизречённого Изначальной Метагалактики ИВО",null,null,"Варвара","Варвары",null,null,"Посвящённый Синтез Синтеза 343-Мерностного Синтезтела Христа Изначальной Метагалактики ИВО, Управления Синтеза Ксении",null,null,null," ИВ Ипостась ИВ 326-Мерностное Синтезтело ИВО "]
[null,null,null,null,"Синтез 325-Мерностного Синтезтела Всемогущего Изначальной Метагалактики ИВО","Синтез 325-Мерностного Синтезтела Всемогущего Изначальной Метагалактики ИВО","Синтез 325-Мерностного Синтезтела Всемогущего Изначальной Метагалактики ИВО",null,null,"Арина","Арины",null,null,"Посвящённый Синтез Синтеза 342-Мерностного Синтезтела Будду Изначальной Метагалактики ИВО, Управления Синтеза Эммы",null,null,null," ИВ Ипостась ИВ 325-Мерностное Синтезтело ИВО "]
[null,null,null,null,"Синтез 324-Мерностного Синтезтела Предвечного Изначальной Метагалактики ИВО","Синтез 324-Мерностного Синтезтела Предвечного Изначальной Метагалактики ИВО","Синтез 324-Мерностного Синтезтела Предвечного Изначальной Метагалактики ИВО",null,null,"Амалия","Амалии",null,null,"Посвящённый Синтез Синтеза 341-Мерностного Синтезтела Теурга Изначальной Метагалактики ИВО, Управления Синтеза Стафии",null,null,null," ИВ Ипостась ИВ 324-Мерностное Синтезтело ИВО "]
[null,null,null,null,"Синтез 323-Мерностного Синтезтела Предначального Изначальной Метагалактики ИВО","Синтез 323-Мерностного Синтезтела Предначального Изначальной Метагалактики ИВО","Синтез 323-Мерностного Синтезтела Предначального Изначальной Метагалактики ИВО",null,null,"Елизавета","Елизаветы",null,null,"Посвящённый Синтез Синтеза 340-Мерностного Синтезтела Творца Изначальной Метагалактики ИВО, Управления Синтеза Оксаны",null,null,null," ИВ Ипостась ИВ 323-Мерностное Синтезтело ИВО "]
[null,null,null,null,"Синтез 322-Мерностного Синтезтела Вседержителя Изначальной Метагалактики ИВО","Синтез 322-Мерностного Синтезтела Вседержителя Изначальной Метагалактики ИВО","Синтез 322-Мерностного Синтезтела Вседержителя Изначальной Метагалактики ИВО",null,null,"Вера","Веры",null,null,"Посвящённый Синтез Синтеза 339-Мерностного Синтезтела Аспекта Изначальной Метагалактики ИВО, Управления Синтеза Ульяны",null,null,null," ИВ Ипостась ИВ 322-Мерностное Синтезтело ИВО "]
[null,null,null,null,"Синтез 321-Мерностного Синтезтела Всевышнего Изначальной Метагалактики ИВО","Синтез 321-Мерностного Синтезтела Всевышнего Изначальной Метагалактики ИВО","Синтез 321-Мерностного Синтезтела Всевышнего Изначальной Метагалактики ИВО",null,null,"Мирослава","Мирославы",null,null,"Посвящённый Синтез Синтеза 338-Мерностного Синтезтела Логоса Изначальной Метагалактики ИВО, Управления Синтеза Беатрисс",null,null,null," ИВ Ипостась ИВ 321-Мерностное Синтезтело ИВО "]
[null,null,null,null,"Синтез 320-Мерностного Синтезтела Человека Планеты Изначальной Метагалактики ИВО","Синтез 320-Мерностного Синтезтела Человека Планеты Изначальной Метагалактики ИВО","Синтез 320-Мерностного Синтезтела Человека Планеты Изначальной Метагалактики ИВО",null,null,"Даяна","Даяны",null,null,"Посвящённый Синтез Синтеза 337-Мерностного Синтезтела Ману Изначальной Метагалактики ИВО, Управления Синтеза Оливии",null,null,null," ИВ Ипостась ИВ 320-Мерностное Синтезтело ИВО "]
[null,null,null,null,"Синтез 319-Мерностного Синтезтела Отца Изначальности ИВО","Синтез 319-Мерностного Синтезтела Отца Изначальности ИВО","Синтез 319-Мерностного Синтезтела Отца Изначальности ИВО",null,null,"Стелла","Стеллы",null,null,"Посвящённый Синтез Синтеза 336-Мерностного Синтезтела Человека ИВО Изначальной Метагалактики, Управления Синтеза Аллы",null,null,null," ИВ Ипостась ИВ 319-Мерностное Синтезтело ИВО "]
[null,null,null,null,"Синтез 318-Мерностного Синтезтела Аватара Изначальности ИВО","Синтез 318-Мерностного Синтезтела Аватара Изначальности ИВО","Синтез 318-Мерностного Синтезтела Аватара Изначальности ИВО",null,null,"Дора","Доры",null,null,"Посвящённый Синтез Синтеза 335-Мерностного Синтезтела ИВ Человека ИВО Изначальной Метагалактики, Управления Синтеза Натали",null,null,null," ИВ Ипостась ИВ 318-Мерностное Синтезтело ИВО "]
[null,null,null,null,"Синтез 317-Мерностного Синтезтела Владыки Изначальности ИВО","Синтез 317-Мерностного Синтезтела Владыки Изначальности ИВО","Синтез 317-Мерностного Синтезтела Владыки Изначальности ИВО",null,null,"Клавдия","Клавдии",null,null,"Посвящённый Синтез Синтеза 334-Мерностного Синтезтела Человека Изначальности ИВО Изначальной Метагалактики, Управления Синтеза Эвы",null,null,null," ИВ Ипостась ИВ 317-Мерностное Синтезтело ИВО "]
[null,null,null,null,"Синтез 316-Мерностного Синтезтела Учителя Изначальности ИВО","Синтез 316-Мерностного Синтезтела Учителя Изначальности ИВО","Синтез 316-Мерностного Синтезтела Учителя Изначальности ИВО",null,null,"Лада","Лады",null,null,"Посвящённый Синтез Синтеза 333-Мерностного Синтезтела Сына Изначальной Метагалактики ИВО, Управления Синтеза Ланы",null,null,null," ИВ Ипостась ИВ 316-Мерностное Синтезтело ИВО "]
[null,null,null,null,"Синтез 315-Мерностного Синтезтела Ипостаси Изначальности ИВО","Синтез 315-Мерностного Синтезтела Ипостаси Изначальности ИВО","Синтез 315-Мерностного Синтезтела Ипостаси Изначальности ИВО",null,null,"Ветта","Ветты",null,null,"Посвящённый Синтез Синтеза 332-Мерностного Синтезтела Дочери Изначальной Метагалактики ИВО, Управления Синтеза Одель",null,null,null," ИВ Ипостась ИВ 315-Мерностное Синтезтело ИВО "]
[null,null,null,null,"Синтез 314-Мерностного Синтезтела Служащего Изначальности ИВО","Синтез 314-Мерностного Синтезтела Служащего Изначальности ИВО","Синтез 314-Мерностного Синтезтела Служащего Изначальности ИВО",null,null,"Власта","Власты",null,null,"Посвящённый Синтез Синтеза 331-Мерностного Синтезтела Человека ИВ Метагалактики Изначальной Метагалактики ИВО, Управления Синтеза Тамары",null,null,null," ИВ Ипостась ИВ 314-Мерностное Синтезтело ИВО "]
[null,null,null,null,"Синтез 313-Мерностного Синтезтела Посвящённого Изначальности ИВО","Синтез 313-Мерностного Синтезтела Посвящённого Изначальности ИВО","Синтез 313-Мерностного Синтезтела Посвящённого Изначальности ИВО",null,null,"Офелия","Офелии",null,null,"Посвящённый Синтез Синтеза 330-Мерностного Синтезтела Человека Изначальной Метагалактики ИВОтца, Управления Синтеза Нины",null,null,null," ИВ Ипостась ИВ 313-Мерностное Синтезтело ИВО "]
[null,null,null,null,"Синтез 312-Мерностного Синтезтела Майтрейи Изначальности ИВО","Синтез 312-Мерностного Синтезтела Майтрейи Изначальности ИВО","Синтез 312-Мерностного Синтезтела Майтрейи Изначальности ИВО",null,null,"Даная","Данаи",null,null,"Посвящённый Синтез Синтеза 329-Мерностного Синтезтела Человека Метагалактики Изначальной Метагалактики ИВО, Управления Синтеза Орфеи",null,null,null," ИВ Ипостась ИВ 312-Мерностное Синтезтело ИВО "]
[null,null,null,null,"Синтез 311-Мерностного Синтезтела Христа Изначальности ИВО","Синтез 311-Мерностного Синтезтела Христа Изначальности ИВО","Синтез 311-Мерностного Синтезтела Христа Изначальности ИВО",null,null,"Ханна","Ханны",null,null,"Посвящённый Синтез Синтеза 328-Мерностного Синтезтела Матери Изначальной Метагалактики ИВО, Управления Синтеза Вергилии",null,null,null," ИВ Ипостась ИВ 311-Мерностное Синтезтело ИВО "]
[null,null,null,null,"Синтез 310-Мерностного Синтезтела Будды Изначальности ИВО","Синтез 310-Мерностного Синтезтела Будды Изначальности ИВО","Синтез 310-Мерностного Синтезтела Будды Изначальности ИВО",null,null,"Хлоя","Хлои",null,null,"Посвящённый Синтез Синтеза 327-Мерностного Синтезтела Праведника Изначальной Метагалактики ИВО, Управления Синтеза Василисы",null,null,null," ИВ Ипостась ИВ 310-Мерностное Синтезтело ИВО "]
[null,null,null,null,"Синтез 309-Мерностного Синтезтела Теурга Изначальности ИВО","Синтез 309-Мерностного Синтезтела Теурга Изначальности ИВО","Синтез 309-Мерностного Синтезтела Теурга Изначальности ИВО",null,null,"Надежда","Надежды",null,null,"Посвящённый Синтез Синтеза 326-Мерностного Синтезтела Неизречённого Изначальной Метагалактики ИВО, Управления Синтеза Варвары",null,null,null," ИВ Ипостась ИВ 309-Мерностное Синтезтело ИВО "]
[null,null,null,null,"Синтез 308-Мерностного Синтезтела Творца Изначальности ИВО","Синтез 308-Мерностного Синтезтела Творца Изначальности ИВО","Синтез 308-Мерностного Синтезтела Творца Изначальности ИВО",null,null,"Олла","Оллы",null,null,"Посвящённый Синтез Синтеза 325-Мерностного Синтезтела Всемогущего Изначальной Метагалактики ИВО, Управления Синтеза Арины",null,null,null," ИВ Ипостась ИВ 308-Мерностное Синтезтело ИВО "]
[null,null,null,null,"Синтез 307-Мерностного Синтезтела Аспекта Изначальности ИВО","Синтез 307-Мерностного Синтезтела Аспекта Изначальности ИВО","Синтез 307-Мерностного Синтезтела Аспекта Изначальности ИВО",null,null,"Илона","Илоны",null,null,"Посвящённый Синтез Синтеза 324-Мерностного Синтезтела Предвечного Изначальной Метагалактики ИВО, Управления Синтеза Амалии",null,null,null," ИВ Ипостась ИВ 307-Мерностное Синтезтело ИВО "]
[null,null,null,null,"Синтез 306-Мерностного Синтезтела Логоса Изначальности ИВО","Синтез 306-Мерностного Синтезтела Логоса Изначальности ИВО","Синтез 306-Мерностного Синтезтела Логоса Изначальности ИВО",null,null,"Генриетта","Генриетты",null,null,"Посвящённый Синтез Синтеза 323-Мерностного Синтезтела Предначального Изначальной Метагалактики ИВО, Управления Синтеза Елизаветы",null,null,null," ИВ Ипостась ИВ 306-Мерностное Синтезтело ИВО "]
[null,null,null,null,"Синтез 305-Мерностного Синтезтела Ману Изначальности ИВО","Синтез 305-Мерностного Синтезтела Ману Изначальности ИВО","Синтез 305-Мерностного Синтезтела Ману Изначальности ИВО",null,null,"Мария","Марии",null,null,"Посвящённый Синтез Синтеза 322-Мерностного Синтезтела Вседержителя Изначальной Метагалактики ИВО, Управления Синтеза Веры",null,null,null," ИВ Ипостась ИВ 305-Мерностное Синтезтело ИВО "]
[null,null,null,null,"Синтез 304-Мерностного Синтезтела Человека ИВО Изначальности ИВО","Синтез 304-Мерностного Синтезтела Человека ИВО Изначальности ИВО","Синтез 304-Мерностного Синтезтела Человека ИВО Изначальности ИВО",null,null,"Глория","Глории",null,null,"Посвящённый Синтез Синтеза 321-Мерностного Синтезтела Всевышнего Изначальной Метагалактики ИВО, Управления Синтеза Мирославы",null,null,null," ИВ Ипостась ИВ 304-Мерностное Синтезтело ИВО "]
[null,null,null,null,"Синтез 303-Мерностного Синтезтела Изначально Вышестоящего Человека ИВО Изначальности ИВО","Синтез 303-Мерностного Синтезтела Изначально Вышестоящего Человека ИВО Изначальности ИВО","Синтез 303-Мерностного Синтезтела Изначально Вышестоящего Человека ИВО Изначальности ИВО",null,null,"Констанция","Констанции",null,null,"Посвящённый Синтез Синтеза 320-Мерностного Синтезтела Человека Планеты Изначальной Метагалактики ИВО, Управления Синтеза Даяны",null,null,null," ИВ Ипостась ИВ 303-Мерностное Синтезтело ИВО "]
[null,null,null,null,"Синтез 302-Мерностного Синтезтела Человека Изначальности ИВО","Синтез 302-Мерностного Синтезтела Человека Изначальности ИВО","Синтез 302-Мерностного Синтезтела Человека Изначальности ИВО",null,null,"Стэвия","Стэвии",null,null,"Посвящённый Синтез Синтеза 319-Мерностного Синтезтела Отца Изначальности ИВО, Управления Синтеза Стеллы",null,null,null," ИВ Ипостась ИВ 302-Мерностное Синтезтело ИВО "]
[null,null,null,null,"Синтез 301-Мерностного Синтезтела Сына Изначальности ИВО","Синтез 301-Мерностного Синтезтела Сына Изначальности ИВО","Синтез 301-Мерностного Синтезтела Сына Изначальности ИВО",null,null,"Полина","Полины",null,null,"Посвящённый Синтез Синтеза 318-Мерностного Синтезтела Аватара Изначальности ИВО, Управления Синтеза Доры",null,null,null," ИВ Ипостась ИВ 301-Мерностное Синтезтело ИВО "]
[null,null,null,null,"Синтез 300-Мерностного Синтезтела Дочери Изначальности ИВО","Синтез 300-Мерностного Синтезтела Дочери Изначальности ИВО","Синтез 300-Мерностного Синтезтела Дочери Изначальности ИВО",null,null,"Виру","Виру",null,null,"Посвящённый Синтез Синтеза 317-Мерностного Синтезтела Владыки Изначальности ИВО, Управления Синтеза Клавдии",null,null,null," ИВ Ипостась ИВ 300-Мерностное Синтезтело ИВО "]
[null,null,null,null,"Синтез 299-Мерностного Синтезтела Человека Изначально Вышестоящей Метагалактики Изначальности ИВО","Синтез 299-Мерностного Синтезтела Человека Изначально Вышестоящей Метагалактики Изначальности ИВО","Синтез 299-Мерностного Синтезтела Человека Изначально Вышестоящей Метагалактики Изначальности ИВО",null,null,"Фанна","Фанны",null,null,"Посвящённый Синтез Синтеза 316-Мерностного Синтезтела Учителя Изначальности ИВО, Управления Синтеза Лады",null,null,null," ИВ Ипостась ИВ 299-Мерностное Синтезтело ИВО "]
[null,null,null,null,"Синтез 298-Мерностного Синтезтела Человека Изначальной Метагалактики Изначальности ИВО","Синтез 298-Мерностного Синтезтела Человека Изначальной Метагалактики Изначальности ИВО","Синтез 298-Мерностного Синтезтела Человека Изначальной Метагалактики Изначальности ИВО",null,null,"Евгения","Евгении",null,null,"Посвящённый Синтез Синтеза 315-Мерностного Синтезтела Ипостаси Изначальности ИВО, Управления Синтеза Ветты",null,null,null," ИВ Ипостась ИВ 298-Мерностное Синтезтело ИВО "]
[null,null,null,null,"Синтез 297-Мерностного Синтезтела Человека Метагалактики Изначальности ИВО","Синтез 297-Мерностного Синтезтела Человека Метагалактики Изначальности ИВО","Синтез 297-Мерностного Синтезтела Человека Метагалактики Изначальности ИВО",null,null,"Элина","Элины",null,null,"Посвящённый Синтез Синтеза 314-Мерностного Синтезтела Служащего Изначальности ИВО, Управления Синтеза Власты",null,null,null," ИВ Ипостась ИВ 297-Мерностное Синтезтело ИВО "]
[null,null,null,null,"Синтез 296-Мерностного Синтезтела Матери Изначальности ИВО","Синтез 296-Мерностного Синтезтела Матери Изначальности ИВО","Синтез 296-Мерностного Синтезтела Матери Изначальности ИВО",null,null,"Сара","Сары",null,null,"Посвящённый Синтез Синтеза 313-Мерностного Синтезтела Посвящённого Изначальности ИВО, Управления Синтеза Офелии",null,null,null," ИВ Ипостась ИВ 296-Мерностное Синтезтело ИВО "]
[null,null,null,null,"Синтез 295-Мерностного Синтезтела Праведника Изначальности ИВО","Синтез 295-Мерностного Синтезтела Праведника Изначальности ИВО","Синтез 295-Мерностного Синтезтела Праведника Изначальности ИВО",null,null,"Алевтина","Алевтины",null,null,"Посвящённый Синтез Синтеза 312-Мерностного Синтезтела Майтрейи Изначальности ИВО, Управления Синтеза Данаи",null,null,null," ИВ Ипостась ИВ 295-Мерностное Синтезтело ИВО "]
[null,null,null,null,"Синтез 294-Мерностного Синтезтела Неизречённого Изначальности ИВО","Синтез 294-Мерностного Синтезтела Неизречённого Изначальности ИВО","Синтез 294-Мерностного Синтезтела Неизречённого Изначальности ИВО",null,null,"Раиса","Раисы",null,null,"Посвящённый Синтез Синтеза 311-Мерностного Синтезтела Христа Изначальности ИВО, Управления Синтеза Ханны",null,null,null," ИВ Ипостась ИВ 294-Мерностное Синтезтело ИВО "]
[null,null,null,null,"Синтез 293-Мерностного Синтезтела Всемогущего Изначальности ИВО","Синтез 293-Мерностного Синтезтела Всемогущего Изначальности ИВО","Синтез 293-Мерностного Синтезтела Всемогущего Изначальности ИВО",null,null,"Аврора","Авроры",null,null,"Посвящённый Синтез Синтеза 310-Мерностного Синтезтела Будды Изначальности ИВО, Управления Синтеза Хлои",null,null,null," ИВ Ипостась ИВ 293-Мерностное Синтезтело ИВО "]
[null,null,null,null,"Синтез 292-Мерностного Синтезтела Предвечного Изначальности ИВО","Синтез 292-Мерностного Синтезтела Предвечного Изначальности ИВО","Синтез 292-Мерностного Синтезтела Предвечного Изначальности ИВО",null,null,"Дилана","Диланы",null,null,"Посвящённый Синтез Синтеза 309-Мерностного Синтезтела Теурга Изначальности ИВО, Управления Синтеза Надежды",null,null,null," ИВ Ипостась ИВ 292-Мерностное Синтезтело ИВО "]
[null,null,null,null,"Синтез 291-Мерностного Синтезтела Предначального Изначальности ИВО","Синтез 291-Мерностного Синтезтела Предначального Изначальности ИВО","Синтез 291-Мерностного Синтезтела Предначального Изначальности ИВО",null,null,"Яся","Яси",null,null,"Посвящённый Синтез Синтеза 308-Мерностного Синтезтела Творца Изначальности ИВО, Управления Синтеза Оллы",null,null,null," ИВ Ипостась ИВ 291-Мерностное Синтезтело ИВО "]
[null,null,null,null,"Синтез 290-Мерностного Синтезтела Вседержителя Изначальности ИВО","Синтез 290-Мерностного Синтезтела Вседержителя Изначальности ИВО","Синтез 290-Мерностного Синтезтела Вседержителя Изначальности ИВО",null,null,"Фира","Фиры",null,null,"Посвящённый Синтез Синтеза 307-Мерностного Синтезтела Аспекта Изначальности ИВО, Управления Синтеза Илоны",null,null,null," ИВ Ипостась ИВ 290-Мерностное Синтезтело ИВО "]
[null,null,null,null,"Синтез 289-Мерностного Синтезтела Всевышнего Изначальности ИВО","Синтез 289-Мерностного Синтезтела Всевышнего Изначальности ИВО","Синтез 289-Мерностного Синтезтела Всевышнего Изначальности ИВО",null,null,"Омелия","Омелии",null,null,"Посвящённый Синтез Синтеза 306-Мерностного Синтезтела Логоса Изначальности ИВО, Управления Синтеза Генриетты",null,null,null," ИВ Ипостась ИВ 289-Мерностное Синтезтело ИВО "]
[null,null,null,null,"Синтез 288-Мерностного Синтезтела Человека Планеты Изначальности ИВО","Синтез 288-Мерностного Синтезтела Человека Планеты Изначальности ИВО","Синтез 288-Мерностного Синтезтела Человека Планеты Изначальности ИВО",null,null,"Мадлен","Мадлен",null,null,"Посвящённый Синтез Синтеза 305-Мерностного Синтезтела Ману Изначальности ИВО, Управления Синтеза Марии",null,null,null," ИВ Ипостась ИВ 288-Мерностное Синтезтело ИВО "]
[null,null,null,null,"Синтез 287-Мерностного Синтезтела Отца Метагалактики ИВО","Синтез 287-Мерностного Синтезтела Отца Метагалактики ИВО","Синтез 287-Мерностного Синтезтела Отца Метагалактики ИВО",null,null,"Римма","Риммы",null,null,"Посвящённый Синтез Синтеза 304-Мерностного Синтезтела Человек ИВО Изначальности, Управления Синтеза Глории",null,null,null," ИВ Ипостась ИВ 287-Мерностное Синтезтело ИВО "]
[null,null,null,null,"Синтез 286-Мерностного Синтезтела Аватара Метагалактики ИВО","Синтез 286-Мерностного Синтезтела Аватара Метагалактики ИВО","Синтез 286-Мерностного Синтезтела Аватара Метагалактики ИВО",null,null,"Белла","Беллы",null,null,"Посвящённый Синтез Синтеза 303-Мерностного Синтезтела ИВЧеловека ИВО Изначальности, Управления Синтеза Констанции",null,null,null," ИВ Ипостась ИВ 286-Мерностное Синтезтело ИВО "]
[null,null,null,null,"Синтез 285-Мерностного Синтезтела Владыки Метагалактики ИВО","Синтез 285-Мерностного Синтезтела Владыки Метагалактики ИВО","Синтез 285-Мерностного Синтезтела Владыки Метагалактики ИВО",null,null,"Агния","Агнии",null,null,"Посвящённый Синтез Синтеза 302-Мерностного Синтезтела Человека Изначальности ИВО, Управления Синтеза Стэвии",null,null,null," ИВ Ипостась ИВ 285-Мерностное Синтезтело ИВО "]
[null,null,null,null,"Синтез 284-Мерностного Синтезтела Учителя Метагалактики ИВО","Синтез 284-Мерностного Синтезтела Учителя Метагалактики ИВО","Синтез 284-Мерностного Синтезтела Учителя Метагалактики ИВО",null,null,"Фелиция","Фелиции",null,null,"Посвящённый Синтез Синтеза 301-Мерностного Синтезтела Сына Изначальности ИВО, Управления Синтеза Полины",null,null,null," ИВ Ипостась ИВ 284-Мерностное Синтезтело ИВО "]
[null,null,null,null,"Синтез 283-Мерностного Синтезтела Ипостаси Метагалактики ИВО","Синтез 283-Мерностного Синтезтела Ипостаси Метагалактики ИВО","Синтез 283-Мерностного Синтезтела Ипостаси Метагалактики ИВО",null,null,"Виталина","Виталины",null,null,"Посвящённый Синтез Синтеза 300-Мерностного Синтезтела Дочери Изначальности ИВО, Управления Синтеза Виры",null,null,null," ИВ Ипостась ИВ 283-Мерностное Синтезтело ИВО "]
[null,null,null,null,"Синтез 282-Мерностного Синтезтела Служащего Метагалактики ИВО","Синтез 282-Мерностного Синтезтела Служащего Метагалактики ИВО","Синтез 282-Мерностного Синтезтела Служащего Метагалактики ИВО",null,null,"Нона","Ноны",null,null,"Посвящённый Синтез Синтеза 299-Мерностного Синтезтела Человека ИВ Метагалактики Изначальности ИВО, Управления Синтеза Фанны",null,null,null," ИВ Ипостась ИВ 282-Мерностное Синтезтело ИВО "]
[null,null,null,null,"Синтез 281-Мерностного Синтезтела Посвящённого Метагалактики ИВО","Синтез 281-Мерностного Синтезтела Посвящённого Метагалактики ИВО","Синтез 281-Мерностного Синтезтела Посвящённого Метагалактики ИВО",null,null,"Клементина","Клементины",null,null,"Посвящённый Синтез Синтеза 298-Мерностного Синтезтела Человека Изначальной Метагалактики Изначальности ИВО, Управления Синтеза Евгении",null,null,null," ИВ Ипостась ИВ 281-Мерностное Синтезтело ИВО "]
[null,null,null,null,"Синтез 280-Мерностного Синтезтела Майтрейи Метагалактики ИВО","Синтез 280-Мерностного Синтезтела Майтрейи Метагалактики ИВО","Синтез 280-Мерностного Синтезтела Майтрейи Метагалактики ИВО",null,null,"Лира","Лиры",null,null,"Посвящённый Синтез Синтеза 297-Мерностного Синтезтела Человека Метагалактики Изначальности ИВО, Управления Синтеза Элины",null,null,null," ИВ Ипостась ИВ 280-Мерностное Синтезтело ИВО "]
[null,null,null,null,"Синтез 279-Мерностного Синтезтела Христа Метагалактики ИВО","Синтез 279-Мерностного Синтезтела Христа Метагалактики ИВО","Синтез 279-Мерностного Синтезтела Христа Метагалактики ИВО",null,null,"Ванесса","Ванессы",null,null,"Посвящённый Синтез Синтеза 296-Мерностного Синтезтела Матери Изначальности ИВО, Управления Синтеза Сары",null,null,null," ИВ Ипостась ИВ 279-Мерностное Синтезтело ИВО "]
[null,null,null,null,"Синтез 278-Мерностного Синтезтела Будды Метагалактики ИВО","Синтез 278-Мерностного Синтезтела Будды Метагалактики ИВО","Синтез 278-Мерностного Синтезтела Будды Метагалактики ИВО",null,null,"Евдокия","Евдокии",null,null,"Посвящённый Синтез Синтеза 295-Мерностного Синтезтела Праведника Изначальности ИВО, Управления Синтеза Алевтины",null,null,null," ИВ Ипостась ИВ 278-Мерностное Синтезтело ИВО "]
[null,null,null,null,"Синтез 277-Мерностного Синтезтела Теурга Метагалактики ИВО ","Синтез 277-Мерностного Синтезтела Теурга Метагалактики ИВО ","Синтез 277-Мерностного Синтезтела Теурга Метагалактики ИВО ",null,null,"Клара","Клары",null,null,"Посвящённый Синтез Синтеза 294-Мерностного Синтезтела Неизречённого Изначальности ИВО, Управления Синтеза Раисы",null,null,null," ИВ Ипостась ИВ 277-Мерностное Синтезтело ИВО "]
[null,null,null,null,"Синтез 276-Мерностного Синтезтела Творца Метагалактики ИВО 276мерное","Синтез 276-Мерностного Синтезтела Творца Метагалактики ИВО 276мерное","Синтез 276-Мерностного Синтезтела Творца Метагалактики ИВО 276мерное",null,null,"Лиза","Лизы",null,null,"Посвящённый Синтез Синтеза 293-Мерностного Синтезтела Всемогущего Изначальности ИВО, Управления Синтеза Авроры",null,null,null," ИВ Ипостась ИВ 276-Мерностное Синтезтело ИВО "]
[null,null,null,null,"Синтез 275-Мерностного Синтезтела Аспекта Метагалактики ИВО","Синтез 275-Мерностного Синтезтела Аспекта Метагалактики ИВО","Синтез 275-Мерностного Синтезтела Аспекта Метагалактики ИВО",null,null,"Сюзанна","Сюзанны",null,null,"Посвящённый Синтез Синтеза 292-Мерностного Синтезтела Предвечного Изначальности ИВО, Управления Синтеза Диланы",null,null,null," ИВ Ипостась ИВ 275-Мерностное Синтезтело ИВО "]
[null,null,null,null,"Синтез 274-Мерностного Синтезтела Логоса Метагалактики ИВО","Синтез 274-Мерностного Синтезтела Логоса Метагалактики ИВО","Синтез 274-Мерностного Синтезтела Логоса Метагалактики ИВО",null,null,"Сейла","Сейлы",null,null,"Посвящённый Синтез Синтеза 291-Мерностного Синтезтела Предначального Изначальности ИВО, Управления Синтеза Яси",null,null,null," ИВ Ипостась ИВ 274-Мерностное Синтезтело ИВО "]
[null,null,null,null,"Синтез 273-Мерностного Синтезтела Ману Метагалактики ИВО","Синтез 273-Мерностного Синтезтела Ману Метагалактики ИВО","Синтез 273-Мерностного Синтезтела Ману Метагалактики ИВО",null,null,"Руслана","Русланы",null,null,"Посвящённый Синтез Синтеза 290-Мерностного Синтезтела Вседержителя Изначальности ИВО, Управления Синтеза Фиры",null,null,null," ИВ Ипостась ИВ 273-Мерностное Синтезтело ИВО "]
[null,null,null,null,"Синтез 272-Мерностного Синтезтела Человека ИВО Метагалактики ИВО","Синтез 272-Мерностного Синтезтела Человека ИВО Метагалактики ИВО","Синтез 272-Мерностного Синтезтела Человека ИВО Метагалактики ИВО",null,null,"Устина","Устины",null,null,"Посвящённый Синтез Синтеза 289-Мерностного Синтезтела Всевышнего Изначальности ИВО, Управления Синтеза Омелии",null,null,null," ИВ Ипостась ИВ 272-Мерностное Синтезтело ИВО "]
[null,null,null,null,"Синтез 271-Мерностного Синтезтела Изначально Вышестоящего Человека ИВО Метагалактики ИВО","Синтез 271-Мерностного Синтезтела Изначально Вышестоящего Человека ИВО Метагалактики ИВО","Синтез 271-Мерностного Синтезтела Изначально Вышестоящего Человека ИВО Метагалактики ИВО",null,null,"Марика","Марики",null,null,"Посвящённый Синтез Синтеза 288-Мерностного Синтезтела Человека Планеты Изначальности ИВО, Управления Синтеза Мадлен",null,null,null," ИВ Ипостась ИВ 271-Мерностное Синтезтело ИВО "]
[null,null,null,null,"Синтез 270-Мерностного Синтезтела Человека Изначальности ИВО Метагалактики ИВО","Синтез 270-Мерностного Синтезтела Человека Изначальности ИВО Метагалактики ИВО","Синтез 270-Мерностного Синтезтела Человека Изначальности ИВО Метагалактики ИВО",null,null,"Франсуаза","Франсуазы",null,null,"Посвящённый Синтез Синтеза 287-Мерностного Синтезтела Отца Метагалактики ИВО, Управления Синтеза Риммы",null,null,null," ИВ Ипостась ИВ 270-Мерностное Синтезтело ИВО "]
[null,null,null,null,"Синтез 269-Мерностного Синтезтела Сына Метагалактики ИВО","Синтез 269-Мерностного Синтезтела Сына Метагалактики ИВО","Синтез 269-Мерностного Синтезтела Сына Метагалактики ИВО",null,null,"Христина","Христины",null,null,"Посвящённый Синтез Синтеза 286-Мерностного Синтезтела Аватара Метагалактики ИВО, Управления Синтеза Беллы",null,null,null," ИВ Ипостась ИВ 269-Мерностное Синтезтело ИВО "]
[null,null,null,null,"Синтез 268-Мерностного Синтезтела Дочери Метагалактики ИВО","Синтез 268-Мерностного Синтезтела Дочери Метагалактики ИВО","Синтез 268-Мерностного Синтезтела Дочери Метагалактики ИВО",null,null,"Иолана","Иоланы",null,null,"Посвящённый Синтез Синтеза 285-Мерностного Синтезтела Владыки Метагалактики ИВО, Управления Синтеза Агнии",null,null,null," ИВ Ипостась ИВ 268-Мерностное Синтезтело ИВО "]
[null,null,null,null,"Синтез 267-Мерностного Синтезтела Человека Изначально Вышестоящей Метагалактики Метагалактики ИВО","Синтез 267-Мерностного Синтезтела Человека Изначально Вышестоящей Метагалактики Метагалактики ИВО","Синтез 267-Мерностного Синтезтела Человека Изначально Вышестоящей Метагалактики Метагалактики ИВО",null,null,"Джесика","Джесики",null,null,"Посвящённый Синтез Синтеза 284-Мерностного Синтезтела Учителя Метагалактики ИВО, Управления Синтеза Фелиции",null,null,null," ИВ Ипостась ИВ 267-Мерностное Синтезтело ИВО "]
[null,null,null,null,"Синтез 266-Мерностного Синтезтела Человека Изначальной Метагалактики Метагалактики ИВО","Синтез 266-Мерностного Синтезтела Человека Изначальной Метагалактики Метагалактики ИВО","Синтез 266-Мерностного Синтезтела Человека Изначальной Метагалактики Метагалактики ИВО",null,null,"Сабина","Сабины",null,null,"Посвящённый Синтез Синтеза 283-Мерностного Синтезтела Ипостаси Метагалактики ИВО, Управления Синтеза Виталины",null,null,null," ИВ Ипостась ИВ 266-Мерностное Синтезтело ИВО "]
[null,null,null,null,"Синтез 265-Мерностного Синтезтела Человека Метагалактики ИВО","Синтез 265-Мерностного Синтезтела Человека Метагалактики ИВО","Синтез 265-Мерностного Синтезтела Человека Метагалактики ИВО",null,null,"Нелли","Нелли",null,null,"Посвящённый Синтез Синтеза 282-Мерностного Синтезтела Служащего Метагалактики ИВО, Управления Синтеза Ноны",null,null,null," ИВ Ипостась ИВ 265-Мерностное Синтезтело ИВО "]
[null,null,null,null,"Синтез 264-Мерностного Синтезтела Матери Метагалактики ИВО","Синтез 264-Мерностного Синтезтела Матери Метагалактики ИВО","Синтез 264-Мерностного Синтезтела Матери Метагалактики ИВО",null,null,"Санта","Санты",null,null,"Посвящённый Синтез Синтеза 281-Мерностного Синтезтела Посвящённого Метагалактики ИВО, Управления Синтеза Клементины",null,null,null," ИВ Ипостась ИВ 264-Мерностное Синтезтело ИВО "]
[null,null,null,null,"Синтез 263-Мерностного Синтезтела Праведника Метагалактики ИВО","Синтез 263-Мерностного Синтезтела Праведника Метагалактики ИВО","Синтез 263-Мерностного Синтезтела Праведника Метагалактики ИВО",null,null,"Доротея","Доротеи",null,null,"Посвящённый Синтез Синтеза 280-Мерностного Синтезтела Майтрейи Метагалактики ИВО, Управления Синтеза Лиры",null,null,null," ИВ Ипостась ИВ 263-Мерностное Синтезтело ИВО "]
[null,null,null,null,"Синтез 262-Мерностного Синтезтела Неизречённого Метагалактики ИВО","Синтез 262-Мерностного Синтезтела Неизречённого Метагалактики ИВО","Синтез 262-Мерностного Синтезтела Неизречённого Метагалактики ИВО",null,null,"Янина","Янины",null,null,"Посвящённый Синтез Синтеза 279-Мерностного Синтезтела Христа Метагалактики ИВО, Управления Синтеза Ванессы",null,null,null," ИВ Ипостась ИВ 262-Мерностное Синтезтело ИВО "]
[null,null,null,null,"Синтез 261-Мерностного Синтезтела Всемогущего Метагалактики ИВО","Синтез 261-Мерностного Синтезтела Всемогущего Метагалактики ИВО","Синтез 261-Мерностного Синтезтела Всемогущего Метагалактики ИВО",null,null,"Люция","Люции",null,null,"Посвящённый Синтез Синтеза 278-Мерностного Синтезтела Будды Метагалактики ИВО, Управления Синтеза Евдокии",null,null,null," ИВ Ипостась ИВ 261-Мерностное Синтезтело ИВО "]
[null,null,null,null,"Синтез 260-Мерностного Синтезтела Предвечного Метагалактики ИВО","Синтез 260-Мерностного Синтезтела Предвечного Метагалактики ИВО","Синтез 260-Мерностного Синтезтела Предвечного Метагалактики ИВО",null,null,"Ирэн","Ирэн",null,null,"Посвящённый Синтез Синтеза 277-Мерностного Синтезтела Теурга Метагалактики ИВО, Управления Синтеза Клары",null,null,null," ИВ Ипостась ИВ 260-Мерностное Синтезтело ИВО "]
[null,null,null,null,"Синтез 259-Мерностного Синтезтела Предначального Метагалактики ИВО","Синтез 259-Мерностного Синтезтела Предначального Метагалактики ИВО","Синтез 259-Мерностного Синтезтела Предначального Метагалактики ИВО",null,null,"Сесилия","Сесилии",null,null,"Посвящённый Синтез Синтеза 276-Мерностного Синтезтела Творца Метагалактики ИВО, Управления Синтеза Лизы",null,null,null," ИВ Ипостась ИВ 259-Мерностное Синтезтело ИВО "]
[null,null,null,null,"Синтез 258-Мерностного Синтезтела Вседержителя Метагалактики ИВО","Синтез 258-Мерностного Синтезтела Вседержителя Метагалактики ИВО","Синтез 258-Мерностного Синтезтела Вседержителя Метагалактики ИВО",null,null,"Верислава","Вериславы",null,null,"Посвящённый Синтез Синтеза 275-Мерностного Синтезтела Аспекта Метагалактики ИВО, Управления Синтеза Сюзанны",null,null,null," ИВ Ипостась ИВ 258-Мерностное Синтезтело ИВО "]
[null,null,null,null,"Синтез 257-Мерностного Синтезтела Всевышнего Метагалактики ИВО","Синтез 257-Мерностного Синтезтела Всевышнего Метагалактики ИВО","Синтез 257-Мерностного Синтезтела Всевышнего Метагалактики ИВО",null,null,"Станислава","Станиславы",null,null,"Посвящённый Синтез Синтеза 274-Мерностного Синтезтела Логоса Метагалактики ИВО, Управления Синтеза Сейлы",null,null,null," ИВ Ипостась ИВ 257-Мерностное Синтезтело ИВО "]
[null,null,null,null,"Синтез 256-Мерностного Синтезтела Человека Планеты Метагалактики ИВО","Синтез 256-Мерностного Синтезтела Человека Планеты Метагалактики ИВО","Синтез 256-Мерностного Синтезтела Человека Планеты Метагалактики ИВО",null,null,"Милослава","Милославы",null,null,"Посвящённый Синтез Синтеза 273-Мерностного Синтезтела Ману Метагалактики ИВО, Управления Синтеза Русланы",null,null,null," ИВ Ипостась ИВ 256-Мерностное Синтезтело ИВО "]
[null,null,null,null,null,null,null,null,null,null,null,null,null,"Посвящённый Синтез Синтеза 272-Мерностного Синтезтела Человека ИВО Метагалактики, Управления Синтеза Устины"]
[null,null,null,null,null,null,null,null,null,null,null,null,null,"Посвящённый Синтез Синтеза 271-Мерностного Синтезтела ИВЧеловека ИВО Метагалактики, Управления Синтеза Марики"]
[null,null,null,null,null,null,null,null,null,null,null,null,null,"Посвящённый Синтез Синтеза 270-Мерностного Синтезтела Человека Изначальности ИВО Метагалактики, Управления Синтеза Франсуазы"]
[null,null,null,null,null,null,null,null,null,null,null,null,null,"Посвящённый Синтез Синтеза 269-Мерностного Синтезтела Сына Метагалактики ИВО, Управления Синтеза Христины"]
[null,null,null,null,null,null,null,null,null,null,null,null,null,"Посвящённый Синтез Синтеза 268-Мерностного Синтезтела Дочери Метагалактики ИВО, Управления Синтеза Иоланы"]
[null,null,null,null,null,null,null,null,null,null,null,null,null,"Посвящённый Синтез Синтеза 267-Мерностного Синтезтела Человека ИВ Метагалактики ИВО Метагалактики, Управления Синтеза Джесики"]
[null,null,null,null,null,null,null,null,null,null,null,null,null,"Посвящённый Синтез Синтеза 266-Мерностного Синтезтела Человека Изначальной Метагалактики ИВО Метагалактики, Управления Синтеза Сабины"]
[null,null,null,null,null,null,null,null,null,null,null,null,null,"Посвящённый Синтез Синтеза 265-Мерностного Синтезтела Человека Метагалактики ИВО, Управления Синтеза Нелли"]
[null,null,null,null,null,null,null,null,null,null,null,null,null,"Посвящённый Синтез Синтеза 264-Мерностного Синтезтела Матери Метагалактики ИВО, Управления Синтеза Санты"]
[null,null,null,null,null,null,null,null,null,null,null,null,null,"Посвящённый Синтез Синтеза 263-Мерностного Синтезтела Праведника Метагалактики ИВО, Управления Синтеза Доротеи"]
[null,null,null,null,null,null,null,null,null,null,null,null,null,"Посвящённый Синтез Синтеза 262-Мерностного Синтезтела Неизречённого Метагалактики ИВО, Управления Синтеза Янины"]
[null,null,null,null,null,null,null,null,null,null,null,null,null,"Посвящённый Синтез Синтеза 261-Мерностного Синтезтела Всемогущего Метагалактики ИВО, Управления Синтеза Люции"]
[null,null,null,null,null,null,null,null,null,null,null,null,null,"Посвящённый Синтез Синтеза 260-Мерностного Синтезтела Предвечного Метагалактики ИВО, Управления Синтеза Ирэн"]
[null,null,null,null,null,null,null,null,null,null,null,null,null,"Посвящённый Синтез Синтеза 259-Мерностного Синтезтела Предначального Метагалактики ИВО, Управления Синтеза Сесилии"]
[null,null,null,null,null,null,null,null,null,null,null,null,null,"Посвящённый Синтез Синтеза 258-Мерностного Синтезтела Вседержителя Метагалактики ИВО, Управления Синтеза Вериславы"]
[null,null,null,null,null,null,null,null,null,null,null,null,null,"Посвящённый Синтез Синтеза 257-Мерностного Синтезтела Всевышнего Метагалактики ИВО, Управления Синтеза Станиславы"]
[null,null,null,null,null,null,null,null,null,null,null,null,null,"Посвящённый Синтез Синтеза 256-Мерностного Синтезтела Человека Планеты Метагалактики ИВО, Управления Синтеза Милославы"]